,Directorate,Supplier Name,Supplier Invoice No,Payment Date,Gross Invoice Value,Vat Amount,Vendor Id,Purpose of Expenditure,Description,Redact flag,Year,Period
1,Community and Housing,SOUTHPARK RESIDENTIAL HOME,1145196,10-Apr-24,3400,0,19,Older People Placements - East,321017              Nursing & Residential Care Homes,A,2024,1
2,Community and Housing,SOUTHPARK RESIDENTIAL HOME,1145394,10-Apr-24,1092.86,0,19,Phys/Sens Placements - East,321017              Nursing & Residential Care Homes,A,2024,1
3,Community and Housing,SOUTHPARK RESIDENTIAL HOME,1145423,10-Apr-24,3400,0,19,Older People Placements - East,321017              Nursing & Residential Care Homes,A,2024,1
4,Community and Housing,SOUTHPARK RESIDENTIAL HOME,1148359,19-Apr-24,850,0,19,Older People Placements - East,321017              Nursing & Residential Care Homes,A,2024,1
5,"Children, Schools and Family",MORE HOUSE SCHOOL,32233,09-Apr-24,6547,0,345,Non-Delegated Statements,170000              Education,A,2024,1
6,"Children, Schools and Family",MORE HOUSE SCHOOL,32134,09-Apr-24,7188,0,345,Non-Delegated Statements,170000              Education,A,2024,1
7,"Children, Schools and Family",MORE HOUSE SCHOOL,31995,09-Apr-24,6337,0,345,Non-Delegated Statements,170000              Education,A,2024,1
8,"Children, Schools and Family",MORE HOUSE SCHOOL,31971,09-Apr-24,6547,0,345,Non-Delegated Statements,170000              Education,A,2024,1
9,"Children, Schools and Family",MORE HOUSE SCHOOL,32377,09-Apr-24,6337,0,345,Non-Delegated Statements,170000              Education,A,2024,1
10,"Children, Schools and Family",MORE HOUSE SCHOOL,32370,09-Apr-24,6337,0,345,Non-Delegated Statements,170000              Education,A,2024,1
11,"Children, Schools and Family",MORE HOUSE SCHOOL,32266,09-Apr-24,7188,0,345,Non-Delegated Statements,170000              Education,A,2024,1
12,"Children, Schools and Family",MORE HOUSE SCHOOL,32236,10-Apr-24,7857,0,345,SEN Residential (DSG),170000              Education,A,2024,1
13,"Children, Schools and Family",MORE HOUSE SCHOOL,31988,25-Apr-24,7442,0,345,Non-Delegated Statements,170000              Education,A,2024,1
14,"Children, Schools and Family",MORE HOUSE SCHOOL,32289,29-Apr-24,10611.35,0,345,SEN Residential (DSG),170000              Education,A,2024,1
15,Community and Housing,ST TERESA`S HOME FOR THE ELDERLY,1145132,10-Apr-24,3764.24,0,362,Older People Placements - East,321017              Nursing & Residential Care Homes,A,2024,1
16,Community and Housing,ST TERESA`S HOME FOR THE ELDERLY,1145485,10-Apr-24,5888,0,362,Older People Placements - East,321017              Nursing & Residential Care Homes,A,2024,1
17,Community and Housing,ST TERESA`S HOME FOR THE ELDERLY,1145523,10-Apr-24,4080,0,362,Older People Placements - East,321017              Nursing & Residential Care Homes,A,2024,1
18,Community and Housing,THE WHITE HOUSE NURSING HOME,1145529,10-Apr-24,3684.68,0,611,Older People Placements - East,321000              Social Community Care Supplies & Services - Adult,A,2024,1
19,"Children, Schools and Family",BLOSSOM HOUSE SCHOOL,10490,12-Apr-24,7166.67,0,777,Non-Delegated Statements,170000              Education,A,2024,1
20,"Children, Schools and Family",BLOSSOM HOUSE SCHOOL,10474,12-Apr-24,30791.67,0,777,Non-Delegated Statements,170000              Education,A,2024,1
21,"Children, Schools and Family",BLOSSOM HOUSE SCHOOL,10495,12-Apr-24,18112.5,0,777,Non-Delegated Statements,170000              Education,A,2024,1
22,"Children, Schools and Family",BLOSSOM HOUSE SCHOOL,10428,12-Apr-24,16747.5,0,777,Non-Delegated Statements,170000              Education,A,2024,1
23,"Children, Schools and Family",BLOSSOM HOUSE SCHOOL,10436,12-Apr-24,16747.5,0,777,Non-Delegated Statements,170000              Education,A,2024,1
24,"Children, Schools and Family",BLOSSOM HOUSE SCHOOL,10462,12-Apr-24,16012.5,0,777,Non-Delegated Statements,170000              Education,A,2024,1
25,"Children, Schools and Family",BLOSSOM HOUSE SCHOOL,10475,12-Apr-24,17587.5,0,777,Non-Delegated Statements,170000              Education,A,2024,1
26,"Children, Schools and Family",BLOSSOM HOUSE SCHOOL,10492,12-Apr-24,13387.5,0,777,Non-Delegated Statements,170000              Education,A,2024,1
27,"Children, Schools and Family",BLOSSOM HOUSE SCHOOL,10463,12-Apr-24,15165,0,777,Non-Delegated Statements,170000              Education,A,2024,1
28,"Children, Schools and Family",BLOSSOM HOUSE SCHOOL,10434,12-Apr-24,17587.5,0,777,Non-Delegated Statements,170000              Education,A,2024,1
29,"Children, Schools and Family",BLOSSOM HOUSE SCHOOL,10450,12-Apr-24,15172.5,0,777,Non-Delegated Statements,170000              Education,A,2024,1
30,"Children, Schools and Family",BLOSSOM HOUSE SCHOOL,10468,12-Apr-24,16747.5,0,777,Non-Delegated Statements,170000              Education,A,2024,1
31,"Children, Schools and Family",BLOSSOM HOUSE SCHOOL,10491,12-Apr-24,13807.5,0,777,Non-Delegated Statements,170000              Education,A,2024,1
32,"Children, Schools and Family",BLOSSOM HOUSE SCHOOL,10426,12-Apr-24,7200,0,777,Non-Delegated Statements,170000              Education,A,2024,1
33,"Children, Schools and Family",BLOSSOM HOUSE SCHOOL,10479,12-Apr-24,17587.5,0,777,Non-Delegated Statements,170000              Education,A,2024,1
34,"Children, Schools and Family",BLOSSOM HOUSE SCHOOL,10497,12-Apr-24,18112.5,0,777,Non-Delegated Statements,170000              Education,A,2024,1
35,"Children, Schools and Family",BLOSSOM HOUSE SCHOOL,10431,12-Apr-24,16012.5,0,777,Non-Delegated Statements,170000              Education,A,2024,1
36,"Children, Schools and Family",BLOSSOM HOUSE SCHOOL,10454,12-Apr-24,22500,0,777,Non-Delegated Statements,170000              Education,A,2024,1
37,"Children, Schools and Family",BLOSSOM HOUSE SCHOOL,10429,12-Apr-24,18112.5,0,777,Non-Delegated Statements,170000              Education,A,2024,1
38,"Children, Schools and Family",BLOSSOM HOUSE SCHOOL,10437,12-Apr-24,17587.5,0,777,Non-Delegated Statements,170000              Education,A,2024,1
39,"Children, Schools and Family",BLOSSOM HOUSE SCHOOL,10446,12-Apr-24,18112.5,0,777,Non-Delegated Statements,170000              Education,A,2024,1
40,"Children, Schools and Family",BLOSSOM HOUSE SCHOOL,10455,12-Apr-24,13807.5,0,777,Non-Delegated Statements,170000              Education,A,2024,1
41,"Children, Schools and Family",BLOSSOM HOUSE SCHOOL,10464,12-Apr-24,16747.5,0,777,Non-Delegated Statements,170000              Education,A,2024,1
42,"Children, Schools and Family",BLOSSOM HOUSE SCHOOL,10476,12-Apr-24,15172.5,0,777,Non-Delegated Statements,170000              Education,A,2024,1
43,"Children, Schools and Family",BLOSSOM HOUSE SCHOOL,10483,12-Apr-24,18112.5,0,777,Non-Delegated Statements,170000              Education,A,2024,1
44,"Children, Schools and Family",BLOSSOM HOUSE SCHOOL,10494,12-Apr-24,17587.5,0,777,Non-Delegated Statements,170000              Education,A,2024,1
45,"Children, Schools and Family",BLOSSOM HOUSE SCHOOL,10433,12-Apr-24,16850,0,777,Non-Delegated Statements,170000              Education,A,2024,1
46,"Children, Schools and Family",BLOSSOM HOUSE SCHOOL,10445,12-Apr-24,13387.5,0,777,Non-Delegated Statements,170000              Education,A,2024,1
47,"Children, Schools and Family",BLOSSOM HOUSE SCHOOL,10453,12-Apr-24,17587.5,0,777,Non-Delegated Statements,170000              Education,A,2024,1
48,"Children, Schools and Family",BLOSSOM HOUSE SCHOOL,10482,12-Apr-24,16012.5,0,777,Non-Delegated Statements,170000              Education,A,2024,1
49,"Children, Schools and Family",BLOSSOM HOUSE SCHOOL,10493,12-Apr-24,12967.5,0,777,Non-Delegated Statements,170000              Education,A,2024,1
50,"Children, Schools and Family",BLOSSOM HOUSE SCHOOL,10488,12-Apr-24,4320,0,777,Non-Delegated Statements,170000              Education,A,2024,1
51,"Children, Schools and Family",BLOSSOM HOUSE SCHOOL,10427,12-Apr-24,13807.5,0,777,Non-Delegated Statements,170000              Education,A,2024,1
52,"Children, Schools and Family",BLOSSOM HOUSE SCHOOL,10444,12-Apr-24,17587.5,0,777,Non-Delegated Statements,170000              Education,A,2024,1
53,"Children, Schools and Family",BLOSSOM HOUSE SCHOOL,10451,12-Apr-24,16747.5,0,777,Non-Delegated Statements,170000              Education,A,2024,1
54,"Children, Schools and Family",BLOSSOM HOUSE SCHOOL,10461,12-Apr-24,15067.5,0,777,Non-Delegated Statements,170000              Education,A,2024,1
55,"Children, Schools and Family",BLOSSOM HOUSE SCHOOL,10469,12-Apr-24,12967.5,0,777,Non-Delegated Statements,170000              Education,A,2024,1
56,"Children, Schools and Family",BLOSSOM HOUSE SCHOOL,10481,12-Apr-24,18112.5,0,777,Non-Delegated Statements,170000              Education,A,2024,1
57,"Children, Schools and Family",BLOSSOM HOUSE SCHOOL,10443,12-Apr-24,24750,0,777,Non-Delegated Statements,170000              Education,A,2024,1
58,"Children, Schools and Family",BLOSSOM HOUSE SCHOOL,10460,12-Apr-24,12967.5,0,777,Non-Delegated Statements,170000              Education,A,2024,1
59,"Children, Schools and Family",BLOSSOM HOUSE SCHOOL,10472,12-Apr-24,16747.5,0,777,Non-Delegated Statements,170000              Education,A,2024,1
60,"Children, Schools and Family",BLOSSOM HOUSE SCHOOL,10480,12-Apr-24,13807.5,0,777,Non-Delegated Statements,170000              Education,A,2024,1
61,"Children, Schools and Family",BLOSSOM HOUSE SCHOOL,10498,12-Apr-24,18112.5,0,777,Non-Delegated Statements,170000              Education,A,2024,1
62,"Children, Schools and Family",BLOSSOM HOUSE SCHOOL,10432,12-Apr-24,15172.5,0,777,Non-Delegated Statements,170000              Education,A,2024,1
63,"Children, Schools and Family",BLOSSOM HOUSE SCHOOL,10442,12-Apr-24,16012.5,0,777,Non-Delegated Statements,170000              Education,A,2024,1
64,"Children, Schools and Family",BLOSSOM HOUSE SCHOOL,10449,12-Apr-24,17587.5,0,777,Non-Delegated Statements,170000              Education,A,2024,1
65,"Children, Schools and Family",BLOSSOM HOUSE SCHOOL,10459,12-Apr-24,16012.5,0,777,Non-Delegated Statements,170000              Education,A,2024,1
66,"Children, Schools and Family",BLOSSOM HOUSE SCHOOL,10467,12-Apr-24,24750,0,777,Non-Delegated Statements,170000              Education,A,2024,1
67,"Children, Schools and Family",BLOSSOM HOUSE SCHOOL,10471,12-Apr-24,17587.5,0,777,Non-Delegated Statements,170000              Education,A,2024,1
68,"Children, Schools and Family",BLOSSOM HOUSE SCHOOL,10486,12-Apr-24,18850,0,777,Non-Delegated Statements,170000              Education,A,2024,1
69,"Children, Schools and Family",BLOSSOM HOUSE SCHOOL,10487,12-Apr-24,18850,0,777,Non-Delegated Statements,170000              Education,A,2024,1
70,"Children, Schools and Family",BLOSSOM HOUSE SCHOOL,10441,12-Apr-24,18850,0,777,Non-Delegated Statements,170000              Education,A,2024,1
71,"Children, Schools and Family",BLOSSOM HOUSE SCHOOL,10448,12-Apr-24,12967.5,0,777,Non-Delegated Statements,170000              Education,A,2024,1
72,"Children, Schools and Family",BLOSSOM HOUSE SCHOOL,10457,12-Apr-24,16747.5,0,777,Non-Delegated Statements,170000              Education,A,2024,1
73,"Children, Schools and Family",BLOSSOM HOUSE SCHOOL,10466,12-Apr-24,15172.5,0,777,Non-Delegated Statements,170000              Education,A,2024,1
74,"Children, Schools and Family",BLOSSOM HOUSE SCHOOL,10470,12-Apr-24,21612.5,0,777,Non-Delegated Statements,170000              Education,A,2024,1
75,"Children, Schools and Family",BLOSSOM HOUSE SCHOOL,10478,12-Apr-24,13807.5,0,777,Non-Delegated Statements,170000              Education,A,2024,1
76,"Children, Schools and Family",BLOSSOM HOUSE SCHOOL,10496,12-Apr-24,18112.5,0,777,Non-Delegated Statements,170000              Education,A,2024,1
77,"Children, Schools and Family",BLOSSOM HOUSE SCHOOL,10489,12-Apr-24,18112.5,0,777,Non-Delegated Statements,170000              Education,A,2024,1
78,"Children, Schools and Family",BLOSSOM HOUSE SCHOOL,10430,12-Apr-24,16012.5,0,777,Non-Delegated Statements,170000              Education,A,2024,1
79,"Children, Schools and Family",BLOSSOM HOUSE SCHOOL,10439,12-Apr-24,18850,0,777,Non-Delegated Statements,170000              Education,A,2024,1
80,"Children, Schools and Family",BLOSSOM HOUSE SCHOOL,10447,12-Apr-24,16012.5,0,777,Non-Delegated Statements,170000              Education,A,2024,1
81,"Children, Schools and Family",BLOSSOM HOUSE SCHOOL,10465,12-Apr-24,17587.5,0,777,Non-Delegated Statements,170000              Education,A,2024,1
82,"Children, Schools and Family",BLOSSOM HOUSE SCHOOL,10477,12-Apr-24,18850,0,777,Non-Delegated Statements,170000              Education,A,2024,1
83,"Children, Schools and Family",BLOSSOM HOUSE SCHOOL,10484,12-Apr-24,13807.5,0,777,Non-Delegated Statements,170000              Education,A,2024,1
84,"Children, Schools and Family",BLOSSOM HOUSE SCHOOL,10435,12-Apr-24,16747.5,0,777,Non-Delegated Statements,170000              Education,A,2024,1
85,"Children, Schools and Family",BLOSSOM HOUSE SCHOOL,10473,12-Apr-24,18112.5,0,777,Non-Delegated Statements,170000              Education,A,2024,1
86,"Children, Schools and Family",BLOSSOM HOUSE SCHOOL,10425,12-Apr-24,12967.5,0,777,Non-Delegated Statements,170000              Education,A,2024,1
87,"Children, Schools and Family",BLOSSOM HOUSE SCHOOL,10485,12-Apr-24,18850,0,777,Non-Delegated Statements,170000              Education,A,2024,1
88,"Children, Schools and Family",BLOSSOM HOUSE SCHOOL,10456,12-Apr-24,18112.5,0,777,Non-Delegated Statements,170000              Education,A,2024,1
89,Corporate Services,Quadient,93152900,19-Apr-24,2139.54,356.59,793,Post services,300000              Mail Services,A,2024,1
90,Corporate Services,Quadient,840499112,19-Apr-24,11135.19,22,793,Post services,300000              Mail Services,A,2024,1
91,Corporate Services,The Wimbledon Guild of Social Welfare,INV-17263,16-Apr-24,990,0,802,Non-Local Election Expenses?,190000              Facilities & Management Services,A,2024,1
92,Unassigned,PERSEID SCHOOL,SCHOOLS 2425/1 A,08-Apr-24,741895.3,0,983,Schools,170000              Education,A,2024,1
93,Community and Housing,MOUNT CARMEL HOSTEL,1148364,19-Apr-24,1782.86,0,1053,Substance Misuse Alcoholl,321017              Nursing & Residential Care Homes,A,2024,1
94,Community and Housing,SUTTON NURSING HOMES LTD,1145165,10-Apr-24,3381.16,0,1208,Older People Placements - East,321017              Nursing & Residential Care Homes,A,2024,1
95,Community and Housing,SUTTON NURSING HOMES LTD,1145510,10-Apr-24,3381.16,0,1208,Older People Placements - East,321017              Nursing & Residential Care Homes,A,2024,1
96,Environment and Regeneration,LONDON BOROUGH OF CROYDON,3025510,29-Apr-24,74398.2,12399.7,1258,PARK OPERATIONS,OLA,A,2024,1
97,Environment and Regeneration,LONDON BOROUGH OF CROYDON,3025546,29-Apr-24,74398.2,12399.7,1258,PARK OPERATIONS,OLA,A,2024,1
98,Environment and Regeneration,LONDON BOROUGH OF CROYDON,3025514,29-Apr-24,74398.2,12399.7,1258,PARK OPERATIONS,OLA,A,2024,1
99,Environment and Regeneration,LONDON BOROUGH OF CROYDON,3025531,29-Apr-24,150905.33,25150.89,1258,PARK OPERATIONS,OLA,A,2024,1
100,Environment and Regeneration,LONDON BOROUGH OF CROYDON,3025515,24-Apr-24,8887.67,0,1258,Greenspaces Team (General),OLA,A,2024,1
101,Environment and Regeneration,LONDON BOROUGH OF CROYDON,3025533,26-Apr-24,436925.04,72820.84,1258,PARK OPERATIONS,OLA,A,2024,1
102,Environment and Regeneration,LONDON BOROUGH OF CROYDON,3025547,26-Apr-24,345612.75,56143.49,1258,Greenspaces Team (General),OLA,A,2024,1
103,Unassigned,MELROSE SPECIAL SCHOOL,SCHOOLS 2425/1 A,08-Apr-24,728027.21,0,1393,Schools,170000              Education,A,2024,1
104,Unassigned,WILLIAM MORRIS PRIMARY SCHOOL,SCHOOLS 2425/1 A,08-Apr-24,262290.02,0,1416,Schools,170000              Education,A,2024,1
105,Unassigned,ST THOMAS OF CANTERBURY PRIMARY,SCHOOLS 2425/1 A,08-Apr-24,322707.75,0,1418,Schools,170000              Education,A,2024,1
106,Unassigned,PRIORY C OF E MIDDLE SCHOOL,SCHOOLS 2425/1 A,08-Apr-24,165976.19,0,1420,Schools,170000              Education,A,2024,1
107,Unassigned,LIBERTY PRIMARY SCHOOL,SCHOOLS 2425/1 A,08-Apr-24,316158.72,0,1424,Schools,170000              Education,A,2024,1
108,Unassigned,HILLCROSS PRIMARY SCHOOL,SCHOOLS 2425/1 A,08-Apr-24,300566.73,0,1425,Schools,170000              Education,A,2024,1
109,Unassigned,CRANMER PRIMARY SCHOOL,SCHOOLS 2425/1 A,08-Apr-24,604242.14,0,1426,Schools,170000              Education,A,2024,1
110,"Children, Schools and Family",CRANMER PRIMARY SCHOOL,PKINGNURSERYFEES,24-Apr-24,952,0,1426,PupilPremium- Virtual School,170000              Education,A,2024,1
111,"Children, Schools and Family",CRANMER PRIMARY SCHOOL,CINV000619,29-Apr-24,3707,0,1426,Quality Improvement,170000              Education,A,2024,1
112,Unassigned,WIMBLEDON COLLEGE SCHOOL,SCHOOLS 2425/1 A,08-Apr-24,1257257.35,0,1428,Schools,170000              Education,A,2024,1
113,Unassigned,URSULINE HIGH SCHOOL,SCHOOLS 2425/1 A,08-Apr-24,1176524.15,0,1429,Schools,170000              Education,A,2024,1
114,Unassigned,RUTLISH SCHOOL,SCHOOLS 2425/1 A,08-Apr-24,1416847.82,0,1431,Schools,170000              Education,A,2024,1
115,Unassigned,RICARDS LODGE SECONDARY SCHOOL,SCHOOLS 2425/1 A,08-Apr-24,1254239.38,0,1433,Schools,170000              Education,A,2024,1
116,Unassigned,WIMBLEDON PARK PRIMARY SCHOOL,SCHOOLS 2425/1 A,08-Apr-24,426206.4,0,1436,Schools,170000              Education,A,2024,1
117,Unassigned,ST TERESA'S R C PRIMARY SCHOOL,SCHOOLS 2425/1 A,08-Apr-24,345632.06,0,1438,Schools,170000              Education,A,2024,1
118,Unassigned,ST MARYS CATHOLIC PRIMARY SCHOOL,SCHOOLS 2425/1 A,08-Apr-24,300430.74,0,1439,Schools,170000              Education,A,2024,1
119,Unassigned,ST MARKS PRIMARY SCHOOL,SCHOOLS 2425/1 A,08-Apr-24,205752.66,0,1440,Schools,170000              Education,A,2024,1
120,Unassigned,ST JOHN FISHER RC PRIMARY SCH.,SCHOOLS 2425/1 A,08-Apr-24,299647.61,0,1441,Schools,170000              Education,A,2024,1
121,Unassigned,SINGLEGATE PRIMARY SCHOOL,SCHOOLS 2425/1 A,08-Apr-24,460799.68,0,1442,Schools,170000              Education,A,2024,1
122,Unassigned,SHERWOOD PRIMARY SCHOOL,SCHOOLS 2425/1 A,08-Apr-24,252792.96,0,1443,Schools,170000              Education,A,2024,1
123,Unassigned,POPLAR PRIMARY SCHOOL,SCHOOLS 2425/1 A,08-Apr-24,468879.18,0,1444,Schools,170000              Education,A,2024,1
124,"Children, Schools and Family",POPLAR PRIMARY SCHOOL,PO27032024,19-Apr-24,13881.51,0,1444,School Improvement GeneralFund,170000              Education,A,2024,1
125,"Children, Schools and Family",POPLAR PRIMARY SCHOOL,SCHAWANTUTORING,18-Apr-24,1872,0,1444,PupilPremium- Virtual School,170000              Education,A,2024,1
126,Unassigned,PELHAM PRIMARY SCHOOL,SCHOOLS 2425/1 A,08-Apr-24,329619.51,0,1445,Schools,170000              Education,A,2024,1
127,Unassigned,MORDEN PRIMARY SCHOOL,SCHOOLS 2425/1 A,08-Apr-24,216504.85,0,1446,Schools,170000              Education,A,2024,1
128,Unassigned,MERTON PARK PRIMARY SCHOOL,SCHOOLS 2425/1 A,08-Apr-24,167258.68,0,1447,Schools,170000              Education,A,2024,1
129,Unassigned,MERTON ABBEY PRIMARY SCHOOL,SCHOOLS 2425/1 A,08-Apr-24,227149.36,0,1448,Schools,170000              Education,A,2024,1
130,Unassigned,LONESOME PRIMARY SCHOOL,SCHOOLS 2425/1 A,08-Apr-24,301838.88,0,1450,Schools,170000              Education,A,2024,1
131,Unassigned,LINKS PRIMARY SCHOOL,SCHOOLS 2425/1 A,08-Apr-24,290037.69,0,1451,Schools,170000              Education,A,2024,1
132,Unassigned,JOSEPH HOOD PRIMARY SCHOOL,SCHOOLS 2425/1 A,08-Apr-24,277741,0,1452,Schools,170000              Education,A,2024,1
133,"Children, Schools and Family",JOSEPH HOOD PRIMARY SCHOOL,ECLANCYBREAKFAST,18-Apr-24,605,0,1452,PupilPremium- Virtual School,170000              Education,A,2024,1
134,"Children, Schools and Family",JOSEPH HOOD PRIMARY SCHOOL,JH24/25-05,25-Apr-24,866,0,1452,MIASS Info Advice and Support,170000              Education,A,2024,1
135,Unassigned,HOLY TRINITY C OF E PRIMARY SCHOOL,SCHOOLS 2425/1 A,08-Apr-24,302292.52,0,1453,Schools,170000              Education,A,2024,1
136,Unassigned,HOLLYMOUNT PRIMARY SCHOOL,SCHOOLS 2425/1 A,08-Apr-24,307210.92,0,1454,Schools,170000              Education,A,2024,1
137,Unassigned,HATFEILD PRIMARY SCHOOL,SCHOOLS 2425/1 A,08-Apr-24,357390.75,0,1455,Schools,170000              Education,A,2024,1
138,Unassigned,HASLEMERE PRIMARY SCHOOL,SCHOOLS 2425/1 A,08-Apr-24,318188.77,0,1456,Schools,170000              Education,A,2024,1
139,Unassigned,GARFIELD PRIMARY SCHOOL,SCHOOLS 2425/1 A,08-Apr-24,239629.98,0,1460,Schools,170000              Education,A,2024,1
140,Unassigned,BOND PRIMARY SCHOOL,SCHOOLS 2425/1 A,08-Apr-24,267243.22,0,1462,Schools,170000              Education,A,2024,1
141,Unassigned,BISHOP GILPIN C OF E PRIMARY,SCHOOLS 2425/1 A,08-Apr-24,295316.02,0,1463,Schools,170000              Education,A,2024,1
142,Unassigned,ABBOTSBURY PRIMARY SCHOOL,SCHOOLS 2425/1 A,08-Apr-24,328580.07,0,1467,Schools,170000              Education,A,2024,1
143,"Children, Schools and Family",ABBOTSBURY PRIMARY SCHOOL,ABBO10SF,19-Apr-24,1170,0,1467,PupilPremium- Virtual School,170000              Education,A,2024,1
144,Unassigned,WIMBLEDON CHASE PRIMARY SCHOOL,SCHOOLS 2425/1 A,08-Apr-24,516196.53,0,1469,Schools,170000              Education,A,2024,1
145,Unassigned,GORRINGE PARK PRIMARY SCHOOL,SCHOOLS 2425/1 A,08-Apr-24,319674.74,0,1470,Schools,170000              Education,A,2024,1
146,Unassigned,RAYNES PARK SECONDARY SCHOOL,SCHOOLS 2425/1 A,08-Apr-24,1369731,0,1471,Schools,170000              Education,A,2024,1
147,Unassigned,SS PETER AND PAUL RC PRIMARY SCH,SCHOOLS 2425/1 A,08-Apr-24,208477.31,0,1472,Schools,170000              Education,A,2024,1
148,Unassigned,DUNDONALD PRIMARY SCHOOL,SCHOOLS 2425/1 A,08-Apr-24,304642.78,0,1473,Schools,170000              Education,A,2024,1
149,"Children, Schools and Family",MERTON MENCAP,4727,19-Apr-24,25415,0,1519, Statementing-Transport,200000              Financial Services,A,2024,1
150,Unassigned,ALL SAINTS C OF E PRIMARY SCH,SCHOOLS 2425/1 A,08-Apr-24,276674,0,1680,Schools,170000              Education,A,2024,1
151,"Children, Schools and Family",REDACTED PERSONAL DATA,1143284,05-Apr-24,548.09,0,1801,Placements Under 18,321100              Social Community Care Supplies & Services - Children,R,2024,1
152,"Children, Schools and Family",REDACTED PERSONAL DATA,1146227,12-Apr-24,548.09,0,1801,Placements Under 18,321100              Social Community Care Supplies & Services - Children,R,2024,1
153,"Children, Schools and Family",REDACTED PERSONAL DATA,1148296,19-Apr-24,548.09,0,1801,Placements Under 18,321100              Social Community Care Supplies & Services - Children,R,2024,1
154,"Children, Schools and Family",REDACTED PERSONAL DATA,1151709,26-Apr-24,952.78,0,1801,Placements Over 18,321100              Social Community Care Supplies & Services - Children,R,2024,1
155,"Children, Schools and Family",REDACTED PERSONAL DATA,1151736,26-Apr-24,548.09,0,1801,Placements Under 18,321100              Social Community Care Supplies & Services - Children,R,2024,1
156,Corporate Services,SHAW AND SONS LTD,293811,01-May-24,4626.36,771.06,1850,Non-Local Election Expenses?,340000              Stationery,A,2024,1
157,Corporate Services,SHAW AND SONS LTD,293823,01-May-24,1599.3,266.55,1850,Non-Local Election Expenses?,340000              Stationery,A,2024,1
158,"Children, Schools and Family",THE CHILDRENS TRUST,7928,29-Apr-24,7885.56,0,1980,Non-Delegated Statements,170000              Education,A,2024,1
159,"Children, Schools and Family",THE CHILDRENS TRUST,7932,29-Apr-24,9261.5,0,1980,Non-Delegated Statements,170000              Education,A,2024,1
160,Community and Housing,THE FRANCES TAYLOR FOUNDATION,1145225,10-Apr-24,4136.08,0,2011,Learning Disabilities Placemnt,321017              Nursing & Residential Care Homes,A,2024,1
161,Community and Housing,THE FRANCES TAYLOR FOUNDATION,1145532,10-Apr-24,8113.92,0,2011,Learning Disabilities Placemnt,321017              Nursing & Residential Care Homes,A,2024,1
162,"Children, Schools and Family",ST JOSEPHS SCHOOL,T0004700,05-Apr-24,42032.36,0,2017,Non-Delegated Statements,170000              Education,A,2024,1
163,"Children, Schools and Family",ST JOSEPHS SCHOOL,T0004749,05-Apr-24,41810.62,0,2017,Non-Delegated Statements,170000              Education,A,2024,1
164,Unassigned,SACRED HEART R C PRIMARY SCH.,SCHOOLS 2425/1 A,08-Apr-24,265810.4,0,2076,Schools,170000              Education,A,2024,1
165,Corporate Services,LONDON BOROUGH OF SUTTON,SLLPINCOMEMI22,09-Apr-24,9800,0,2313,SLLP Client Income,OLA,A,2024,1
166,Community and Housing,FREEWAYS TRUST LTD,1145127,10-Apr-24,2856.85,0,2474,Learning Disabilities Placemnt,321017              Nursing & Residential Care Homes,A,2024,1
167,Unassigned,WIMBLEDON AND PUTNEY COMMON,2.02404E+11,25-Apr-24,46126.3,0,10566,WPCC,PRECEPT,A,2024,1
168,Community and Housing,CLOYDA LTD,1145396,10-Apr-24,4000,0,10762,Older People Placements - East,321017              Nursing & Residential Care Homes,A,2024,1
169,Community and Housing,CHEGWORTH N.H. (BAYSWIFT LTD),1145356,10-Apr-24,3056.4,0,11057,Learning Disabilities Placemnt,321000              Social Community Care Supplies & Services - Adult,A,2024,1
170,"Children, Schools and Family",REDACTED PERSONAL DATA,1143247,05-Apr-24,692.46,0,11130,Placements Under 18,321100              Social Community Care Supplies & Services - Children,R,2024,1
171,"Children, Schools and Family",REDACTED PERSONAL DATA,1146190,12-Apr-24,692.46,0,11130,Placements Under 18,321100              Social Community Care Supplies & Services - Children,R,2024,1
172,"Children, Schools and Family",REDACTED PERSONAL DATA,1148259,19-Apr-24,692.46,0,11130,Placements Under 18,321100              Social Community Care Supplies & Services - Children,R,2024,1
173,"Children, Schools and Family",REDACTED PERSONAL DATA,1151698,26-Apr-24,692.46,0,11130,Placements Under 18,321100              Social Community Care Supplies & Services - Children,R,2024,1
174,Community and Housing,Queens Court,1145389,10-Apr-24,3380.32,0,12747,Older People Placements - East,321017              Nursing & Residential Care Homes,A,2024,1
175,Community and Housing,Queens Court,1145430,10-Apr-24,8121.16,0,12747,Older People Placements - East,321017              Nursing & Residential Care Homes,A,2024,1
176,Community and Housing,Queens Court,1145492,10-Apr-24,4260.6,0,12747,Older People Placements - East,321017              Nursing & Residential Care Homes,A,2024,1
177,Community and Housing,Queens Court,1152712,30-Apr-24,2200,0,12747,Older People Placements - East,321017              Nursing & Residential Care Homes,A,2024,1
178,Community and Housing,ASHCROFT CARE SERVICES,1145355,10-Apr-24,6092.64,0,13287,Learning Disabilities Placemnt,321017              Nursing & Residential Care Homes,A,2024,1
179,Community and Housing,SHARE COMMUNITY LTD,242163,19-Apr-24,900,0,13487,Learning Disabilities Placemnt,321017              Nursing & Residential Care Homes,A,2024,1
180,Community and Housing,SHARE COMMUNITY LTD,242166,19-Apr-24,600,0,13487,Learning Disabilities Placemnt,321017              Nursing & Residential Care Homes,A,2024,1
181,Community and Housing,SHARE COMMUNITY LTD,242143,19-Apr-24,1200,0,13487,Learning Disabilities Placemnt,321017              Nursing & Residential Care Homes,A,2024,1
182,Community and Housing,SHARE COMMUNITY LTD,242146,19-Apr-24,900,0,13487,Learning Disabilities Placemnt,321017              Nursing & Residential Care Homes,A,2024,1
183,Community and Housing,SHARE COMMUNITY LTD,242132,19-Apr-24,624,0,13487,Learning Disabilities Placemnt,321017              Nursing & Residential Care Homes,A,2024,1
184,Community and Housing,SHARE COMMUNITY LTD,242134,19-Apr-24,900,0,13487,Learning Disabilities Placemnt,321017              Nursing & Residential Care Homes,A,2024,1
185,Community and Housing,SHARE COMMUNITY LTD,242140,19-Apr-24,624,0,13487,Learning Disabilities Placemnt,321017              Nursing & Residential Care Homes,A,2024,1
186,Community and Housing,SHARE COMMUNITY LTD,242154,26-Apr-24,900,0,13487,Learning Disabilities Placemnt,321017              Nursing & Residential Care Homes,A,2024,1
187,Community and Housing,SHARE COMMUNITY LTD,242162,26-Apr-24,624,0,13487,Learning Disabilities Placemnt,321017              Nursing & Residential Care Homes,A,2024,1
188,Community and Housing,SHARE COMMUNITY LTD,250163,30-Apr-24,900,0,13487,Learning Disabilities Placemnt,321017              Nursing & Residential Care Homes,A,2024,1
189,Community and Housing,SHARE COMMUNITY LTD,250134,30-Apr-24,624,0,13487,Learning Disabilities Placemnt,321017              Nursing & Residential Care Homes,A,2024,1
190,Community and Housing,SHARE COMMUNITY LTD,250136,30-Apr-24,900,0,13487,Learning Disabilities Placemnt,321017              Nursing & Residential Care Homes,A,2024,1
191,Community and Housing,SHARE COMMUNITY LTD,250148,30-Apr-24,900,0,13487,Learning Disabilities Placemnt,321017              Nursing & Residential Care Homes,A,2024,1
192,Community and Housing,SHARE COMMUNITY LTD,250145,30-Apr-24,1200,0,13487,Learning Disabilities Placemnt,321017              Nursing & Residential Care Homes,A,2024,1
193,Community and Housing,SHARE COMMUNITY LTD,250156,30-Apr-24,900,0,13487,Learning Disabilities Placemnt,321017              Nursing & Residential Care Homes,A,2024,1
194,Community and Housing,SHARE COMMUNITY LTD,250162,30-Apr-24,624,0,13487,Learning Disabilities Placemnt,321017              Nursing & Residential Care Homes,A,2024,1
195,Community and Housing,SHARE COMMUNITY LTD,250166,30-Apr-24,600,0,13487,Learning Disabilities Placemnt,321017              Nursing & Residential Care Homes,A,2024,1
196,Community and Housing,FITZROY SUPPORT,1145465,10-Apr-24,9010.16,0,13535,Learning Disabilities Placemnt,321017              Nursing & Residential Care Homes,A,2024,1
197,Community and Housing,CANTERBURY OAST TRUST LTD,1145139,10-Apr-24,5492.64,0,13566,Learning Disabilities Placemnt,321017              Nursing & Residential Care Homes,A,2024,1
198,Community and Housing,MACINTYRE,1145148,10-Apr-24,6235.64,0,13585,Learning Disabilities Placemnt,321017              Nursing & Residential Care Homes,A,2024,1
199,Community and Housing,MACINTYRE,1145428,10-Apr-24,6120.88,0,13585,Older People Placements - East,321017              Nursing & Residential Care Homes,A,2024,1
200,Community and Housing,MACINTYRE,1145463,10-Apr-24,5235.4,0,13585,Learning Disabilities Placemnt,321017              Nursing & Residential Care Homes,A,2024,1
201,Community and Housing,KENT AUTISTIC TRUST,1145437,10-Apr-24,8548,0,13670,Learning Disabilities Placemnt,321017              Nursing & Residential Care Homes,A,2024,1
202,Community and Housing,WANDLE HOUSING ASSOCIATION LTD,AIN0360,16-Apr-24,1748.71,0,14419,Riverside Res Home,250000              Housing Management,A,2024,1
203,Community and Housing,WANDLE HOUSING ASSOCIATION LTD,AN1G361,12-Apr-24,37163,0,14419,Riverside Res Home,250000              Housing Management,A,2024,1
204,Community and Housing,UNITED RESPONSE,1142061,04-Apr-24,2238.53,373.09,14616,Learning Disabilities Placemnt,321000              Social Community Care Supplies & Services - Adult,A,2024,1
205,Community and Housing,UNITED RESPONSE,1142138,04-Apr-24,2795.9,465.98,14616,Learning Disabilities Placemnt,321000              Social Community Care Supplies & Services - Adult,A,2024,1
206,Community and Housing,UNITED RESPONSE,VSMR897205BA,17-Apr-24,5248.99,874.83,14616,Learning Disabilities Placemnt,321000              Social Community Care Supplies & Services - Adult,A,2024,1
207,Community and Housing,UNITED RESPONSE,VSMR897205BO,17-Apr-24,5248.99,874.83,14616,Learning Disabilities Placemnt,321000              Social Community Care Supplies & Services - Adult,A,2024,1
208,Community and Housing,UNITED RESPONSE,VSMR897205ST,17-Apr-24,5248.99,874.83,14616,Learning Disabilities Placemnt,321000              Social Community Care Supplies & Services - Adult,A,2024,1
209,Community and Housing,UNITED RESPONSE,VSMR897205SV,17-Apr-24,5248.99,874.83,14616,Learning Disabilities Placemnt,321000              Social Community Care Supplies & Services - Adult,A,2024,1
210,Community and Housing,UNITED RESPONSE,VSMR897205RW,17-Apr-24,5248.99,874.83,14616,Learning Disabilities Placemnt,321000              Social Community Care Supplies & Services - Adult,A,2024,1
211,Environment and Regeneration,THE WANDLE INDUSTRIAL MUSEUM,1 GRT APRIL 24,15-Apr-24,2325,0,14885,Grants Programme,200000              Financial Services,A,2024,1
212,Community and Housing,Spectrum Innovations,INV-57061,25-Apr-24,822,137,15550,Libraries Service-Civic Centre,170000              Education,A,2024,1
213,Environment and Regeneration,KINGSTON CORPORATION,37718101,16-Apr-24,4700,0,21573,Sen Mgt - Contingency,180000              Environmental Services,A,2024,1
214,Corporate Services,KINGSTON CORPORATION,M12LEGAL23/24,09-Apr-24,14350,0,21573,SLLP Client Income,180000              Environmental Services,A,2024,1
215,Environment and Regeneration,KINGSTON CORPORATION,37732449,01-May-24,18137.18,0,21573,Garden Waste Service,180000              Environmental Services,A,2024,1
216,Environment and Regeneration,KINGSTON CORPORATION,37732473,01-May-24,8939.35,0,21573,Food Waste Service,180000              Environmental Services,A,2024,1
217,Environment and Regeneration,KINGSTON CORPORATION,37732503,01-May-24,22297.6,0,21573,Waste Disposal,180000              Environmental Services,A,2024,1
218,Environment and Regeneration,NORTH EAST MITCHAM COMM ASSOC,1 GRT APRIL 24,16-Apr-24,21945,0,27999,Grants Programme,321100              Social Community Care Supplies & Services - Children,A,2024,1
219,Environment and Regeneration,MITCHAM COMMON CONSERVATORS,MP9,18-Apr-24,1004.5,0,28571,Parks & Recreation Grounds,190000              Facilities & Management Services,A,2024,1
220,Environment and Regeneration,MITCHAM COMMON CONSERVATORS,MERTON9,18-Apr-24,3669.5,0,28571,Parks & Recreation Grounds,190000              Facilities & Management Services,A,2024,1
221,Corporate Services,CIPFA,3172212,05-Apr-24,3900,650,29582,Commercial Services,260000              Human Resources,A,2024,1
222,Community and Housing,TRINITY COURT NURSING HOME,1145191,10-Apr-24,3239.36,0,30306,Older People Placements - East,321017              Nursing & Residential Care Homes,A,2024,1
223,Community and Housing,TRINITY COURT NURSING HOME,1145327,10-Apr-24,3239.36,0,30306,Older People Placements - East,321017              Nursing & Residential Care Homes,A,2024,1
224,Community and Housing,TRINITY COURT NURSING HOME,1145360,10-Apr-24,3239.36,0,30306,Older People Placements - East,321017              Nursing & Residential Care Homes,A,2024,1
225,Community and Housing,TRINITY COURT NURSING HOME,1145376,10-Apr-24,4118.2,0,30306,Phys/Sens Placements - East,321017              Nursing & Residential Care Homes,A,2024,1
226,Community and Housing,TRINITY COURT NURSING HOME,1145436,10-Apr-24,3239.36,0,30306,Older People Placements - East,321017              Nursing & Residential Care Homes,A,2024,1
227,Community and Housing,TRINITY COURT NURSING HOME,1145558,10-Apr-24,3239.36,0,30306,Older People Placements - East,321017              Nursing & Residential Care Homes,A,2024,1
228,Community and Housing,TRINITY COURT NURSING HOME,1145560,10-Apr-24,3239.36,0,30306,Older People Placements - East,321017              Nursing & Residential Care Homes,A,2024,1
229,Community and Housing,TRINITY COURT NURSING HOME,1145562,10-Apr-24,3239.36,0,30306,Older People Placements - East,321017              Nursing & Residential Care Homes,A,2024,1
230,Community and Housing,HAYDON PARK LODGE,1145281,10-Apr-24,3485,0,31434,Learning Disabilities Placemnt,321017              Nursing & Residential Care Homes,A,2024,1
231,Community and Housing,HAYDON PARK LODGE,1145305,10-Apr-24,4591.44,0,31434,Learning Disabilities Placemnt,321017              Nursing & Residential Care Homes,A,2024,1
232,Community and Housing,HAYDON PARK LODGE,1145425,10-Apr-24,4420.08,0,31434,Learning Disabilities Placemnt,321017              Nursing & Residential Care Homes,A,2024,1
233,Community and Housing,HAYDON PARK LODGE,1145469,10-Apr-24,7000,0,31434,Learning Disabilities Placemnt,321017              Nursing & Residential Care Homes,A,2024,1
234,Community and Housing,Barchester Healthcare Wimbledon Beaumont,147029906,09-Apr-24,2773.28,0,33384,Phys/Sens Placements - East,321017              Nursing & Residential Care Homes,A,2024,1
235,Community and Housing,Barchester Healthcare Wimbledon Beaumont,1145231,10-Apr-24,4056,0,33384,Older People Placements - East,321017              Nursing & Residential Care Homes,A,2024,1
236,Community and Housing,Barchester Healthcare Wimbledon Beaumont,147030033,15-Apr-24,2773.28,0,33384,Phys/Sens Placements - East,321017              Nursing & Residential Care Homes,A,2024,1
237,Community and Housing,Barchester Healthcare Wimbledon Beaumont,147030159,15-Apr-24,2773.28,0,33384,Phys/Sens Placements - East,321017              Nursing & Residential Care Homes,A,2024,1
238,Community and Housing,Barchester Healthcare Wimbledon Beaumont,147030271,15-Apr-24,2773.28,0,33384,Phys/Sens Placements - East,321017              Nursing & Residential Care Homes,A,2024,1
239,"Children, Schools and Family",SOUTH MITCHAM COMMUNITY ASS,SMCA-LBM0424,10-Apr-24,1130,0,33871, Youth Service,190000              Facilities & Management Services,A,2024,1
240,Environment and Regeneration,SOUTH MITCHAM COMMUNITY ASS,1 GRT APRIL 24,16-Apr-24,22740,0,33871,Grants Programme,190000              Facilities & Management Services,A,2024,1
241,Corporate Services,SOUTH MITCHAM COMMUNITY ASS,ES/MER/MAY224,16-Apr-24,1803.5,0,33871,Non-Local Election Expenses?,190000              Facilities & Management Services,A,2024,1
242,Community and Housing,COMFORT CARE SERVICES (UK) LTD,SU0091/284,08-Apr-24,871.36,0,34932,Mental Health Placements,321000              Social Community Care Supplies & Services - Adult,A,2024,1
243,"Children, Schools and Family",CASTLE KINDERGARTEN,P1 24 UPFRONTPAY,05-Apr-24,34165.56,0,35082,EARLY YEARS NURSERY GRANTS,170000              Education,A,2024,1
244,"Children, Schools and Family",CROWN KINDERGARTEN,P1 24 UPFRONTPAY,05-Apr-24,10356.48,0,35084,EARLY YEARS NURSERY GRANTS,170000              Education,A,2024,1
245,"Children, Schools and Family",JIGSAW DAY NURSERY,P1 24 UPFRONTPAY,05-Apr-24,49443.84,0,35097,EARLY YEARS NURSERY GRANTS,170000              Education,A,2024,1
246,"Children, Schools and Family",NURSERY ON THE GREEN,P1 24 UPFRONTPAY,05-Apr-24,25908.48,0,35101,EARLY YEARS NURSERY GRANTS,170000              Education,A,2024,1
247,"Children, Schools and Family",URSULINE PREPARATORY SCHOOL,P1 24 UPFRONTPAY,05-Apr-24,17846.4,0,35109,EARLY YEARS NURSERY GRANTS,170000              Education,A,2024,1
248,"Children, Schools and Family",WILLINGTON SCH.FOUNDATION LTD,P1 24 UPFRONTPAY,05-Apr-24,13590.72,0,35111,EARLY YEARS NURSERY GRANTS,170000              Education,A,2024,1
249,Community and Housing,ROYAL MASONIC BENEVOLENT INST.,1145266,10-Apr-24,3200,0,35867,Older People Placements - East,321017              Nursing & Residential Care Homes,A,2024,1
250,Unassigned,ST MATTHEW'S C OF E PRIMARY,SCHOOLS 2425/1 A,08-Apr-24,145096.19,0,36050,Schools,170000              Education,A,2024,1
251,"Children, Schools and Family",REDACTED PERSONAL DATA,1146099,12-Apr-24,563.29,0,36376,Placements Under 18,321100              Social Community Care Supplies & Services - Children,R,2024,1
252,Corporate Services,MORDEN BAPTIST CHURCH,489,10-Apr-24,1000,0,37583,Non-Local Election Expenses?,190000              Facilities & Management Services,A,2024,1
253,"Children, Schools and Family",LITTLE LEARNERS,P1 24 UPFRONTPAY,05-Apr-24,14057.86,0,39413,EARLY YEARS NURSERY GRANTS,170000              Education,A,2024,1
254,Corporate Services,VERSAPAK INT LTD,SI195473,25-Apr-24,1617,269.5,44801,Non-Local Election Expenses?,340000              Stationery,A,2024,1
255,Corporate Services,VERSAPAK INT LTD,SI195594,02-May-24,1678.32,279.72,44801,Non-Local Election Expenses?,340000              Stationery,A,2024,1
256,Community and Housing,ROYAL HOSP FOR NEURO-DISAB,1145341,29-Apr-24,8053.08,0,46286,Older People Placements - East,321000              Social Community Care Supplies & Services - Adult,A,2024,1
257,Community and Housing,JESMUND CARE LTD,1145511,10-Apr-24,3600,0,46751,Older People Placements - East,321017              Nursing & Residential Care Homes,A,2024,1
258,Environment and Regeneration,CAPITA BUSINESS SERVICES LTD,6004169819,09-Apr-24,1954.8,325.8,47966,Operational Running Costs,270000              Information Communication Technology,A,2024,1
259,Environment and Regeneration,CAPITA BUSINESS SERVICES LTD,6004169820,09-Apr-24,3350.4,558.4,47966,Operational Running Costs,270000              Information Communication Technology,A,2024,1
260,Environment and Regeneration,COLLIERS WOOD COMMUNITY ASSOC,1 GRT APR 24,15-Apr-24,7260,0,48016,Grants Programme,200000              Financial Services,A,2024,1
261,Community and Housing,REDACTED PERSONAL DATA,1149568,22-Apr-24,6021.4,0,50448,Older People Placements - East,DIRECT PAYMENTS,R,2024,1
262,Community and Housing,LINKAGE COMMUNITY TR.LONG-STAY,1145418,10-Apr-24,3624,0,52552,Learning Disabilities Placemnt,321017              Nursing & Residential Care Homes,A,2024,1
263,"Children, Schools and Family",HASLEMERE HOUSE DAY NURSERY,P1 24 UPFRONTPAY,05-Apr-24,51926.4,0,55612,EARLY YEARS NURSERY GRANTS,170000              Education,A,2024,1
264,Corporate Services,PHS GROUP,69009569A,05-Apr-24,1933.87,322.31,55893,Buildings Maintenance,110000              Catering,A,2024,1
265,Corporate Services,PHS GROUP,70370580A,10-Apr-24,2285.88,380.98,55893,Buildings Maintenance,110000              Catering,A,2024,1
266,Community and Housing,PARK LODGE,1145269,10-Apr-24,2871.47,0,56878,Learning Disabilities Placemnt,321017              Nursing & Residential Care Homes,A,2024,1
267,Community and Housing,PARK LODGE,1145358,10-Apr-24,3026.8,0,56878,Learning Disabilities Placemnt,321017              Nursing & Residential Care Homes,A,2024,1
268,Unassigned,CRICKET GREEN SCHOOL,SCHOOLS 2425/1 A,08-Apr-24,884836.06,0,57057,Schools,170000              Education,A,2024,1
269,Community and Housing,KENWARD TRUST,1145270,10-Apr-24,4500,0,57058,ASC - Substance Misuse - Drugs,321100              Social Community Care Supplies & Services - Children,A,2024,1
270,Corporate Services,JADE SECURITY SERVICE LTD,7306,01-May-24,2187.22,364.54,57563,Cash Collections,200000              Financial Services,A,2024,1
271,"Children, Schools and Family",CANBURY SCHOOL LIMITED,51S1,15-Apr-24,11969.34,0,57830,Non-Delegated Statements,170000              Education,A,2024,1
272,"Children, Schools and Family",CANBURY SCHOOL LIMITED,5140,15-Apr-24,8579.34,0,57830,Non-Delegated Statements,170000              Education,A,2024,1
273,"Children, Schools and Family",CANBURY SCHOOL LIMITED,5142,15-Apr-24,12196.01,0,57830,Non-Delegated Statements,170000              Education,A,2024,1
274,"Children, Schools and Family",CANBURY SCHOOL LIMITED,5141,15-Apr-24,11219.33,0,57830,Non-Delegated Statements,170000              Education,A,2024,1
275,Community and Housing,WALSINGHAM,1145241,10-Apr-24,5903.77,0,58466,Learning Disabilities Placemnt,321017              Nursing & Residential Care Homes,A,2024,1
276,Community and Housing,WALSINGHAM,1145294,10-Apr-24,7221.64,0,58466,Learning Disabilities Placemnt,321017              Nursing & Residential Care Homes,A,2024,1
277,Community and Housing,WALSINGHAM,1145364,10-Apr-24,7292.52,0,58466,Learning Disabilities Placemnt,321017              Nursing & Residential Care Homes,A,2024,1
278,Community and Housing,WALSINGHAM,1145416,10-Apr-24,5767.02,0,58466,Learning Disabilities Placemnt,321017              Nursing & Residential Care Homes,A,2024,1
279,Community and Housing,WALSINGHAM,1145474,10-Apr-24,7991.72,0,58466,Learning Disabilities Placemnt,321017              Nursing & Residential Care Homes,A,2024,1
280,Community and Housing,HATS GROUP LTD,227471,05-Apr-24,2326.13,387.69,58532,Learning Disabilities Placemnt,360000              Passenger Transport,A,2024,1
281,Community and Housing,CARE UK,1145122,10-Apr-24,3504.04,0,58851,Older People Placements - East,321017              Nursing & Residential Care Homes,A,2024,1
282,Community and Housing,CARE UK,1145125,10-Apr-24,4321.16,0,58851,Older People Placements - East,321017              Nursing & Residential Care Homes,A,2024,1
283,Community and Housing,CARE UK,1145170,10-Apr-24,4321.16,0,58851,Older People Placements - East,321017              Nursing & Residential Care Homes,A,2024,1
284,Community and Housing,CARE UK,1145195,10-Apr-24,4039.72,0,58851,Older People Placements - East,321017              Nursing & Residential Care Homes,A,2024,1
285,Community and Housing,CARE UK,1145219,10-Apr-24,4039.72,0,58851,Older People Placements - East,321017              Nursing & Residential Care Homes,A,2024,1
286,Community and Housing,CARE UK,1145276,10-Apr-24,4321.16,0,58851,Older People Placements - East,321017              Nursing & Residential Care Homes,A,2024,1
287,Community and Housing,CARE UK,1145363,10-Apr-24,4560,0,58851,Older People Placements - East,321017              Nursing & Residential Care Homes,A,2024,1
288,Community and Housing,CARE UK,1145409,10-Apr-24,4321.16,0,58851,Older People Placements - East,321017              Nursing & Residential Care Homes,A,2024,1
289,Community and Housing,CARE UK,1145414,10-Apr-24,4321.16,0,58851,Older People Placements - East,321017              Nursing & Residential Care Homes,A,2024,1
290,Community and Housing,CARE UK,1145440,10-Apr-24,4321.16,0,58851,Older People Placements - East,321017              Nursing & Residential Care Homes,A,2024,1
291,Community and Housing,CARE UK,1145445,10-Apr-24,4300.12,0,58851,Older People Placements - East,321017              Nursing & Residential Care Homes,A,2024,1
292,Community and Housing,CARE UK,1145460,10-Apr-24,4039.72,0,58851,Older People Placements - East,321017              Nursing & Residential Care Homes,A,2024,1
293,Community and Housing,CARE UK,1145505,10-Apr-24,4340,0,58851,Older People Placements - East,321017              Nursing & Residential Care Homes,A,2024,1
294,Community and Housing,CARE UK,1145508,10-Apr-24,3504.04,0,58851,Older People Placements - East,321017              Nursing & Residential Care Homes,A,2024,1
295,Community and Housing,RUSHTON WORKWEAR LTD,56982,11-Apr-24,573.54,95.59,62131,Com Care Placement Contingency,140000              Clothing,A,2024,1
296,Community and Housing,EDE'S (U.K.) LTD,10780,30-Apr-24,735.59,122.6,62345,Glebelands,190000              Facilities & Management Services,A,2024,1
297,Environment and Regeneration,EDE'S (U.K.) LTD,30073,22-Apr-24,1263.6,210.6,62345,Parks & Recreation Grounds,190000              Facilities & Management Services,A,2024,1
298,Community and Housing,BARONS LODGE NURSING HOME,1144733,10-Apr-24,7842.32,0,62371,Mental Health Placements,321017              Nursing & Residential Care Homes,A,2024,1
299,Community and Housing,BARONS LODGE NURSING HOME,1145224,10-Apr-24,1861.88,0,62371,Older People Placements - East,321017              Nursing & Residential Care Homes,A,2024,1
300,Community and Housing,BARONS LODGE NURSING HOME,1145279,10-Apr-24,4730.6,0,62371,Older People Placements - East,321017              Nursing & Residential Care Homes,A,2024,1
301,Community and Housing,BARONS LODGE NURSING HOME,1145292,10-Apr-24,3603.44,0,62371,Older People Placements - East,321017              Nursing & Residential Care Homes,A,2024,1
302,Community and Housing,BARONS LODGE NURSING HOME,1145370,10-Apr-24,4730.6,0,62371,Older People Placements - East,321017              Nursing & Residential Care Homes,A,2024,1
303,Community and Housing,BARONS LODGE NURSING HOME,1145377,10-Apr-24,3799.68,0,62371,Mental Health Placements,321017              Nursing & Residential Care Homes,A,2024,1
304,Community and Housing,BARONS LODGE NURSING HOME,1145385,10-Apr-24,4557,0,62371,Mental Health Placements,321017              Nursing & Residential Care Homes,A,2024,1
305,Community and Housing,BARONS LODGE NURSING HOME,1145386,10-Apr-24,4730.6,0,62371,Older People Placements - East,321017              Nursing & Residential Care Homes,A,2024,1
306,Community and Housing,BARONS LODGE NURSING HOME,1145403,10-Apr-24,4800,0,62371,Older People Placements - East,321017              Nursing & Residential Care Homes,A,2024,1
307,Community and Housing,BARONS LODGE NURSING HOME,1145449,10-Apr-24,4360,0,62371,Mental Health Placements,321017              Nursing & Residential Care Homes,A,2024,1
308,Community and Housing,BARONS LODGE NURSING HOME,1145454,10-Apr-24,4730.6,0,62371,Older People Placements - East,321017              Nursing & Residential Care Homes,A,2024,1
309,Community and Housing,BARONS LODGE NURSING HOME,1145455,10-Apr-24,4130.8,0,62371,Learning Disabilities Placemnt,321017              Nursing & Residential Care Homes,A,2024,1
310,Community and Housing,BARONS LODGE NURSING HOME,1145475,10-Apr-24,5208,0,62371,Older People Placements - East,321017              Nursing & Residential Care Homes,A,2024,1
311,Community and Housing,BARONS LODGE NURSING HOME,1145500,10-Apr-24,3799.68,0,62371,Older People Placements - East,321017              Nursing & Residential Care Homes,A,2024,1
312,Community and Housing,BARONS LODGE NURSING HOME,1145547,10-Apr-24,2742.86,0,62371,Older People Placements - East,321017              Nursing & Residential Care Homes,A,2024,1
313,Community and Housing,BARONS LODGE NURSING HOME,1148369,19-Apr-24,741.2,0,62371,Older People Placements - East,321017              Nursing & Residential Care Homes,A,2024,1
314,Community and Housing,BARONS LODGE NURSING HOME,1152696,30-Apr-24,2057.14,0,62371,Older People Placements - East,321017              Nursing & Residential Care Homes,A,2024,1
315,Community and Housing,BARONS LODGE NURSING HOME,1152714,30-Apr-24,25885.71,0,62371,Mental Health Placements,321017              Nursing & Residential Care Homes,A,2024,1
316,Community and Housing,SANCTUARY CARE LTD,1145150,10-Apr-24,3117.52,0,63458,Learning Disabilities Placemnt,321017              Nursing & Residential Care Homes,A,2024,1
317,Community and Housing,THE REGARD PARTNERSHIP LTD,1145253,10-Apr-24,10504.92,0,63796,Learning Disabilities Placemnt,321017              Nursing & Residential Care Homes,A,2024,1
318,Community and Housing,THE REGARD PARTNERSHIP LTD,1145267,10-Apr-24,6255.04,0,63796,Learning Disabilities Placemnt,321017              Nursing & Residential Care Homes,A,2024,1
319,Community and Housing,THE REGARD PARTNERSHIP LTD,1148331,19-Apr-24,7156,0,63796,Learning Disabilities Placemnt,321017              Nursing & Residential Care Homes,A,2024,1
320,Community and Housing,THE REGARD PARTNERSHIP LTD,1148342,19-Apr-24,6575.41,0,63796,Learning Disabilities Placemnt,321017              Nursing & Residential Care Homes,A,2024,1
321,Community and Housing,THE REGARD PARTNERSHIP LTD,1148352,19-Apr-24,6647.28,0,63796,Learning Disabilities Placemnt,321017              Nursing & Residential Care Homes,A,2024,1
322,Community and Housing,THE REGARD PARTNERSHIP LTD,1148361,19-Apr-24,5317.84,0,63796,Learning Disabilities Placemnt,321017              Nursing & Residential Care Homes,A,2024,1
323,Community and Housing,SW LONDON AND ST GEORGES MH NHS,P0071994,22-Apr-24,87558.5,0,64811,LD Fieldwork SW,310000              Healthcare,A,2024,1
324,"Children, Schools and Family",CAROUSEL DAY NURSERY,P1 24 UPFRONTPAY,05-Apr-24,32837.76,0,66990,EARLY YEARS NURSERY GRANTS,170000              Education,A,2024,1
325,"Children, Schools and Family",PLAYDAYS DAY NURSERY,P1 24 UPFRONTPAY,05-Apr-24,20361.6,0,66992,EARLY YEARS NURSERY GRANTS,170000              Education,A,2024,1
326,Community and Housing,NAS SERVICES LIMITED,ASU4410344,30-Apr-24,4933.3,822.22,68929,Mental Health Placements,321100              Social Community Care Supplies & Services - Children,A,2024,1
327,Community and Housing,NAS SERVICES LIMITED,ASU4408754-UP,18-Apr-24,4251.5,708.58,68929,Mental Health Placements,321100              Social Community Care Supplies & Services - Children,A,2024,1
328,Community and Housing,NAS SERVICES LIMITED,ACR4408817,18-Apr-24,2058.86,343.14,68929,Mental Health Placements,321100              Social Community Care Supplies & Services - Children,A,2024,1
329,Community and Housing,NAS SERVICES LIMITED,ACR4408870,18-Apr-24,2058.86,343.14,68929,Mental Health Placements,321100              Social Community Care Supplies & Services - Children,A,2024,1
330,Community and Housing,NAS SERVICES LIMITED,ACR4409208,24-Apr-24,2058.86,343.14,68929,Mental Health Placements,321100              Social Community Care Supplies & Services - Children,A,2024,1
331,Unassigned,LEE VALLEY REGIONAL PARK AUTH.,2.02404E+11,22-Apr-24,16849,0,70554,Lee Valley Regional Park,PRECEPT,A,2024,1
332,"Children, Schools and Family",INTEGRATED SERVICES PROGRAMME,10543,26-Apr-24,3757,0,72728,Placements Under 18,321100              Social Community Care Supplies & Services - Children,A,2024,1
333,Community and Housing,BRANDON TRUST,1145146,10-Apr-24,4398.6,0,76126,Learning Disabilities Placemnt,321017              Nursing & Residential Care Homes,A,2024,1
334,"Children, Schools and Family",DICKY BIRDS PRE SCHOOL NURSERY,P1 24 UPFRONTPAY,05-Apr-24,51672.96,0,76508,EARLY YEARS NURSERY GRANTS,170000              Education,A,2024,1
335,Unassigned,LONDON BOROUGH OF SUTTON,BAILIFF MAR-2024,23-Apr-24,126983.55,0,76615,Corporate Services,OLA,A,2024,1
336,Unassigned,POST OFFICE LTD,CFA065MER PO1,04-Apr-24,19936.2,0,77066,Adults Social Care,200000              Financial Services,A,2024,1
337,Unassigned,POST OFFICE LTD,CFA065ME24/25PO2,15-Apr-24,15322.21,0,77066,Adults Social Care,200000              Financial Services,A,2024,1
338,Unassigned,POST OFFICE LTD,CFA06524/25PO3,26-Apr-24,16531.4,0,77066,Adults Social Care,200000              Financial Services,A,2024,1
339,"Children, Schools and Family",PRIORS COURT FOUNDATION,2254,09-Apr-24,16398.05,2733.01,78722,Child Disabilities - Placement,170000              Education,A,2024,1
340,"Children, Schools and Family",PRIORS COURT FOUNDATION,2337,26-Apr-24,90872.48,15145.41,78722,SEN Residential (DSG),170000              Education,A,2024,1
341,Community and Housing,ABBEY HOUSE RESIDENTIAL HOMES,1145147,10-Apr-24,4774,0,78937,Older People Placements - East,321017              Nursing & Residential Care Homes,A,2024,1
342,Community and Housing,ABBEY HOUSE RESIDENTIAL HOMES,1145167,10-Apr-24,4774,0,78937,Older People Placements - East,321017              Nursing & Residential Care Homes,A,2024,1
343,Unassigned,TRANSPORT FOR LONDON,MERTON Q4-23/24,23-Apr-24,560852.29,0,79197,Capital,PRECEPT,A,2024,1
344,Corporate Services,GLS EDUCATIONAL SUPPLIES LTD,30266937,30-Apr-24,539.88,89.98,79201,PDC,170000              Education,A,2024,1
345,Community and Housing,REDACTED PERSONAL DATA,1149345,22-Apr-24,6430,0,81639,Older People Placements - East,DIRECT PAYMENTS,R,2024,1
346,Corporate Services,SOUTH WIMBLEDON COMMUNITY ASSO,16897,16-Apr-24,600,0,82339,Non-Local Election Expenses?,"390000              Works - Construction, Repair & Maintenance",A,2024,1
347,"Children, Schools and Family",DEE'S DAY NURSERY,P1 24 UPFRONTPAY,05-Apr-24,22844.16,0,82343,EARLY YEARS NURSERY GRANTS,170000              Education,A,2024,1
348,Unassigned,GREATER LONDON AUTHORITY,2.02404E+11,15-Apr-24,3739550.37,0,83050,Collection Fund,PRECEPT,A,2024,1
349,Unassigned,GREATER LONDON AUTHORITY,2.02404E+11,15-Apr-24,3466774,0,83050,Collection Fund,PRECEPT,A,2024,1
350,Unassigned,GREATER LONDON AUTHORITY,2.02404E+11,24-Apr-24,239001,0,83050,Collection Fund,PRECEPT,A,2024,1
351,Corporate Services,REDACTED PERSONAL DATA,INVJD228,10-Apr-24,14235,2372.5,83383,SLLP - Disbursements,280000              Legal Services,R,2024,1
352,Corporate Services,REDACTED PERSONAL DATA,INVJD229,17-Apr-24,1200,200,83383,SLLP - Disbursements,280000              Legal Services,R,2024,1
353,Unassigned,MALMESBURY PRIMARY SCHOOL,SCHOOLS 2425/1 A,08-Apr-24,326190.09,0,83593,Schools,170000              Education,A,2024,1
354,Community and Housing,YOUNG EPILEPSY,INV11672,18-Apr-24,21660.33,0,84094,Learning Disabilities Placemnt,170000              Education,A,2024,1
355,Community and Housing,YOUNG EPILEPSY,INV11918,18-Apr-24,23770.33,0,84094,Learning Disabilities Placemnt,170000              Education,A,2024,1
356,"Children, Schools and Family",YOUNG EPILEPSY,INV12243,30-Apr-24,25262.49,0,84094,Non-Delegated Statements,170000              Education,A,2024,1
357,"Children, Schools and Family",YOUNG EPILEPSY,INV12246,30-Apr-24,22786.67,0,84094,Non-Delegated Statements,170000              Education,A,2024,1
358,Environment and Regeneration,NEWSQUEST MEDIA GROUP LTD,44829592,23-Apr-24,4720.25,786.71,85566,CPZ Implementation & Consult,190000              Facilities & Management Services,A,2024,1
359,"Children, Schools and Family",NEWSQUEST MEDIA GROUP LTD,44471168,01-May-24,1599.6,266.6,85566,Fostering Recruit/Assessment,190000              Facilities & Management Services,A,2024,1
360,"Children, Schools and Family",NEWSQUEST MEDIA GROUP LTD,44651211,01-May-24,1599.6,266.6,85566,Fostering Recruit/Assessment,190000              Facilities & Management Services,A,2024,1
361,"Children, Schools and Family",NEWSQUEST MEDIA GROUP LTD,44831113,01-May-24,1599.6,266.6,85566,Fostering Recruit/Assessment,190000              Facilities & Management Services,A,2024,1
362,Community and Housing,L.B.RICHMOND UPON THAMES,3002008575,01-May-24,75858,0,86993,OP/PS Mgt AD Adult Social Care,OLA,A,2024,1
363,Capital,LONDON AND QUADRANT HOUS. TRUST,LQHINV018750,09-Apr-24,65906.17,10984.36,87000,Projects - Affordable Housing,250000              Housing Management,A,2024,1
364,Capital,LONDON AND QUADRANT HOUS. TRUST,LQHINV018870,09-Apr-24,178939.03,29823.17,87000,Projects - Affordable Housing,250000              Housing Management,A,2024,1
365,Capital,LONDON AND QUADRANT HOUS. TRUST,LQHINV018868,09-Apr-24,232066.03,38677.67,87000,Projects - Affordable Housing,250000              Housing Management,A,2024,1
366,"Children, Schools and Family",CENTRE ACADEMY LONDON,MESP2431,12-Apr-24,14300,0,88689,Non-Delegated Statements,170000              Education,A,2024,1
367,"Children, Schools and Family",CENTRE ACADEMY LONDON,MESU2430,12-Apr-24,14300,0,88689,Non-Delegated Statements,170000              Education,A,2024,1
368,"Children, Schools and Family",CENTRE ACADEMY LONDON,MESP2432,12-Apr-24,14300,0,88689,Non-Delegated Statements,170000              Education,A,2024,1
369,Corporate Services,CITY OF WESTMINSTER,3660103754,29-Apr-24,177915.04,29652.51,89641,Coroners Courts,OLA,A,2024,1
370,"Children, Schools and Family",LONDON GRID FOR LEARNING TRUST,2020019431,24-Apr-24,11334,1889,90449,Schools Admin & Pupil Benefits,270000              Information Communication Technology,A,2024,1
371,Community and Housing,Libraries Connected,3417,25-Apr-24,589.23,0,92250,Media Fund,200000              Financial Services,A,2024,1
372,Community and Housing,THE GARWOOD FOUNDATION,MW-DFAPR24,18-Apr-24,1003,0,92268,Older People Placements - East,321000              Social Community Care Supplies & Services - Adult,A,2024,1
373,Community and Housing,Allied Healthcare,2641075525/32,04-Apr-24,1138.75,0,92896,Phys/Sens Placements - East,321000              Social Community Care Supplies & Services - Adult,A,2024,1
374,Community and Housing,Allied Healthcare,2641075525/47,04-Apr-24,2307.88,0,92896,Older People Placements - East,321000              Social Community Care Supplies & Services - Adult,A,2024,1
375,Community and Housing,Allied Healthcare,2641075525/27,04-Apr-24,664.43,0,92896,Learning Disabilities Placemnt,321000              Social Community Care Supplies & Services - Adult,A,2024,1
376,Community and Housing,Allied Healthcare,2641075525/15,04-Apr-24,1149.28,0,92896,Older People Placements - East,321000              Social Community Care Supplies & Services - Adult,A,2024,1
377,Community and Housing,Allied Healthcare,2641075525/56,04-Apr-24,2301.95,0,92896,Older People Placements - East,321000              Social Community Care Supplies & Services - Adult,A,2024,1
378,Community and Housing,Allied Healthcare,2641075525/11,04-Apr-24,1025.28,0,92896,Phys/Sens Placements - East,321000              Social Community Care Supplies & Services - Adult,A,2024,1
379,Community and Housing,Allied Healthcare,2641075525/9,04-Apr-24,1340.21,0,92896,Older People Placements - East,321000              Social Community Care Supplies & Services - Adult,A,2024,1
380,Community and Housing,Allied Healthcare,2641075525/55,04-Apr-24,2323.39,0,92896,Older People Placements - East,321000              Social Community Care Supplies & Services - Adult,A,2024,1
381,Community and Housing,Allied Healthcare,2641075525/8,04-Apr-24,746.55,0,92896,Older People Placements - East,321000              Social Community Care Supplies & Services - Adult,A,2024,1
382,Community and Housing,Allied Healthcare,2641075525/25,04-Apr-24,1087.81,0,92896,Older People Placements - East,321000              Social Community Care Supplies & Services - Adult,A,2024,1
383,Community and Housing,Allied Healthcare,2641075525/22,04-Apr-24,824.62,0,92896,Older People Placements - East,321000              Social Community Care Supplies & Services - Adult,A,2024,1
384,Community and Housing,Allied Healthcare,2641075525/52,04-Apr-24,2989.45,0,92896,Older People Placements - East,321000              Social Community Care Supplies & Services - Adult,A,2024,1
385,Community and Housing,Allied Healthcare,2641075525/36,04-Apr-24,828.51,0,92896,Older People Placements - East,321000              Social Community Care Supplies & Services - Adult,A,2024,1
386,Community and Housing,Allied Healthcare,2641075525/63,04-Apr-24,829.3,0,92896,Older People Placements - East,321000              Social Community Care Supplies & Services - Adult,A,2024,1
387,Community and Housing,Allied Healthcare,2641075525/10,04-Apr-24,2275.15,0,92896,Older People Placements - East,321000              Social Community Care Supplies & Services - Adult,A,2024,1
388,Community and Housing,Allied Healthcare,2641075525/20,04-Apr-24,1162.49,0,92896,Older People Placements - East,321000              Social Community Care Supplies & Services - Adult,A,2024,1
389,Community and Housing,Allied Healthcare,2641075525/68,04-Apr-24,826.58,0,92896,Older People Placements - East,321000              Social Community Care Supplies & Services - Adult,A,2024,1
390,Community and Housing,Allied Healthcare,2641075525/4,04-Apr-24,1127.17,0,92896,Older People Placements - East,321000              Social Community Care Supplies & Services - Adult,A,2024,1
391,Community and Housing,Allied Healthcare,2641075525/14,04-Apr-24,751.16,0,92896,Older People Placements - East,321000              Social Community Care Supplies & Services - Adult,A,2024,1
392,Community and Housing,Allied Healthcare,2641075525/23,04-Apr-24,1162.1,0,92896,Older People Placements - East,321000              Social Community Care Supplies & Services - Adult,A,2024,1
393,Community and Housing,Allied Healthcare,2641075525/1,04-Apr-24,622.16,0,92896,Older People Placements - East,321000              Social Community Care Supplies & Services - Adult,A,2024,1
394,Community and Housing,Allied Healthcare,2641075525/3,04-Apr-24,832.79,0,92896,Older People Placements - East,321000              Social Community Care Supplies & Services - Adult,A,2024,1
395,Community and Housing,Allied Healthcare,2641075525/50,04-Apr-24,828.91,0,92896,Older People Placements - East,321000              Social Community Care Supplies & Services - Adult,A,2024,1
396,Community and Housing,Allied Healthcare,2641075525/41,04-Apr-24,836.68,0,92896,Older People Placements - East,321000              Social Community Care Supplies & Services - Adult,A,2024,1
397,Community and Housing,Allied Healthcare,2641075525/45,04-Apr-24,2287.57,0,92896,Older People Placements - East,321000              Social Community Care Supplies & Services - Adult,A,2024,1
398,Community and Housing,Allied Healthcare,2641075525/7,04-Apr-24,1039.2,0,92896,Older People Placements - East,321000              Social Community Care Supplies & Services - Adult,A,2024,1
399,Community and Housing,Allied Healthcare,2641075525/42,04-Apr-24,1180,0,92896,Older People Placements - East,321000              Social Community Care Supplies & Services - Adult,A,2024,1
400,Community and Housing,Allied Healthcare,2641075525/49,04-Apr-24,827.73,0,92896,Older People Placements - East,321000              Social Community Care Supplies & Services - Adult,A,2024,1
401,Community and Housing,Allied Healthcare,2641075525/53,04-Apr-24,1151.63,0,92896,Older People Placements - East,321000              Social Community Care Supplies & Services - Adult,A,2024,1
402,Community and Housing,Allied Healthcare,2641075525/60,04-Apr-24,1130.27,0,92896,Older People Placements - East,321000              Social Community Care Supplies & Services - Adult,A,2024,1
403,Community and Housing,Allied Healthcare,2641075525/44,04-Apr-24,2314.59,0,92896,Older People Placements - East,321000              Social Community Care Supplies & Services - Adult,A,2024,1
404,Community and Housing,Allied Healthcare,2641075525/12,04-Apr-24,675.73,0,92896,Mental Health Placements,321000              Social Community Care Supplies & Services - Adult,A,2024,1
405,Community and Housing,Allied Healthcare,2641075525/43,04-Apr-24,989.49,0,92896,Older People Placements - East,321000              Social Community Care Supplies & Services - Adult,A,2024,1
406,Community and Housing,Allied Healthcare,2641075525/35,04-Apr-24,1147.31,0,92896,Older People Placements - East,321000              Social Community Care Supplies & Services - Adult,A,2024,1
407,Community and Housing,Allied Healthcare,2641075525/51,04-Apr-24,2216.18,0,92896,Older People Placements - East,321000              Social Community Care Supplies & Services - Adult,A,2024,1
408,Community and Housing,Allied Healthcare,2641075525/37,04-Apr-24,3031.76,0,92896,Older People Placements - East,321000              Social Community Care Supplies & Services - Adult,A,2024,1
409,Community and Housing,Allied Healthcare,2641075525/24,04-Apr-24,1020.56,0,92896,Learning Disabilities Placemnt,321000              Social Community Care Supplies & Services - Adult,A,2024,1
410,Community and Housing,Allied Healthcare,2641075525/39,04-Apr-24,690.88,0,92896,Older People Placements - East,321000              Social Community Care Supplies & Services - Adult,A,2024,1
411,Community and Housing,Allied Healthcare,2641075525/58,04-Apr-24,2984.76,0,92896,Older People Placements - East,321000              Social Community Care Supplies & Services - Adult,A,2024,1
412,Community and Housing,Allied Healthcare,2641075525/40,04-Apr-24,834.31,0,92896,Older People Placements - East,321000              Social Community Care Supplies & Services - Adult,A,2024,1
413,Community and Housing,Allied Healthcare,2641075525/18,04-Apr-24,1754.91,0,92896,Older People Placements - East,321000              Social Community Care Supplies & Services - Adult,A,2024,1
414,Community and Housing,Allied Healthcare,2641075525/29,04-Apr-24,837.69,0,92896,Learning Disabilities Placemnt,321000              Social Community Care Supplies & Services - Adult,A,2024,1
415,Community and Housing,Allied Healthcare,2641075525/31,04-Apr-24,2645.7,0,92896,Phys/Sens Placements - East,321000              Social Community Care Supplies & Services - Adult,A,2024,1
416,Community and Housing,Allied Healthcare,2641075525/21,04-Apr-24,785.82,0,92896,Older People Placements - East,321000              Social Community Care Supplies & Services - Adult,A,2024,1
417,Community and Housing,Allied Healthcare,2641075525/16,04-Apr-24,649.77,0,92896,Older People Placements - East,321000              Social Community Care Supplies & Services - Adult,A,2024,1
418,Community and Housing,Allied Healthcare,2641075525/48,04-Apr-24,677.8,0,92896,Older People Placements - East,321000              Social Community Care Supplies & Services - Adult,A,2024,1
419,Community and Housing,Allied Healthcare,2641075525/17,04-Apr-24,2316.82,0,92896,Older People Placements - East,321000              Social Community Care Supplies & Services - Adult,A,2024,1
420,Community and Housing,Allied Healthcare,2641075525/13,04-Apr-24,880.74,0,92896,Older People Placements - East,321000              Social Community Care Supplies & Services - Adult,A,2024,1
421,Community and Housing,Allied Healthcare,2641075525/5,04-Apr-24,668,0,92896,Older People Placements - East,321000              Social Community Care Supplies & Services - Adult,A,2024,1
422,Community and Housing,Allied Healthcare,2641075525/62,04-Apr-24,967.9,0,92896,Older People Placements - East,321000              Social Community Care Supplies & Services - Adult,A,2024,1
423,Community and Housing,Allied Healthcare,2641075525/30,04-Apr-24,504.48,0,92896,Older People Placements - East,321000              Social Community Care Supplies & Services - Adult,A,2024,1
424,Community and Housing,Allied Healthcare,38210759862A/38,09-Apr-24,1154.69,0,92896,Phys/Sens Placements - East,321000              Social Community Care Supplies & Services - Adult,A,2024,1
425,Community and Housing,Allied Healthcare,38210759862A/55,09-Apr-24,2389.14,0,92896,Older People Placements - East,321000              Social Community Care Supplies & Services - Adult,A,2024,1
426,Community and Housing,Allied Healthcare,38210759862A/30,09-Apr-24,603.88,0,92896,Learning Disabilities Placemnt,321000              Social Community Care Supplies & Services - Adult,A,2024,1
427,Community and Housing,Allied Healthcare,38210759862A/18,09-Apr-24,1184.24,0,92896,Older People Placements - East,321000              Social Community Care Supplies & Services - Adult,A,2024,1
428,Community and Housing,Allied Healthcare,38210759862A/69,09-Apr-24,2275.97,0,92896,Older People Placements - East,321000              Social Community Care Supplies & Services - Adult,A,2024,1
429,Community and Housing,Allied Healthcare,38210759862A/11,09-Apr-24,1352.64,0,92896,Older People Placements - East,321000              Social Community Care Supplies & Services - Adult,A,2024,1
430,Community and Housing,Allied Healthcare,38210759862A/67,09-Apr-24,2321.5,0,92896,Older People Placements - East,321000              Social Community Care Supplies & Services - Adult,A,2024,1
431,Community and Housing,Allied Healthcare,38210759862A/9,09-Apr-24,844.06,0,92896,Older People Placements - East,321000              Social Community Care Supplies & Services - Adult,A,2024,1
432,Community and Housing,Allied Healthcare,38210759862A/28,09-Apr-24,1100.66,0,92896,Older People Placements - East,321000              Social Community Care Supplies & Services - Adult,A,2024,1
433,Community and Housing,Allied Healthcare,38210759862A/25,09-Apr-24,826.97,0,92896,Older People Placements - East,321000              Social Community Care Supplies & Services - Adult,A,2024,1
434,Community and Housing,Allied Healthcare,38210759862A/62,09-Apr-24,3055.13,0,92896,Older People Placements - East,321000              Social Community Care Supplies & Services - Adult,A,2024,1
435,Community and Housing,Allied Healthcare,38210759862A/42,09-Apr-24,800.17,0,92896,Older People Placements - East,321000              Social Community Care Supplies & Services - Adult,A,2024,1
436,Community and Housing,Allied Healthcare,38210759862A/77,09-Apr-24,814.15,0,92896,Older People Placements - East,321000              Social Community Care Supplies & Services - Adult,A,2024,1
437,Community and Housing,Allied Healthcare,38210759862A/13,09-Apr-24,2304.3,0,92896,Older People Placements - East,321000              Social Community Care Supplies & Services - Adult,A,2024,1
438,Community and Housing,Allied Healthcare,38210759862A/22,09-Apr-24,1048.7,0,92896,Older People Placements - East,321000              Social Community Care Supplies & Services - Adult,A,2024,1
439,Community and Housing,Allied Healthcare,38210759862A/83,09-Apr-24,834.34,0,92896,Older People Placements - East,321000              Social Community Care Supplies & Services - Adult,A,2024,1
440,Community and Housing,Allied Healthcare,38210759862A/4,09-Apr-24,1153.55,0,92896,Older People Placements - East,321000              Social Community Care Supplies & Services - Adult,A,2024,1
441,Community and Housing,Allied Healthcare,38210759862A/26,09-Apr-24,1195.05,0,92896,Older People Placements - East,321000              Social Community Care Supplies & Services - Adult,A,2024,1
442,Community and Housing,Allied Healthcare,38210759862A/1,09-Apr-24,611.65,0,92896,Older People Placements - East,321000              Social Community Care Supplies & Services - Adult,A,2024,1
443,Community and Housing,Allied Healthcare,38210759862A/3,09-Apr-24,826.16,0,92896,Older People Placements - East,321000              Social Community Care Supplies & Services - Adult,A,2024,1
444,Community and Housing,Allied Healthcare,38210759862A/58,09-Apr-24,797.07,0,92896,Older People Placements - East,321000              Social Community Care Supplies & Services - Adult,A,2024,1
445,Community and Housing,Allied Healthcare,38210759862A/48,09-Apr-24,824.98,0,92896,Older People Placements - East,321000              Social Community Care Supplies & Services - Adult,A,2024,1
446,Community and Housing,Allied Healthcare,38210759862A/53,09-Apr-24,2201.02,0,92896,Older People Placements - East,321000              Social Community Care Supplies & Services - Adult,A,2024,1
447,Community and Housing,Allied Healthcare,38210759862A/7,09-Apr-24,1035.72,0,92896,Older People Placements - East,321000              Social Community Care Supplies & Services - Adult,A,2024,1
448,Community and Housing,Allied Healthcare,38210759862A/57,09-Apr-24,835.49,0,92896,Older People Placements - East,321000              Social Community Care Supplies & Services - Adult,A,2024,1
449,Community and Housing,Allied Healthcare,38210759862A/63,09-Apr-24,1164.03,0,92896,Older People Placements - East,321000              Social Community Care Supplies & Services - Adult,A,2024,1
450,Community and Housing,Allied Healthcare,38210759862A/75,09-Apr-24,1163.24,0,92896,Older People Placements - East,321000              Social Community Care Supplies & Services - Adult,A,2024,1
451,Community and Housing,Allied Healthcare,38210759862A/51,09-Apr-24,2306.74,0,92896,Older People Placements - East,321000              Social Community Care Supplies & Services - Adult,A,2024,1
452,Community and Housing,Allied Healthcare,38210759862A/16,09-Apr-24,566.97,0,92896,Mental Health Placements,321000              Social Community Care Supplies & Services - Adult,A,2024,1
453,Community and Housing,Allied Healthcare,38210759862A/49,09-Apr-24,1020.15,0,92896,Older People Placements - East,321000              Social Community Care Supplies & Services - Adult,A,2024,1
454,Community and Housing,Allied Healthcare,38210759862A/41,09-Apr-24,1194.75,0,92896,Older People Placements - East,321000              Social Community Care Supplies & Services - Adult,A,2024,1
455,Community and Housing,Allied Healthcare,38210759862A/76,09-Apr-24,1867.75,0,92896,Older People Placements - East,321000              Social Community Care Supplies & Services - Adult,A,2024,1
456,Community and Housing,Allied Healthcare,38210759862A/5,09-Apr-24,1518.23,0,92896,Older People Placements - East,321000              Social Community Care Supplies & Services - Adult,A,2024,1
457,Community and Housing,Allied Healthcare,38210759862A/43,09-Apr-24,710.02,0,92896,Older People Placements - East,321000              Social Community Care Supplies & Services - Adult,A,2024,1
458,Community and Housing,Allied Healthcare,38210759862A/32,09-Apr-24,4214.93,0,92896,Older People Placements - East,321000              Social Community Care Supplies & Services - Adult,A,2024,1
459,Community and Housing,Allied Healthcare,38210759862A/73,09-Apr-24,1191.26,0,92896,Older People Placements - East,321000              Social Community Care Supplies & Services - Adult,A,2024,1
460,Community and Housing,Allied Healthcare,38210759862A/12,09-Apr-24,886.76,0,92896,Older People Placements - East,321000              Social Community Care Supplies & Services - Adult,A,2024,1
461,Community and Housing,Allied Healthcare,38210759862A/31,09-Apr-24,1022.12,0,92896,Older People Placements - East,321000              Social Community Care Supplies & Services - Adult,A,2024,1
462,Community and Housing,Allied Healthcare,38210759862A/34,09-Apr-24,954.29,0,92896,Phys/Sens Placements - East,321000              Social Community Care Supplies & Services - Adult,A,2024,1
463,Community and Housing,Allied Healthcare,38210759862A/8,09-Apr-24,838.59,0,92896,Older People Placements - East,321000              Social Community Care Supplies & Services - Adult,A,2024,1
464,Community and Housing,Allied Healthcare,38210759862A/23,09-Apr-24,772.79,0,92896,Phys/Sens Placements - East,321000              Social Community Care Supplies & Services - Adult,A,2024,1
465,Community and Housing,Allied Healthcare,38210759862A/82,09-Apr-24,819.54,0,92896,Older People Placements - East,321000              Social Community Care Supplies & Services - Adult,A,2024,1
466,Community and Housing,Allied Healthcare,38210759862A/68,09-Apr-24,1472.98,0,92896,Older People Placements - East,321000              Social Community Care Supplies & Services - Adult,A,2024,1
467,Community and Housing,Allied Healthcare,38210759862A/66,09-Apr-24,2328.07,0,92896,Older People Placements - East,321000              Social Community Care Supplies & Services - Adult,A,2024,1
468,Community and Housing,Allied Healthcare,38210759862A/60,09-Apr-24,871.47,0,92896,Older People Placements - East,321000              Social Community Care Supplies & Services - Adult,A,2024,1
469,Community and Housing,Allied Healthcare,38210759862A/50,09-Apr-24,790.29,0,92896,Older People Placements - East,321000              Social Community Care Supplies & Services - Adult,A,2024,1
470,Community and Housing,Allied Healthcare,38210759862A/14,09-Apr-24,1644.19,0,92896,Older People Placements - East,321000              Social Community Care Supplies & Services - Adult,A,2024,1
471,Community and Housing,Allied Healthcare,38210759862A/27,09-Apr-24,2216.24,0,92896,Learning Disabilities Placemnt,321000              Social Community Care Supplies & Services - Adult,A,2024,1
472,Community and Housing,Allied Healthcare,38210759862A/45,09-Apr-24,852.03,0,92896,Older People Placements - East,321000              Social Community Care Supplies & Services - Adult,A,2024,1
473,Community and Housing,Allied Healthcare,38210759862A/72,09-Apr-24,3078.84,0,92896,Older People Placements - East,321000              Social Community Care Supplies & Services - Adult,A,2024,1
474,Community and Housing,Allied Healthcare,38210759862A/46,09-Apr-24,823.03,0,92896,Older People Placements - East,321000              Social Community Care Supplies & Services - Adult,A,2024,1
475,Community and Housing,Allied Healthcare,38210759862A/20,09-Apr-24,1635.34,0,92896,Older People Placements - East,321000              Social Community Care Supplies & Services - Adult,A,2024,1
476,Community and Housing,Allied Healthcare,38210759862A/35,09-Apr-24,766.96,0,92896,Learning Disabilities Placemnt,321000              Social Community Care Supplies & Services - Adult,A,2024,1
477,Community and Housing,Allied Healthcare,38210759862A/37,09-Apr-24,2669.43,0,92896,Phys/Sens Placements - East,321000              Social Community Care Supplies & Services - Adult,A,2024,1
478,Community and Housing,Allied Healthcare,38210759862A/24,09-Apr-24,832.4,0,92896,Older People Placements - East,321000              Social Community Care Supplies & Services - Adult,A,2024,1
479,Community and Housing,Allied Healthcare,38210759862A/56,09-Apr-24,609.42,0,92896,Older People Placements - East,321000              Social Community Care Supplies & Services - Adult,A,2024,1
480,Community and Housing,Allied Healthcare,38210759862A/19,09-Apr-24,2280.31,0,92896,Older People Placements - East,321000              Social Community Care Supplies & Services - Adult,A,2024,1
481,Community and Housing,Allied Healthcare,38210759862A/17,09-Apr-24,888.53,0,92896,Older People Placements - East,321000              Social Community Care Supplies & Services - Adult,A,2024,1
482,Community and Housing,CARE MANAGEMENT GROUP,1148330,19-Apr-24,4593.88,0,93533,Mental Health Placements,321017              Nursing & Residential Care Homes,A,2024,1
483,Community and Housing,CARE MANAGEMENT GROUP,1148339,19-Apr-24,6812.92,0,93533,Learning Disabilities Placemnt,321017              Nursing & Residential Care Homes,A,2024,1
484,Community and Housing,CARE MANAGEMENT GROUP,1148347,19-Apr-24,6441.2,0,93533,Learning Disabilities Placemnt,321017              Nursing & Residential Care Homes,A,2024,1
485,Community and Housing,CARE MANAGEMENT GROUP,1148351,19-Apr-24,9476,0,93533,Phys/Sens Placements - East,321017              Nursing & Residential Care Homes,A,2024,1
486,Community and Housing,CARE MANAGEMENT GROUP,1148353,19-Apr-24,8367.64,0,93533,Learning Disabilities Placemnt,321017              Nursing & Residential Care Homes,A,2024,1
487,Community and Housing,CARE MANAGEMENT GROUP,255001540,24-Apr-24,9467.32,0,93533,Learning Disabilities Placemnt,321017              Nursing & Residential Care Homes,A,2024,1
488,"Children, Schools and Family",ST OLAVES NURSERY,P1 24 UPFRONTPAY,05-Apr-24,18944.64,0,94303,EARLY YEARS NURSERY GRANTS,170000              Education,A,2024,1
489,Community and Housing,A AND R CARE LTD,1145129,10-Apr-24,4121.16,0,94357,Older People Placements - East,321017              Nursing & Residential Care Homes,A,2024,1
490,Community and Housing,A AND R CARE LTD,1145190,10-Apr-24,3300,0,94357,Older People Placements - East,321017              Nursing & Residential Care Homes,A,2024,1
491,Community and Housing,A AND R CARE LTD,1145312,10-Apr-24,3763.24,0,94357,Older People Placements - East,321017              Nursing & Residential Care Homes,A,2024,1
492,Community and Housing,A AND R CARE LTD,1145438,10-Apr-24,3400,0,94357,Older People Placements - East,321017              Nursing & Residential Care Homes,A,2024,1
493,Community and Housing,A AND R CARE LTD,1145443,10-Apr-24,4260.6,0,94357,Older People Placements - East,321017              Nursing & Residential Care Homes,A,2024,1
494,Community and Housing,A AND R CARE LTD,1145480,10-Apr-24,4800,0,94357,Older People Placements - East,321017              Nursing & Residential Care Homes,A,2024,1
495,Community and Housing,A AND R CARE LTD,1145550,10-Apr-24,3824.32,0,94357,Phys/Sens Placements - East,321017              Nursing & Residential Care Homes,A,2024,1
496,Community and Housing,A AND R CARE LTD,1145553,10-Apr-24,4200,0,94357,Older People Placements - East,321017              Nursing & Residential Care Homes,A,2024,1
497,Community and Housing,Aspens Charities Ltd,42112,05-Apr-24,19865.48,0,96019,Learning Disabilities Placemnt,321017              Nursing & Residential Care Homes,A,2024,1
498,Community and Housing,Aspens Charities Ltd,42114,05-Apr-24,19865.48,0,96019,Learning Disabilities Placemnt,321017              Nursing & Residential Care Homes,A,2024,1
499,Community and Housing,Aspens Charities Ltd,1145326,10-Apr-24,9684.08,0,96019,Learning Disabilities Placemnt,321017              Nursing & Residential Care Homes,A,2024,1
500,Corporate Services,Sacred Heart Church,2024/02/0006,22-Apr-24,1237,0,96270,Non-Local Election Expenses?,290000              Arts & Leisure Services,A,2024,1
501,Community and Housing,REDACTED PERSONAL DATA,1149197,22-Apr-24,5192,0,96859,Learning Disabilities Placemnt,DIRECT PAYMENTS,R,2024,1
502,Community and Housing,THE ABBEYFIELD SOCIETY,1145393,10-Apr-24,5386.6,0,97539,Older People Placements - East,321000              Social Community Care Supplies & Services - Adult,A,2024,1
503,Community and Housing,THE ABBEYFIELD SOCIETY,1145456,10-Apr-24,4000,0,97539,Older People Placements - East,321000              Social Community Care Supplies & Services - Adult,A,2024,1
504,Community and Housing,EL-SHADDAI,1152187,29-Apr-24,1141.52,0,97709,MH Housing Support Placements,321000              Social Community Care Supplies & Services - Adult,A,2024,1
505,Community and Housing,EL-SHADDAI,1152211,29-Apr-24,1426.8,0,97709,Learning Disabilities Placemnt,321000              Social Community Care Supplies & Services - Adult,A,2024,1
506,Community and Housing,EL-SHADDAI,1152215,29-Apr-24,1141.52,0,97709,Learning Disabilities Placemnt,321000              Social Community Care Supplies & Services - Adult,A,2024,1
507,Community and Housing,EL-SHADDAI,1152223,29-Apr-24,1652.52,0,97709,Mental Health Placements,321000              Social Community Care Supplies & Services - Adult,A,2024,1
508,Community and Housing,Rosenmanor Ltd,1145323,10-Apr-24,2924.24,0,97808,Mental Health Placements,321017              Nursing & Residential Care Homes,A,2024,1
509,Community and Housing,MERTON COMMUNITY TRANSPORT,17705,11-Apr-24,1108.8,184.8,98164,Learning Disabilities Placemnt,360000              Passenger Transport,A,2024,1
510,Community and Housing,MERTON COMMUNITY TRANSPORT,17693,11-Apr-24,1198.8,199.8,98164,Learning Disabilities Placemnt,360000              Passenger Transport,A,2024,1
511,Unassigned,BEECHOLME PRIMARY ACADEMY,SCHOOLS 2425/1 A,08-Apr-24,29230.79,0,98168,Schools,170000              Education,A,2024,1
512,"Children, Schools and Family",WRIXON CARE,52106,15-Apr-24,2528.1,421.35,98412,Family Supp SafeGuard - Place,360000              Passenger Transport,A,2024,1
513,Community and Housing,NORTHERN HOUSING CONSORTIUM LTD,61186,02-May-24,1735.63,289.27,98721,Mascot,260000              Human Resources,A,2024,1
514,"Children, Schools and Family",REDACTED PERSONAL DATA,1143764,08-Apr-24,1752.36,0,101120,Fostering Recruit/Assessment,290000              Arts & Leisure Services,R,2024,1
515,Unassigned,WEST WIMBLEDON PRIMARY SCHOOL,SCHOOLS 2425/1 A,08-Apr-24,364738.29,0,101674,Schools,170000              Education,A,2024,1
516,Community and Housing,HILLDALE AND NORTHVIEW,1145284,10-Apr-24,2072.52,0,103592,Older People Placements - East,321000              Social Community Care Supplies & Services - Adult,A,2024,1
517,Community and Housing,BUPA CARE HOMES,1145156,10-Apr-24,3566.68,0,105027,Older People Placements - East,321017              Nursing & Residential Care Homes,A,2024,1
518,Community and Housing,BUPA CARE HOMES,1145171,10-Apr-24,3566.68,0,105027,Older People Placements - East,321017              Nursing & Residential Care Homes,A,2024,1
519,Community and Housing,BUPA CARE HOMES,1145188,10-Apr-24,3422.24,0,105027,Older People Placements - East,321017              Nursing & Residential Care Homes,A,2024,1
520,Community and Housing,BUPA CARE HOMES,1145257,10-Apr-24,3422.24,0,105027,Older People Placements - East,321017              Nursing & Residential Care Homes,A,2024,1
521,Community and Housing,BUPA CARE HOMES,1145288,10-Apr-24,3566.68,0,105027,Older People Placements - East,321017              Nursing & Residential Care Homes,A,2024,1
522,Community and Housing,BUPA CARE HOMES,1145342,10-Apr-24,3566.68,0,105027,Older People Placements - East,321017              Nursing & Residential Care Homes,A,2024,1
523,Community and Housing,BUPA CARE HOMES,1145353,10-Apr-24,3566.68,0,105027,Older People Placements - East,321017              Nursing & Residential Care Homes,A,2024,1
524,Community and Housing,BUPA CARE HOMES,1145368,10-Apr-24,3566.68,0,105027,Older People Placements - East,321017              Nursing & Residential Care Homes,A,2024,1
525,Community and Housing,BUPA CARE HOMES,1145371,10-Apr-24,3422.24,0,105027,Older People Placements - East,321017              Nursing & Residential Care Homes,A,2024,1
526,Community and Housing,BUPA CARE HOMES,1145378,10-Apr-24,3566.68,0,105027,Older People Placements - East,321017              Nursing & Residential Care Homes,A,2024,1
527,Community and Housing,BUPA CARE HOMES,1145384,10-Apr-24,3566.68,0,105027,Older People Placements - East,321017              Nursing & Residential Care Homes,A,2024,1
528,Community and Housing,BUPA CARE HOMES,1145413,10-Apr-24,3566.68,0,105027,Older People Placements - East,321017              Nursing & Residential Care Homes,A,2024,1
529,Community and Housing,BUPA CARE HOMES,1145421,10-Apr-24,4657.16,0,105027,Phys/Sens Placements - East,321017              Nursing & Residential Care Homes,A,2024,1
530,Community and Housing,BUPA CARE HOMES,1145450,10-Apr-24,3566.68,0,105027,Mental Health Placements,321017              Nursing & Residential Care Homes,A,2024,1
531,Community and Housing,BUPA CARE HOMES,1145470,10-Apr-24,3422.24,0,105027,Older People Placements - East,321017              Nursing & Residential Care Homes,A,2024,1
532,Community and Housing,BUPA CARE HOMES,1145499,10-Apr-24,3566.68,0,105027,Older People Placements - East,321017              Nursing & Residential Care Homes,A,2024,1
533,Community and Housing,BUPA CARE HOMES,1145509,10-Apr-24,3566.68,0,105027,Older People Placements - East,321017              Nursing & Residential Care Homes,A,2024,1
534,Community and Housing,BUPA CARE HOMES,1145549,10-Apr-24,3566.68,0,105027,Older People Placements - East,321017              Nursing & Residential Care Homes,A,2024,1
535,Community and Housing,BUPA CARE HOMES,1145571,10-Apr-24,3422.24,0,105027,Older People Placements - East,321017              Nursing & Residential Care Homes,A,2024,1
536,Community and Housing,BUPA CARE HOMES,1152702,30-Apr-24,611.11,0,105027,Older People Placements - East,321017              Nursing & Residential Care Homes,A,2024,1
537,Community and Housing,REDACTED PERSONAL DATA,1149552,22-Apr-24,3286.2,0,105300,Learning Disabilities Placemnt,DIRECT PAYMENTS,R,2024,1
538,Unassigned,ENVIRONMENT AGENCY,2.02404E+11,25-Apr-24,46590.54,0,108067,Flood Defence,PRECEPT,A,2024,1
539,"Children, Schools and Family",The Eveline Day and Nursery Schools Ltd,P1 24 UPFRONTPAY,05-Apr-24,34254.72,0,108282,EARLY YEARS NURSERY GRANTS,170000              Education,A,2024,1
540,Community and Housing,REDACTED PERSONAL DATA,1152170,29-Apr-24,856.12,0,110403,MH Housing Support Placements,321000              Social Community Care Supplies & Services - Adult,R,2024,1
541,Community and Housing,REDACTED PERSONAL DATA,1152175,29-Apr-24,1141.48,0,110403,Learning Disabilities Placemnt,321000              Social Community Care Supplies & Services - Adult,R,2024,1
542,Community and Housing,REDACTED PERSONAL DATA,1152176,29-Apr-24,847.04,0,110403,MH Housing Support Placements,321000              Social Community Care Supplies & Services - Adult,R,2024,1
543,Community and Housing,REDACTED PERSONAL DATA,1152183,29-Apr-24,1549.21,0,110403,Mental Health Placements,321000              Social Community Care Supplies & Services - Adult,R,2024,1
544,Community and Housing,REDACTED PERSONAL DATA,1152189,29-Apr-24,847.04,0,110403,MH Housing Support Placements,321000              Social Community Care Supplies & Services - Adult,R,2024,1
545,Community and Housing,REDACTED PERSONAL DATA,1152190,29-Apr-24,1931.7,0,110403,Mental Health Placements,321000              Social Community Care Supplies & Services - Adult,R,2024,1
546,Community and Housing,REDACTED PERSONAL DATA,1152198,29-Apr-24,1955.03,0,110403,Mental Health Placements,321000              Social Community Care Supplies & Services - Adult,R,2024,1
547,Community and Housing,REDACTED PERSONAL DATA,1152203,29-Apr-24,847.04,0,110403,MH Housing Support Placements,321000              Social Community Care Supplies & Services - Adult,R,2024,1
548,Community and Housing,REDACTED PERSONAL DATA,1152206,29-Apr-24,1532.76,0,110403,Mental Health Placements,321000              Social Community Care Supplies & Services - Adult,R,2024,1
549,Community and Housing,REDACTED PERSONAL DATA,1152212,29-Apr-24,847.04,0,110403,MH Housing Support Placements,321000              Social Community Care Supplies & Services - Adult,R,2024,1
550,Community and Housing,REDACTED PERSONAL DATA,1152214,29-Apr-24,564.72,0,110403,MH Housing Support Placements,321000              Social Community Care Supplies & Services - Adult,R,2024,1
551,Community and Housing,REDACTED PERSONAL DATA,1152222,29-Apr-24,1149.55,0,110403,Mental Health Placements,321000              Social Community Care Supplies & Services - Adult,R,2024,1
552,Community and Housing,REDACTED PERSONAL DATA,1152213,29-Apr-24,847.04,0,110406,Learning Disabilities Placemnt,321000              Social Community Care Supplies & Services - Adult,R,2024,1
553,"Children, Schools and Family",REDACTED PERSONAL DATA,1143232,05-Apr-24,514.26,0,111277,Placements Under 18,321100              Social Community Care Supplies & Services - Children,R,2024,1
554,"Children, Schools and Family",REDACTED PERSONAL DATA,1146175,12-Apr-24,514.26,0,111277,Placements Under 18,321100              Social Community Care Supplies & Services - Children,R,2024,1
555,"Children, Schools and Family",REDACTED PERSONAL DATA,1148243,19-Apr-24,514.26,0,111277,Placements Under 18,321100              Social Community Care Supplies & Services - Children,R,2024,1
556,"Children, Schools and Family",REDACTED PERSONAL DATA,1151682,26-Apr-24,514.26,0,111277,Placements Under 18,321100              Social Community Care Supplies & Services - Children,R,2024,1
557,Environment and Regeneration,ANDREW SCOTT ROBERTSON,15688LC,16-Apr-24,6924,1154,111834,Pks Rec Grds (Unloc),150000              Consultancy,A,2024,1
558,Community and Housing,MEADBANK NURSING CENTRE,1145545,10-Apr-24,3249.88,0,113139,Older People Placements - East,321017              Nursing & Residential Care Homes,A,2024,1
559,Community and Housing,REDACTED PERSONAL DATA,1149328,22-Apr-24,8836.6,0,113331,Learning Disabilities Placemnt,DIRECT PAYMENTS,R,2024,1
560,"Children, Schools and Family",Dicky Birds Pre Sch. Nurseries Dundonald,P1 24 UPFRONTPAY,05-Apr-24,39438.72,0,114041,EARLY YEARS NURSERY GRANTS,170000              Education,A,2024,1
561,Community and Housing,REDACTED PERSONAL DATA,1152171,29-Apr-24,1141.52,0,114970,MH Housing Support Placements,321000              Social Community Care Supplies & Services - Adult,R,2024,1
562,Community and Housing,REDACTED PERSONAL DATA,1152185,29-Apr-24,847.04,0,114970,MH Housing Support Placements,321000              Social Community Care Supplies & Services - Adult,R,2024,1
563,Community and Housing,REDACTED PERSONAL DATA,1152186,29-Apr-24,837.48,0,114970,Mental Health Placements,321000              Social Community Care Supplies & Services - Adult,R,2024,1
564,Community and Housing,REDACTED PERSONAL DATA,1152210,29-Apr-24,1141.52,0,114970,MH Housing Support Placements,321000              Social Community Care Supplies & Services - Adult,R,2024,1
565,Community and Housing,REDACTED PERSONAL DATA,1152218,29-Apr-24,856.08,0,114970,Mental Health Placements,321000              Social Community Care Supplies & Services - Adult,R,2024,1
566,"Children, Schools and Family",The Eveline Day Nursery Grand Drive,P1 24 UPFRONTPAY,05-Apr-24,49860.48,0,116784,EARLY YEARS NURSERY GRANTS,170000              Education,A,2024,1
567,Community and Housing,GRANGE COTTAGE LIMITED,1145197,10-Apr-24,3400,0,117931,Older People Placements - East,321017              Nursing & Residential Care Homes,A,2024,1
568,Community and Housing,GRANGE COTTAGE LIMITED,1145362,10-Apr-24,3852,0,117931,Older People Placements - East,321017              Nursing & Residential Care Homes,A,2024,1
569,Community and Housing,GRANGE COTTAGE LIMITED,1145453,10-Apr-24,3400,0,117931,Older People Placements - East,321017              Nursing & Residential Care Homes,A,2024,1
570,Community and Housing,REDACTED PERSONAL DATA,1152180,29-Apr-24,856.12,0,117970,MH Housing Support Placements,321000              Social Community Care Supplies & Services - Adult,R,2024,1
571,Community and Housing,REDACTED PERSONAL DATA,1152191,29-Apr-24,1141.52,0,117970,Mental Health Placements,321000              Social Community Care Supplies & Services - Adult,R,2024,1
572,Community and Housing,REDACTED PERSONAL DATA,1152208,29-Apr-24,1345.36,0,117970,Mental Health Placements,321000              Social Community Care Supplies & Services - Adult,R,2024,1
573,Community and Housing,L'ARCHE,1145488,10-Apr-24,3025.88,0,118483,Learning Disabilities Placemnt,321017              Nursing & Residential Care Homes,A,2024,1
574,Community and Housing,Alexander House c/o Keychange Charity,1145217,10-Apr-24,3100,0,119109,Older People Placements - East,321017              Nursing & Residential Care Homes,A,2024,1
575,Community and Housing,Alexander House c/o Keychange Charity,1145272,10-Apr-24,6600,0,119109,Older People Placements - East,321017              Nursing & Residential Care Homes,A,2024,1
576,Community and Housing,Alexander House c/o Keychange Charity,1145289,10-Apr-24,3220.32,0,119109,Older People Placements - East,321017              Nursing & Residential Care Homes,A,2024,1
577,Community and Housing,Alexander House c/o Keychange Charity,1145310,10-Apr-24,5600,0,119109,Older People Placements - East,321017              Nursing & Residential Care Homes,A,2024,1
578,Community and Housing,Alexander House c/o Keychange Charity,1145503,10-Apr-24,4000,0,119109,Older People Placements - East,321017              Nursing & Residential Care Homes,A,2024,1
579,Community and Housing,Alexander House c/o Keychange Charity,1145559,10-Apr-24,3840,0,119109,Older People Placements - East,321017              Nursing & Residential Care Homes,A,2024,1
580,Environment and Regeneration,Compass Contract Services (UK) Ltd,3000222514,18-Apr-24,7591.49,1265.25,119360,Borough of Sport,110000              CATERING,A,2024,1
581,"Children, Schools and Family",REDACTED PERSONAL DATA,P1 24 UPFRONTPAY,05-Apr-24,6007.68,0,119701,EARLY YEARS NURSERY GRANTS,200000              Financial Services,R,2024,1
582,Corporate Services,R F GREASBY (LONDON) LTD,INV-0466,29-Apr-24,720,120,120677,Local Taxation Bailiffs,200000              Financial Services,A,2024,1
583,"Children, Schools and Family",PLAYDAYS DAY NURSERY,P1 24 UPFRONTPAY,05-Apr-24,17660.16,0,121668,EARLY YEARS NURSERY GRANTS,170000              Education,A,2024,1
584,"Children, Schools and Family",REDACTED PERSONAL DATA,P1 24 UPFRONTPAY,05-Apr-24,3415.68,0,122848,EARLY YEARS NURSERY GRANTS,200000              Financial Services,R,2024,1
585,Community and Housing,REDACTED PERSONAL DATA,1149266,22-Apr-24,1603.88,0,124097,Older People Placements - East,DIRECT PAYMENTS,R,2024,1
586,Community and Housing,UNITED RESPONSE,1145164,10-Apr-24,8251.44,1375.24,125227,Learning Disabilities Placemnt,321000              Social Community Care Supplies & Services - Adult,A,2024,1
587,Community and Housing,UNITED RESPONSE,1145228,10-Apr-24,8251.44,1375.24,125227,Learning Disabilities Placemnt,321000              Social Community Care Supplies & Services - Adult,A,2024,1
588,Community and Housing,UNITED RESPONSE,1145229,10-Apr-24,8251.44,1375.24,125227,Learning Disabilities Placemnt,321000              Social Community Care Supplies & Services - Adult,A,2024,1
589,Community and Housing,UNITED RESPONSE,1145259,10-Apr-24,5779.69,963.28,125227,Learning Disabilities Placemnt,321000              Social Community Care Supplies & Services - Adult,A,2024,1
590,Community and Housing,UNITED RESPONSE,1145318,10-Apr-24,8251.44,1375.24,125227,Learning Disabilities Placemnt,321000              Social Community Care Supplies & Services - Adult,A,2024,1
591,Community and Housing,UNITED RESPONSE,1145429,10-Apr-24,8251.44,1375.24,125227,Learning Disabilities Placemnt,321000              Social Community Care Supplies & Services - Adult,A,2024,1
592,Community and Housing,REDACTED PERSONAL DATA,1149250,22-Apr-24,1642.2,0,125642,Phys/Sens Placements - East,DIRECT PAYMENTS,R,2024,1
593,Community and Housing,REDACTED PERSONAL DATA,1149446,22-Apr-24,1039.36,0,126189,Older People Placements - East,DIRECT PAYMENTS,R,2024,1
594,Community and Housing,REDACTED PERSONAL DATA,1149541,22-Apr-24,821.12,0,127266,Older People Placements - East,DIRECT PAYMENTS,R,2024,1
595,"Children, Schools and Family",ETEACH UK LTD,SI033179,12-Apr-24,658.8,109.8,127910,School Improvement DSG HNB,270000              Information Communication Technology,A,2024,1
596,Community and Housing,CHEQUERS ELECT'L AND BUILD'N SER,4400,10-Apr-24,718.2,119.7,128187,Occupational Therapy,"390000              Works - Construction, Repair & Maintenance",A,2024,1
597,"Children, Schools and Family",REDACTED PERSONAL DATA,1143203,05-Apr-24,514.26,0,128736,Placements Under 18,321100              Social Community Care Supplies & Services - Children,R,2024,1
598,"Children, Schools and Family",REDACTED PERSONAL DATA,1146142,12-Apr-24,514.26,0,128736,Placements Under 18,321100              Social Community Care Supplies & Services - Children,R,2024,1
599,"Children, Schools and Family",REDACTED PERSONAL DATA,1148213,19-Apr-24,514.26,0,128736,Placements Under 18,321100              Social Community Care Supplies & Services - Children,R,2024,1
600,"Children, Schools and Family",REDACTED PERSONAL DATA,1151652,26-Apr-24,514.26,0,128736,Placements Under 18,321100              Social Community Care Supplies & Services - Children,R,2024,1
601,"Children, Schools and Family",BLESSED LTD,BR02579,24-Apr-24,1800,300,130228,Non-Delegated Statements,170000              Education                                                                                 Confirmed,A,2024,1
602,Community and Housing,BUPA CARE HOMES,1145163,10-Apr-24,6570.21,0,130491,Phys/Sens Placements - East,321017              Nursing & Residential Care Homes,A,2024,1
603,Community and Housing,BUPA CARE HOMES,1145280,10-Apr-24,6510.6,0,130491,Phys/Sens Placements - East,321017              Nursing & Residential Care Homes,A,2024,1
604,"Children, Schools and Family",OAKTREE PRE-SCHOOL NURSERY,P1 24 UPFRONTPAY,05-Apr-24,25896.96,0,131726,EARLY YEARS NURSERY GRANTS,170000              Education,A,2024,1
605,Corporate Services,DOMINO 4 LIMITED,D.4435,09-Apr-24,4056,676,132991,Marketing & Communication,190000              Facilities & Management Services                                                          Confirmed,A,2024,1
606,Community and Housing,VOYAGE CARE LTD,1145246,10-Apr-24,7200.64,0,133700,Learning Disabilities Placemnt,321017              Nursing & Residential Care Homes,A,2024,1
607,Community and Housing,VOYAGE CARE LTD,1145348,10-Apr-24,10048,0,133700,Learning Disabilities Placemnt,321017              Nursing & Residential Care Homes,A,2024,1
608,Community and Housing,VOYAGE CARE LTD,1145427,10-Apr-24,8462.36,0,133700,Learning Disabilities Placemnt,321017              Nursing & Residential Care Homes,A,2024,1
609,Community and Housing,Sunrise Rehabilitation Centre,1145153,10-Apr-24,5213.88,0,135093,Learning Disabilities Placemnt,321017              Nursing & Residential Care Homes,A,2024,1
610,Community and Housing,Sunrise Rehabilitation Centre,1145187,10-Apr-24,5213.88,0,135093,Learning Disabilities Placemnt,321017              Nursing & Residential Care Homes,A,2024,1
611,Community and Housing,Sunrise Rehabilitation Centre,1145346,10-Apr-24,5161.52,0,135093,Learning Disabilities Placemnt,321017              Nursing & Residential Care Homes,A,2024,1
612,Community and Housing,Sunrise Rehabilitation Centre,1145471,10-Apr-24,5043.72,0,135093,Learning Disabilities Placemnt,321017              Nursing & Residential Care Homes,A,2024,1
613,Community and Housing,Sunrise Rehabilitation Centre,1145473,10-Apr-24,5174.6,0,135093,Learning Disabilities Placemnt,321017              Nursing & Residential Care Homes,A,2024,1
614,Community and Housing,Sunrise Rehabilitation Centre,1145497,10-Apr-24,5213.88,0,135093,Learning Disabilities Placemnt,321017              Nursing & Residential Care Homes,A,2024,1
615,Community and Housing,Sunrise Rehabilitation Centre,1145557,10-Apr-24,6102,0,135093,Learning Disabilities Placemnt,321017              Nursing & Residential Care Homes,A,2024,1
616,Community and Housing,Sunrise Rehabilitation Centre,1145575,10-Apr-24,4363.08,0,135093,Learning Disabilities Placemnt,321017              Nursing & Residential Care Homes,A,2024,1
617,Community and Housing,SW LONDON ST GEORGES NHS TRUST,P0071997,22-Apr-24,46032.18,0,135195,Mental Health Team,310000              Healthcare,A,2024,1
618,Community and Housing,SW LONDON ST GEORGES NHS TRUST,P0072016,01-May-24,7093.73,0,135195,Learning Disabilities Placemnt,310000              Healthcare,A,2024,1
619,Community and Housing,MERTON VISION,INV2010,10-Apr-24,5864.81,0,135428,Physical/Sensory Contracts,260000              Human Resources,A,2024,1
620,Community and Housing,MERTON VISION,INV1966,16-Apr-24,17594.43,0,135428,Physical/Sensory Contracts,260000              Human Resources,A,2024,1
621,Community and Housing,REDACTED PERSONAL DATA,1149392,22-Apr-24,1612.64,0,135784,Phys/Sens Placements - East,DIRECT PAYMENTS,R,2024,1
622,Community and Housing,VITALISE,1145402,10-Apr-24,5389.29,0,135823,Learning Disabilities Placemnt,321017              Nursing & Residential Care Homes,A,2024,1
623,"Children, Schools and Family",Bright Horizons - Raynes Park,P1 24 UPFRONTPAY,05-Apr-24,20592,0,136040,EARLY YEARS NURSERY GRANTS,170000              Education,A,2024,1
624,Unassigned,ZURICH INSURANCE GROUP,01E223/APR24,11-Apr-24,50000,0,137315,Corporate Services,200000              Financial Services,A,2024,1
625,Unassigned,LB Wandsworth Pension Fund Account,CETV324,01-May-24,3049.12,0,137418,London Borough of Merton,PENSIONS,A,2024,1
626,Community and Housing,REDACTED PERSONAL DATA,1149219,22-Apr-24,1320.76,0,139365,Phys/Sens Placements - East,DIRECT PAYMENTS,R,2024,1
627,"Children, Schools and Family",Building Blocks Childcare,P1 24 UPFRONTPAY,05-Apr-24,49509.12,0,139778,EARLY YEARS NURSERY GRANTS,170000              Education,A,2024,1
628,Community and Housing,REDACTED PERSONAL DATA,1149599,22-Apr-24,625.6,0,140662,Phys/Sens Placements - East,DIRECT PAYMENTS,R,2024,1
629,Community and Housing,REDACTED PERSONAL DATA,1149243,22-Apr-24,6224.36,0,140759,Phys/Sens Placements - East,DIRECT PAYMENTS,R,2024,1
630,Community and Housing,SURREY AND BORDERS PARTNERSHIP,1145309,10-Apr-24,11448.72,0,140911,Learning Disabilities Placemnt,321017              Nursing & Residential Care Homes,A,2024,1
631,Community and Housing,OXFORD UNIVERSITY PRESS,XI16705718,24-Apr-24,4684,0,140928,Media Fund,260000              Human Resources,A,2024,1
632,Environment and Regeneration,KELTIC CLOTHING LTD,179748,19-Apr-24,2255.22,375.87,141131,Civil Enforcement Officers,140000              Clothing,A,2024,1
633,Corporate Services,REDACTED PERSONAL DATA,INVWT204,24-Apr-24,750,125,141765,SLLP - Disbursements,280000              Legal Services                                                                            Confirmed,R,2024,1
634,Corporate Services,REDACTED PERSONAL DATA,INVWT203,24-Apr-24,900,150,141765,SLLP - Disbursements,280000              Legal Services                                                                            Confirmed,R,2024,1
635,Community and Housing,GARWOOD FOUNDATION,1145193,10-Apr-24,3400,0,142358,Phys/Sens Placements - East,321017              Nursing & Residential Care Homes,A,2024,1
636,Community and Housing,REDACTED PERSONAL DATA,1152192,29-Apr-24,1141.52,0,143597,MH Housing Support Placements,321000              Social Community Care Supplies & Services - Adult,R,2024,1
637,Community and Housing,REDACTED PERSONAL DATA,1152195,29-Apr-24,1426.8,0,143597,LD Housing Support Placements,321000              Social Community Care Supplies & Services - Adult,R,2024,1
638,Community and Housing,REDACTED PERSONAL DATA,1152221,29-Apr-24,1586.6,0,143597,Learning Disabilities Placemnt,321000              Social Community Care Supplies & Services - Adult,R,2024,1
639,Community and Housing,REDACTED PERSONAL DATA,1149532,22-Apr-24,4047.6,0,144689,Learning Disabilities Placemnt,DIRECT PAYMENTS,R,2024,1
640,Community and Housing,REDACTED PERSONAL DATA,1149327,22-Apr-24,5474,0,145882,Learning Disabilities Placemnt,DIRECT PAYMENTS,R,2024,1
641,"Children, Schools and Family",CAMBIAN AUTISM SERVICES LTD,CUI0003153,11-Apr-24,26032.31,0,146682,SEN Residential (DSG),321100              Social Community Care Supplies & Services - Children,A,2024,1
642,"Children, Schools and Family",WELFARE CALL (LAC) LTD,24LAC-067,23-Apr-24,36190.44,6031.74,146772,Virtual School - CWSW,321100              Social Community Care Supplies & Services - Children                                      Confimed,A,2024,1
643,"Children, Schools and Family",WELFARE CALL (LAC) LTD,24LAC-068,23-Apr-24,30054.85,5009.14,146772,PupilPremium- Virtual School,321100              Social Community Care Supplies & Services - Children                                      Confimed,A,2024,1
644,"Children, Schools and Family",ACORN NURSERY,P1 24 UPFRONTPAY,05-Apr-24,13190.4,0,147406,EARLY YEARS NURSERY GRANTS,200000              Financial Services,A,2024,1
645,"Children, Schools and Family",SPEECH CENTRE,111298,08-Apr-24,1549.2,258.2,147920,Children in Care Under18-Team1,270000              Information Communication Technology,A,2024,1
646,Community and Housing,GENERATE,12210,18-Apr-24,2884,0,148332,Learning Disabilities Placemnt,321000              Social Community Care Supplies & Services - Adult,A,2024,1
647,Community and Housing,GENERATE,12212,18-Apr-24,1071.2,0,148332,Learning Disabilities Placemnt,321000              Social Community Care Supplies & Services - Adult,A,2024,1
648,Community and Housing,GENERATE,12209,18-Apr-24,727.2,0,148332,Learning Disabilities Placemnt,321000              Social Community Care Supplies & Services - Adult,A,2024,1
649,Community and Housing,CHICHESTER HALL CARE HOME LTD,1145513,10-Apr-24,2637.2,0,148358,Older People Placements - East,321017              Nursing & Residential Care Homes,A,2024,1
650,"Children, Schools and Family",Dicky Birds Pre Sch. Nurseries Queens Rd,P1 24 UPFRONTPAY,16-Apr-24,46851.84,0,148567,EARLY YEARS NURSERY GRANTS,200000              Financial Services,A,2024,1
651,"Children, Schools and Family",MARIA MONTESSORI CHILDREN'S,P1 24 UPFRONTPAY,05-Apr-24,27507.36,0,148568,EARLY YEARS NURSERY GRANTS,200000              Financial Services,A,2024,1
652,Corporate Services,Hornbill Technologies Limited,INV18652,02-May-24,17074.1,2845.68,148881,IT Service Delivery,270000              Information Communication Technology,A,2024,1
653,"Children, Schools and Family",REDACTED PERSONAL DATA,P1 24 UPFRONTPAY,05-Apr-24,6084.48,0,149524,EARLY YEARS NURSERY GRANTS,321100              Social Community Care Supplies & Services - Children                                      Confirmed,R,2024,1
654,"Children, Schools and Family",DONHEAD SCHOOL,P124 UPFRONTPAY,19-Apr-24,5930.5,0,149760,EARLY YEARS NURSERY GRANTS,170000              Education,A,2024,1
655,Unassigned,Canterbury Campus,SCHOOLS 2425/1 A,08-Apr-24,370152.61,0,150054,Schools,170000              Education,A,2024,1
656,Unassigned,BARNETT WADDINGHAM LLP,824/0325,22-Apr-24,1903.5,317.25,150927,Governance & Oversight Cost,PENSIONS,A,2024,1
657,Unassigned,BARNETT WADDINGHAM LLP,T24/6732,18-Apr-24,1464,244,150927,Governance & Oversight Cost,PENSIONS,A,2024,1
658,Community and Housing,REDACTED PERSONAL DATA,1149268,22-Apr-24,3076,0,151002,Older People Placements - East,DIRECT PAYMENTS,R,2024,1
659,Community and Housing,AIMS CARE PARTNERSHIP,1145245,10-Apr-24,10560,0,151592,Learning Disabilities Placemnt,321017              Nursing & Residential Care Homes,A,2024,1
660,Community and Housing,AIMS CARE PARTNERSHIP,1145282,10-Apr-24,3114.72,0,151592,Learning Disabilities Placemnt,321017              Nursing & Residential Care Homes,A,2024,1
661,Corporate Services,STITCHES MARQUEES,6494,10-Apr-24,5239.44,873.24,151682,Non-Local Election Expenses?,190000              Facilities & Management Services,A,2024,1
662,Corporate Services,STITCHES MARQUEES,6495,10-Apr-24,3839.4,639.9,151682,Non-Local Election Expenses?,190000              Facilities & Management Services,A,2024,1
663,Community and Housing,HOLISTIC COMMUNITY CARE - FC,MERP1224/6,04-Apr-24,848.01,0,151996,Phys/Sens Placements - East,321000              Social Community Care Supplies & Services - Adult,A,2024,1
664,Community and Housing,HOLISTIC COMMUNITY CARE - FC,MERP1224/16,04-Apr-24,14023.04,0,151996,Older People Placements - East,321000              Social Community Care Supplies & Services - Adult,A,2024,1
665,Community and Housing,HOLISTIC COMMUNITY CARE - FC,MERP1224/17,04-Apr-24,1047.17,0,151996,Older People Placements - East,321000              Social Community Care Supplies & Services - Adult,A,2024,1
666,Community and Housing,HOLISTIC COMMUNITY CARE - FC,MERP1224/19,04-Apr-24,540.07,0,151996,Older People Placements - East,321000              Social Community Care Supplies & Services - Adult,A,2024,1
667,Community and Housing,HOLISTIC COMMUNITY CARE - FC,MERP1224/1,04-Apr-24,1037.03,0,151996,Older People Placements - East,321000              Social Community Care Supplies & Services - Adult,A,2024,1
668,Community and Housing,HOLISTIC COMMUNITY CARE - FC,MERP1224/2,04-Apr-24,747.59,0,151996,Older People Placements - East,321000              Social Community Care Supplies & Services - Adult,A,2024,1
669,Community and Housing,HOLISTIC COMMUNITY CARE - FC,MERP1224/5,04-Apr-24,1957.12,0,151996,Older People Placements - East,321000              Social Community Care Supplies & Services - Adult,A,2024,1
670,Community and Housing,HOLISTIC COMMUNITY CARE - FC,MER1323/24/2,04-Apr-24,861.17,0,151996,Phys/Sens Placements - East,321000              Social Community Care Supplies & Services - Adult,A,2024,1
671,Community and Housing,HOLISTIC COMMUNITY CARE - FC,MER1323/24/5,04-Apr-24,14013.8,0,151996,Older People Placements - East,321000              Social Community Care Supplies & Services - Adult,A,2024,1
672,Community and Housing,HOLISTIC COMMUNITY CARE - FC,MER1323/24/6,04-Apr-24,537.41,0,151996,Older People Placements - East,321000              Social Community Care Supplies & Services - Adult,A,2024,1
673,Community and Housing,HOLISTIC COMMUNITY CARE - FC,MER1323/24/1,04-Apr-24,1909.88,0,151996,Older People Placements - East,321000              Social Community Care Supplies & Services - Adult,A,2024,1
674,Community and Housing,HOLISTIC COMMUNITY CARE - FC,MERP0124/25/2,23-Apr-24,859.73,0,151996,Phys/Sens Placements - East,321000              Social Community Care Supplies & Services - Adult,A,2024,1
675,Community and Housing,HOLISTIC COMMUNITY CARE - FC,MERP0124/25/4,23-Apr-24,14012.06,0,151996,Older People Placements - East,321000              Social Community Care Supplies & Services - Adult,A,2024,1
676,Community and Housing,HOLISTIC COMMUNITY CARE - FC,MERP0124/25/1,23-Apr-24,1946.29,0,151996,Older People Placements - East,321000              Social Community Care Supplies & Services - Adult,A,2024,1
677,Unassigned,WANDSWORTH CORPORATION,2101402788,22-Apr-24,5166.06,861.01,152180,Administrative Cost,OLA,A,2024,1
678,Community and Housing,REDACTED PERSONAL DATA,1149472,22-Apr-24,1173,0,152709,Older People Placements - East,DIRECT PAYMENTS,R,2024,1
679,Community and Housing,REDACTED PERSONAL DATA,1149333,22-Apr-24,1964.48,0,152990,Learning Disabilities Placemnt,DIRECT PAYMENTS,R,2024,1
680,Community and Housing,LYNTON HALL NURSING HOME,1145136,15-Apr-24,3365.72,0,153795,Older People Placements - East,321017              Nursing & Residential Care Homes,A,2024,1
681,Community and Housing,LYNTON HALL NURSING HOME,1145143,15-Apr-24,3242.52,0,153795,Older People Placements - East,321017              Nursing & Residential Care Homes,A,2024,1
682,Community and Housing,LYNTON HALL NURSING HOME,1145316,15-Apr-24,3525.8,0,153795,Older People Placements - East,321017              Nursing & Residential Care Homes,A,2024,1
683,Corporate Services,MBL SEMINARS LTD,1425921,22-Apr-24,774,129,154631,Legal Shared Service,260000              Human Resources,A,2024,1
684,Unassigned,HARRIS ACADEMY MERTON,SCHOOLS 2425/1 A,08-Apr-24,44917.49,0,155274,Schools,170000              Education,A,2024,1
685,"Children, Schools and Family",HARRIS ACADEMY MERTON,TD-THOMPSON17042,18-Apr-24,600,0,155274,PupilPremium- Virtual School,170000              Education,A,2024,1
686,"Children, Schools and Family",HARRIS ACADEMY MERTON,J-THOMPSON170424,18-Apr-24,600,0,155274,PupilPremium- Virtual School,170000              Education,A,2024,1
687,Unassigned,CFBT SCHOOLS TRUST,SCHOOLS 2425/1 A,08-Apr-24,27829.89,0,155275,Schools,170000              Education,A,2024,1
688,Corporate Services,WESTWAY COACH SERVICES,65612,30-Apr-24,9000,0,155559,Non-Local Election Expenses?,360000              Passenger Transport,A,2024,1
689,Community and Housing,REDACTED PERSONAL DATA,1149466,22-Apr-24,586.52,0,156180,Mental Health Placements,DIRECT PAYMENTS,R,2024,1
690,Community and Housing,BDS LTD,21363,23-Apr-24,9247.8,1541.3,158748,Media Fund,270000              Information Communication Technology,A,2024,1
691,Community and Housing,REDACTED PERSONAL DATA,1149390,22-Apr-24,1104.44,0,159542,Older People Placements - East,DIRECT PAYMENTS,R,2024,1
692,Community and Housing,METROPOLITAN THAMES VALLEY,3067858SM,05-Apr-24,2171,0,160080,Learning Disabilities Placemnt,321017              Nursing & Residential Care Homes,A,2024,1
693,Community and Housing,METROPOLITAN THAMES VALLEY,3067858LD,05-Apr-24,2171,0,160080,Learning Disabilities Placemnt,321017              Nursing & Residential Care Homes,A,2024,1
694,Community and Housing,METROPOLITAN THAMES VALLEY,3067858,05-Apr-24,2171,0,160080,Learning Disabilities Placemnt,321017              Nursing & Residential Care Homes,A,2024,1
695,Community and Housing,METROPOLITAN THAMES VALLEY,3067858SC,05-Apr-24,2171,0,160080,Learning Disabilities Placemnt,321017              Nursing & Residential Care Homes,A,2024,1
696,Corporate Services,TROWERS AND HAMLINS,11-233460,15-Apr-24,2055.6,342.6,160116,SLLP - Disbursements,280000              Legal Services                                                                            Confirmed,A,2024,1
697,"Children, Schools and Family",REDACTED PERSONAL DATA,1143352,05-Apr-24,6332.32,0,160147,Child Disabilities - Placement,CSF-DIRECT PAYMENTS,R,2024,1
698,Community and Housing,REDACTED PERSONAL DATA,REFUND RENT 1 WK,10-Apr-24,883,0,160147,Homelessness Prevention,CSF-DIRECT PAYMENTS,R,2024,1
699,"Children, Schools and Family",REDACTED PERSONAL DATA,1148812,22-Apr-24,6332.32,0,160147,Child Disabilities - Placement,CSF-DIRECT PAYMENTS,R,2024,1
700,Community and Housing,REDACTED PERSONAL DATA,1149356,22-Apr-24,1422.48,0,160244,Phys/Sens Placements - East,DIRECT PAYMENTS,R,2024,1
701,Community and Housing,REDACTED PERSONAL DATA,1149303,22-Apr-24,742.92,0,160273,Learning Disabilities Placemnt,DIRECT PAYMENTS,R,2024,1
702,Community and Housing,REDACTED PERSONAL DATA,1149407,22-Apr-24,1087.44,0,160279,Phys/Sens Placements - East,DIRECT PAYMENTS,R,2024,1
703,"Children, Schools and Family",Fleet Educ.Services Ltd T/A Fleet Tutors,32068,08-Apr-24,4278,713,160300,Non-Delegated Statements,260000              Human Resources,A,2024,1
704,"Children, Schools and Family",THE NATIONAL FOSTERING AGENCY,497237,22-Apr-24,4129.2,0,160464,UASC LAC Under 18,321100              Social Community Care Supplies & Services - Children,A,2024,1
705,"Children, Schools and Family",THE NATIONAL FOSTERING AGENCY,497240,22-Apr-24,5703.38,0,160464,Placements Under 18,321100              Social Community Care Supplies & Services - Children,A,2024,1
706,"Children, Schools and Family",THE NATIONAL FOSTERING AGENCY,497241,22-Apr-24,6009.57,0,160464,Placements Under 18,321100              Social Community Care Supplies & Services - Children,A,2024,1
707,"Children, Schools and Family",THE NATIONAL FOSTERING AGENCY,497239,22-Apr-24,5703.38,0,160464,Placements Under 18,321100              Social Community Care Supplies & Services - Children,A,2024,1
708,"Children, Schools and Family",THE NATIONAL FOSTERING AGENCY,497238,22-Apr-24,3463.2,0,160464,Placements Under 18,321100              Social Community Care Supplies & Services - Children,A,2024,1
709,Community and Housing,THE AVENUES TRUST GROUP,1004735,05-Apr-24,10268.2,0,160730,Learning Disabilities Placemnt,321017              Nursing & Residential Care Homes,A,2024,1
710,"Children, Schools and Family",THE AWARD SCHEME LTD,PSH94897,22-Apr-24,2180,0,161088, Duke of Edinburgh Awrds,290000              Arts & Leisure Services,A,2024,1
711,"Children, Schools and Family",REDACTED PERSONAL DATA,1143191,05-Apr-24,548.09,0,161094,UASC LAC Under 18,321100              Social Community Care Supplies & Services - Children,R,2024,1
712,"Children, Schools and Family",REDACTED PERSONAL DATA,1143286,05-Apr-24,616,0,161094,Placements Under 18,321100              Social Community Care Supplies & Services - Children,R,2024,1
713,"Children, Schools and Family",REDACTED PERSONAL DATA,1146125,12-Apr-24,551.9,0,161094,Placements Over 18,321100              Social Community Care Supplies & Services - Children,R,2024,1
714,"Children, Schools and Family",REDACTED PERSONAL DATA,1146130,12-Apr-24,548.09,0,161094,UASC LAC Under 18,321100              Social Community Care Supplies & Services - Children,R,2024,1
715,"Children, Schools and Family",REDACTED PERSONAL DATA,1146229,12-Apr-24,616,0,161094,Placements Under 18,321100              Social Community Care Supplies & Services - Children,R,2024,1
716,"Children, Schools and Family",REDACTED PERSONAL DATA,1148199,19-Apr-24,548.09,0,161094,UASC LAC Under 18,321100              Social Community Care Supplies & Services - Children,R,2024,1
717,"Children, Schools and Family",REDACTED PERSONAL DATA,1148212,19-Apr-24,1017.88,0,161094,Placements Under 18,321100              Social Community Care Supplies & Services - Children,R,2024,1
718,"Children, Schools and Family",REDACTED PERSONAL DATA,1148298,19-Apr-24,616,0,161094,Placements Under 18,321100              Social Community Care Supplies & Services - Children,R,2024,1
719,"Children, Schools and Family",REDACTED PERSONAL DATA,1151639,26-Apr-24,548.09,0,161094,UASC LAC Under 18,321100              Social Community Care Supplies & Services - Children,R,2024,1
720,"Children, Schools and Family",REDACTED PERSONAL DATA,1151651,26-Apr-24,548.09,0,161094,Placements Under 18,321100              Social Community Care Supplies & Services - Children,R,2024,1
721,"Children, Schools and Family",REDACTED PERSONAL DATA,1151738,26-Apr-24,616,0,161094,Placements Under 18,321100              Social Community Care Supplies & Services - Children,R,2024,1
722,Corporate Services,JC APPLICATIONS DEVELOPMENT,19913,23-Apr-24,17604,2934,161398,Insurance Premiums & Funding,270000              Information Communication Technology,A,2024,1
723,"Children, Schools and Family",CAPEL MANOR COLLEGE,120707,16-Apr-24,1321.12,0,161418,Non-Maintained Post 16 SEN,170000              Education,A,2024,1
724,"Children, Schools and Family",CAPEL MANOR COLLEGE,120706,16-Apr-24,2220.77,0,161418,Non-Maintained Post 16 SEN,170000              Education,A,2024,1
725,Environment and Regeneration,KAT TRANSPORT LTD,99,19-Apr-24,4320,720,162381,Passenger Transport,360000              Passenger Transport,A,2024,1
726,Environment and Regeneration,KAT TRANSPORT LTD,100,19-Apr-24,4440,740,162381,Passenger Transport,360000              Passenger Transport,A,2024,1
727,"Children, Schools and Family",ELKLAN TRAINING LTD,INV-18156,29-Apr-24,636,106,162625,Language & Learning Service,170000              Education,A,2024,1
728,Corporate Services,HANDD BUSINESS SOLUTIONS LTD,CE1007170,02-May-24,8367.57,1394.59,162826,IT Service Delivery,270000              Information Communication Technology,A,2024,1
729,Community and Housing,REDACTED PERSONAL DATA,1149376,22-Apr-24,1778.4,0,163392,Learning Disabilities Placemnt,DIRECT PAYMENTS,R,2024,1
730,Environment and Regeneration,D N H PROPERTY MAINTENANCE,2525DNH,25-Apr-24,2676,446,163395,HLF Canons,"390000              Works - Construction, Repair & Maintenance",C,2024,1
731,Capital,D N H PROPERTY MAINTENANCE,2443DNH,23-Apr-24,696,116,163395,Works to other buildings,"390000              Works - Construction, Repair & Maintenance",C,2024,1
732,"Children, Schools and Family",REDACTED PERSONAL DATA,1143162,05-Apr-24,548.09,0,163471,UASC LAC Under 18,200000              Financial Services,R,2024,1
733,"Children, Schools and Family",REDACTED PERSONAL DATA,1143248,05-Apr-24,785.52,0,163471,Placements Under 18,200000              Financial Services,R,2024,1
734,"Children, Schools and Family",REDACTED PERSONAL DATA,1143257,05-Apr-24,951.36,0,163471,Placements Under 18,200000              Financial Services,R,2024,1
735,"Children, Schools and Family",REDACTED PERSONAL DATA,1146100,12-Apr-24,548.09,0,163471,UASC LAC Under 18,200000              Financial Services,R,2024,1
736,"Children, Schools and Family",REDACTED PERSONAL DATA,1146191,12-Apr-24,785.52,0,163471,Placements Under 18,200000              Financial Services,R,2024,1
737,"Children, Schools and Family",REDACTED PERSONAL DATA,1146200,12-Apr-24,692.46,0,163471,Placements Under 18,200000              Financial Services,R,2024,1
738,"Children, Schools and Family",REDACTED PERSONAL DATA,1148171,19-Apr-24,548.09,0,163471,UASC LAC Under 18,200000              Financial Services,R,2024,1
739,"Children, Schools and Family",REDACTED PERSONAL DATA,1148260,19-Apr-24,785.52,0,163471,Placements Under 18,200000              Financial Services,R,2024,1
740,"Children, Schools and Family",REDACTED PERSONAL DATA,1148269,19-Apr-24,692.46,0,163471,Placements Under 18,200000              Financial Services,R,2024,1
741,"Children, Schools and Family",REDACTED PERSONAL DATA,1151611,26-Apr-24,648.09,0,163471,UASC LAC Under 18,200000              Financial Services,R,2024,1
742,"Children, Schools and Family",REDACTED PERSONAL DATA,1151699,26-Apr-24,785.52,0,163471,Placements Under 18,200000              Financial Services,R,2024,1
743,"Children, Schools and Family",REDACTED PERSONAL DATA,1151708,26-Apr-24,692.46,0,163471,Placements Under 18,200000              Financial Services,R,2024,1
744,Community and Housing,Active Prospects,1145166,10-Apr-24,6103.76,0,163859,Learning Disabilities Placemnt,321017              Nursing & Residential Care Homes,A,2024,1
745,"Children, Schools and Family",THE SENSORY SMART CHILD LTD,28317,29-Apr-24,810,0,163927,Non-Delegated Statements,321100              Social Community Care Supplies & Services - Children,A,2024,1
746,Community and Housing,REDACTED PERSONAL DATA,1149297,22-Apr-24,1281.72,0,163971,Older People Placements - East,DIRECT PAYMENTS,R,2024,1
747,"Children, Schools and Family",BUMBLE BEES'S DAY NURSERY-COCC,P1 24 UPFRONTPAY,05-Apr-24,26017.92,0,164240,EARLY YEARS NURSERY GRANTS,200000              Financial Services,A,2024,1
748,Corporate Services,ZURICH INSURANCE COMPANY,F01E2230201,30-Apr-24,96929.39,0,164284,Insurance Premiums & Funding,200000              Financial Services,A,2024,1
749,Corporate Services,LONDON COUNCILS,4360051,09-Apr-24,3000,500,164343,Chief Executive,OLA,A,2024,1
750,Corporate Services,LONDON COUNCILS,4362819,22-Apr-24,41596.8,6932.8,164343,Chief Executive,OLA,A,2024,1
751,Corporate Services,LONDON COUNCILS,4362917,22-Apr-24,127294,0,164343,Chief Executive,OLA,A,2024,1
752,Corporate Services,LONDON COUNCILS,4362044,24-Apr-24,40370,0,164343,VOLUNTARY SECTOR COORDINATION,OLA,A,2024,1
753,Environment and Regeneration,LONDON COUNCILS,4363401,29-Apr-24,16905.19,0,164343,Operational Running Costs,OLA,A,2024,1
754,Community and Housing,BUPA CARE SERVICES BACS RECEIP,1145359,10-Apr-24,8580.84,0,164629,Older People Placements - East,321017              Nursing & Residential Care Homes,A,2024,1
755,Community and Housing,REDACTED PERSONAL DATA,1149505,22-Apr-24,2405.52,0,164694,Older People Placements - East,DIRECT PAYMENTS,R,2024,1
756,Corporate Services,HBINFO LTD,S/017586,22-Apr-24,624,104,164960,Learning and Development,260000              Human Resources,A,2024,1
757,Unassigned,MARSTON GROUP,63128,16-Apr-24,1594.88,0,165202,Corporate Accountancy,200000              Financial Services,A,2024,1
758,"Children, Schools and Family",CHILDREN OF COLOUR,8508,30-Apr-24,3301.04,0,165365,Placements Under 18,321100              Social Community Care Supplies & Services - Children,A,2024,1
759,Community and Housing,REDACTED PERSONAL DATA,1149527,22-Apr-24,2267.8,0,165602,Learning Disabilities Placemnt,DIRECT PAYMENTS,R,2024,1
760,Community and Housing,REDACTED PERSONAL DATA,1149480,22-Apr-24,7111.44,0,165619,Phys/Sens Placements - East,DIRECT PAYMENTS,R,2024,1
761,Community and Housing,BUPA CARE HOMES (ANS) LTD,1145534,10-Apr-24,5124.04,0,165704,Older People Placements - East,321017              Nursing & Residential Care Homes,A,2024,1
762,Community and Housing,REDACTED PERSONAL DATA,1149572,22-Apr-24,1262.96,0,165786,Older People Placements - East,DIRECT PAYMENTS,R,2024,1
763,Environment and Regeneration,CASCADE SOFTWARE LIMITED,511086,23-Apr-24,1188,198,166051,Br. H'ways & Struct,270000              Information Communication Technology,A,2024,1
764,Community and Housing,REDACTED PERSONAL DATA,1149587,22-Apr-24,700.8,0,166085,Learning Disabilities Placemnt,DIRECT PAYMENTS,R,2024,1
765,Community and Housing,REDACTED PERSONAL DATA,1149251,22-Apr-24,1951.32,0,166158,Phys/Sens Placements - East,DIRECT PAYMENTS,R,2024,1
766,"Children, Schools and Family",REDACTED PERSONAL DATA,P1 24 UPFRONTPAY,05-Apr-24,5535.36,0,166244,EARLY YEARS NURSERY GRANTS,200000              Financial Services,R,2024,1
767,Community and Housing,REDACTED PERSONAL DATA,1149282,22-Apr-24,1485.8,0,166547,Learning Disabilities Placemnt,DIRECT PAYMENTS,R,2024,1
768,"Children, Schools and Family",REDACTED PERSONAL DATA,1143169,05-Apr-24,1354.2,0,166742,Placements Under 18,321100              Social Community Care Supplies & Services - Children,R,2024,1
769,"Children, Schools and Family",REDACTED PERSONAL DATA,1146107,12-Apr-24,1354.2,0,166742,Placements Under 18,321100              Social Community Care Supplies & Services - Children,R,2024,1
770,"Children, Schools and Family",REDACTED PERSONAL DATA,1148177,19-Apr-24,1354.2,0,166742,Placements Under 18,321100              Social Community Care Supplies & Services - Children,R,2024,1
771,"Children, Schools and Family",REDACTED PERSONAL DATA,1151617,26-Apr-24,1354.2,0,166742,Placements Under 18,321100              Social Community Care Supplies & Services - Children,R,2024,1
772,Corporate Services,REDACTED PERSONAL DATA,00564-19701748-B,19-Apr-24,1458,4.16,166885,Client Finance Affairs,120000              Cemetery & Crematorium,R,2024,1
773,Corporate Services,REDACTED PERSONAL DATA,00564-19729470-B,23-Apr-24,1458,4.16,166885,Client Finance Affairs,120000              Cemetery & Crematorium,R,2024,1
774,"Children, Schools and Family",WIMBLEDON DAY NURSERY,P1 24 UPFRONTPAY,05-Apr-24,8357.76,0,167298,EARLY YEARS NURSERY GRANTS,170000              Education,A,2024,1
775,Environment and Regeneration,IMPERIAL CIVIL ENFORC.SOLUT.,INV0000009738,22-Apr-24,2120.39,353.39,167737,Operational Running Costs,270000              Information Communication Technology,A,2024,1
776,"Children, Schools and Family",REDACTED PERSONAL DATA,P1 24 UPFRONTPAY,05-Apr-24,1296,0,167790,EARLY YEARS NURSERY GRANTS,200000              Financial Services,R,2024,1
777,"Children, Schools and Family",RAINBOW FOSTERING SERVICES LTD,RF4705,09-Apr-24,3742.13,0,167793,Placements Under 18,321100              Social Community Care Supplies & Services - Children,A,2024,1
778,"Children, Schools and Family",BURLINGTON HOUSE SCHOOL,240442,23-Apr-24,13328,0,167981,Non-Delegated Statements,200000              Financial Services,A,2024,1
779,"Children, Schools and Family",BURLINGTON HOUSE SCHOOL,240462,23-Apr-24,13456,0,167981,Non-Delegated Statements,200000              Financial Services,A,2024,1
780,"Children, Schools and Family",BURLINGTON HOUSE SCHOOL,240439,23-Apr-24,12887,0,167981,Non-Delegated Statements,200000              Financial Services,A,2024,1
781,"Children, Schools and Family",BURLINGTON HOUSE SCHOOL,240437,23-Apr-24,12513,0,167981,Non-Delegated Statements,200000              Financial Services,A,2024,1
782,"Children, Schools and Family",BURLINGTON HOUSE SCHOOL,240438,23-Apr-24,12513,0,167981,Non-Delegated Statements,200000              Financial Services,A,2024,1
783,"Children, Schools and Family",BURLINGTON HOUSE SCHOOL,6240450,23-Apr-24,13110,0,167981,Non-Delegated Statements,200000              Financial Services,A,2024,1
784,"Children, Schools and Family",BURLINGTON HOUSE SCHOOL,6240452,23-Apr-24,13897,0,167981,Non-Delegated Statements,200000              Financial Services,A,2024,1
785,"Children, Schools and Family",BURLINGTON HOUSE SCHOOL,6240451,23-Apr-24,13897,0,167981,Non-Delegated Statements,200000              Financial Services,A,2024,1
786,"Children, Schools and Family",BURLINGTON HOUSE SCHOOL,P240424,23-Apr-24,13328,0,167981,Non-Delegated Statements,200000              Financial Services,A,2024,1
787,"Children, Schools and Family",BURLINGTON HOUSE SCHOOL,6240453,23-Apr-24,13897,0,167981,Non-Delegated Statements,200000              Financial Services,A,2024,1
788,"Children, Schools and Family",BURLINGTON HOUSE SCHOOL,P240440,23-Apr-24,13456,0,167981,Non-Delegated Statements,200000              Financial Services,A,2024,1
789,"Children, Schools and Family",BURLINGTON HOUSE SCHOOL,P240425,23-Apr-24,13456,0,167981,Non-Delegated Statements,200000              Financial Services,A,2024,1
790,"Children, Schools and Family",BURLINGTON HOUSE SCHOOL,6240457,23-Apr-24,13897,0,167981,Non-Delegated Statements,200000              Financial Services,A,2024,1
791,"Children, Schools and Family",BURLINGTON HOUSE SCHOOL,240440,23-Apr-24,12887,0,167981,Non-Delegated Statements,200000              Financial Services,A,2024,1
792,"Children, Schools and Family",BURLINGTON HOUSE SCHOOL,P240423,23-Apr-24,13328,0,167981,Non-Delegated Statements,200000              Financial Services,A,2024,1
793,Corporate Services,REDACTED PERSONAL DATA,10269131,22-Apr-24,2235.6,372.6,168092,SLLP - Disbursements,280000              Legal Services,R,2024,1
794,Corporate Services,REDACTED PERSONAL DATA,10269469,23-Apr-24,648,108,168092,Legal Shared Service,280000              Legal Services,R,2024,1
795,Capital,CBS Adaptation Design,1921,25-Apr-24,893.74,0,168147,Disabled Facilities Grant,200000              Financial Services,A,2024,1
796,Capital,CBS Adaptation Design,1915,25-Apr-24,1607.85,0,168147,Disabled Facilities Grant,200000              Financial Services,A,2024,1
797,Corporate Services,LANGUAGE BANK,MTS-135924,22-Apr-24,525,87.5,168229,Translation Service,TRANSLATIONS,A,2024,1
798,Corporate Services,LANGUAGE BANK,MTS-136009,29-Apr-24,504,84,168229,Translation Service,TRANSLATIONS,A,2024,1
799,Corporate Services,LANGUAGE BANK,MTS-135935,23-Apr-24,966,161,168229,Translation Service,TRANSLATIONS,A,2024,1
800,Corporate Services,LANGUAGE BANK,MTS-135980,30-Apr-24,1101,183.5,168229,Translation Service,TRANSLATIONS,A,2024,1
801,Corporate Services,LANGUAGE BANK,MTS136020,30-Apr-24,642,107,168229,Translation Service,TRANSLATIONS,A,2024,1
802,Community and Housing,REDACTED PERSONAL DATA,1149288,22-Apr-24,1023.8,0,168403,Learning Disabilities Placemnt,DIRECT PAYMENTS,R,2024,1
803,Community and Housing,Wimbledon Arts T/A Wimbledon BookFest,INV-4212,25-Apr-24,8500,0,168472,LIB- National Portfolio Org,200000              Financial Services,A,2024,1
804,Community and Housing,Wimbledon Arts T/A Wimbledon BookFest,INV-4213,25-Apr-24,10000,0,168472,LIB- National Portfolio Org,200000              Financial Services,A,2024,1
805,Community and Housing,Wimbledon Arts T/A Wimbledon BookFest,INV-4214,25-Apr-24,2000,0,168472,LIB- National Portfolio Org,200000              Financial Services,A,2024,1
806,"Children, Schools and Family",REDACTED PERSONAL DATA,P1 24 UPFRONTPAY,05-Apr-24,2943.36,0,168744,EARLY YEARS NURSERY GRANTS,200000              Financial Services,R,2024,1
807,"Children, Schools and Family",WILLOWS PRE SCHOOL,P1 24 UPFRONTPAY,05-Apr-24,27192.96,0,168752,EARLY YEARS NURSERY GRANTS,170000              Education,A,2024,1
808,"Children, Schools and Family",OFSTED,SINCC3F68210,29-Apr-24,3216,0,168756,Fostering Support,170000              Education,A,2024,1
809,Community and Housing,FITZROY SUPPORT,1145200,10-Apr-24,6979.52,0,169400,Learning Disabilities Placemnt,321017              Nursing & Residential Care Homes,A,2024,1
810,Corporate Services,THE LUCY FAITHFULL FOUNDATION,12520,22-Apr-24,1976,0,169410,SLLP - Disbursements,280000              Legal Services                                                                            Confirmed,A,2024,1
811,Corporate Services,KC Services Group,64243,17-Apr-24,1920,320,169420,Facilities,"390000              Works - Construction, Repair & Maintenance",A,2024,1
812,Community and Housing,SAFESPACES (CORNHOLME) LTD,SI00007608,26-Apr-24,2934.17,489.03,169699,Learning Disabilities Placemnt,310000              Healthcare                                                                                Confirmed,A,2024,1
813,"Children, Schools and Family",REDACTED PERSONAL DATA,P1 24 UPFRONTPAY,05-Apr-24,1647.36,0,169972,EARLY YEARS NURSERY GRANTS,321100              Social Community Care Supplies & Services - Children,R,2024,1
814,Corporate Services,REDACTED PERSONAL DATA,INVFS417,17-Apr-24,4560,760,170067,SLLP - Disbursements,280000              Legal Services                                                                            Confirmed,R,2024,1
815,"Children, Schools and Family",JULIUS RUTHERFOORD AND CO LTD,INVS154126,22-Apr-24,861.97,143.66,170092,Avenue CC Building Management,130000              Cleaning & Janitorial,A,2024,1
816,"Children, Schools and Family",JULIUS RUTHERFOORD AND CO LTD,INVS153848,22-Apr-24,1229.42,204.9,170092,Bond Road Building,130000              Cleaning & Janitorial,A,2024,1
817,"Children, Schools and Family",JULIUS RUTHERFOORD AND CO LTD,INVS153874,22-Apr-24,861.97,143.66,170092,Church Road Building,130000              Cleaning & Janitorial,A,2024,1
818,"Children, Schools and Family",JULIUS RUTHERFOORD AND CO LTD,INVS153977,22-Apr-24,862.03,143.67,170092,Ivy Garden CC Building,130000              Cleaning & Janitorial,A,2024,1
819,"Children, Schools and Family",JULIUS RUTHERFOORD AND CO LTD,INVS153819,22-Apr-24,861.97,143.66,170092,Lower Morden CC Building Mgt,130000              Cleaning & Janitorial,A,2024,1
820,"Children, Schools and Family",JULIUS RUTHERFOORD AND CO LTD,INVS154024,22-Apr-24,1298.96,216.49,170092,Newminster CC Building Mgt,130000              Cleaning & Janitorial,A,2024,1
821,"Children, Schools and Family",JULIUS RUTHERFOORD AND CO LTD,INVS154078,22-Apr-24,2374.03,395.67,170092, PFI Unitary Charges,130000              Cleaning & Janitorial,A,2024,1
822,"Children, Schools and Family",JULIUS RUTHERFOORD AND CO LTD,INVS154077,22-Apr-24,25304.67,4217.45,170092, PFI Unitary Charges,130000              Cleaning & Janitorial,A,2024,1
823,"Children, Schools and Family",JULIUS RUTHERFOORD AND CO LTD,INVS154080,22-Apr-24,2167.77,361.3,170092, PFI Unitary Charges,130000              Cleaning & Janitorial,A,2024,1
824,"Children, Schools and Family",JULIUS RUTHERFOORD AND CO LTD,INVS154079,22-Apr-24,29555.45,4925.92,170092, PFI Unitary Charges,130000              Cleaning & Janitorial,A,2024,1
825,"Children, Schools and Family",JULIUS RUTHERFOORD AND CO LTD,INVS154075,22-Apr-24,1087.1,181.18,170092, PFI Unitary Charges,130000              Cleaning & Janitorial,A,2024,1
826,"Children, Schools and Family",JULIUS RUTHERFOORD AND CO LTD,INVS154074,22-Apr-24,26940.04,4490.02,170092, PFI Unitary Charges,130000              Cleaning & Janitorial,A,2024,1
827,"Children, Schools and Family",REDACTED PERSONAL DATA,P1 24 UPFRONTPAY,05-Apr-24,4942.08,0,170225,EARLY YEARS NURSERY GRANTS,200000              Financial Services,R,2024,1
828,"Children, Schools and Family",REDACTED PERSONAL DATA,P1 24 UPFRONTPAY,05-Apr-24,2592,0,170250,EARLY YEARS NURSERY GRANTS,200000              Financial Services,R,2024,1
829,Corporate Services,REDACTED PERSONAL DATA,INV/YJ64,09-Apr-24,900,150,170268,SLLP - Disbursements,280000              Legal Services                                                                            Confirmed,R,2024,1
830,Community and Housing,REDACTED PERSONAL DATA,1149231,22-Apr-24,547.4,0,170275,Phys/Sens Placements - East,DIRECT PAYMENTS,R,2024,1
831,"Children, Schools and Family",ASSOC OF EDUC.PSYCHOLOGIST (AEP),9798,02-May-24,840,140,170375, Education Psychology,260000              Human Resources,A,2024,1
832,Community and Housing,INDEPENDENCE HOMES LTD,CED00202,05-Apr-24,6144.04,0,170527,Learning Disabilities Placemnt,321017              Nursing & Residential Care Homes,A,2024,1
833,Community and Housing,INDEPENDENCE HOMES LTD,1145466,10-Apr-24,8610.44,0,170527,Learning Disabilities Placemnt,321017              Nursing & Residential Care Homes,A,2024,1
834,Community and Housing,INDEPENDENCE HOMES LTD,CED00208,18-Apr-24,6144.04,0,170527,Learning Disabilities Placemnt,321017              Nursing & Residential Care Homes,A,2024,1
835,"Children, Schools and Family",GREATER LONDON FOSTERING LTD,GLF-2384,09-Apr-24,3786.34,0,170596,Placements Under 18,321100              Social Community Care Supplies & Services - Children,A,2024,1
836,"Children, Schools and Family",GREATER LONDON FOSTERING LTD,GLF-2385,09-Apr-24,3516.95,0,170596,Placements Under 18,321100              Social Community Care Supplies & Services - Children,A,2024,1
837,"Children, Schools and Family",GREATER LONDON FOSTERING LTD,GLF-2386,09-Apr-24,3697.68,0,170596,Placements Under 18,321100              Social Community Care Supplies & Services - Children,A,2024,1
838,"Children, Schools and Family",GREATER LONDON FOSTERING LTD,GLF-2383,11-Apr-24,3786.34,0,170596,Placements Under 18,321100              Social Community Care Supplies & Services - Children,A,2024,1
839,"Children, Schools and Family",GREATER LONDON FOSTERING LTD,GLF-2388,11-Apr-24,3786.34,0,170596,Placements Under 18,321100              Social Community Care Supplies & Services - Children,A,2024,1
840,"Children, Schools and Family",GREATER LONDON FOSTERING LTD,GLF-2387,11-Apr-24,3786.34,0,170596,Placements Under 18,321100              Social Community Care Supplies & Services - Children,A,2024,1
841,"Children, Schools and Family",ADCS,SI-36952,01-May-24,3421.2,570.2,170603,Policy Planning & Performance,200000              Financial Services,A,2024,1
842,Community and Housing,REDACTED PERSONAL DATA,1149499,22-Apr-24,2146.92,0,170878,Learning Disabilities Placemnt,DIRECT PAYMENTS,R,2024,1
843,Community and Housing,REDACTED PERSONAL DATA,1149588,22-Apr-24,1603.12,0,171056,Phys/Sens Placements - East,DIRECT PAYMENTS,R,2024,1
844,Community and Housing,ST GEORGES RES. CARE HOME,1145519,10-Apr-24,5285.48,0,171491,Learning Disabilities Placemnt,321017              Nursing & Residential Care Homes,A,2024,1
845,Community and Housing,ST GEORGES RES. CARE HOME,1145551,10-Apr-24,4366.24,0,171491,Learning Disabilities Placemnt,321017              Nursing & Residential Care Homes,A,2024,1
846,"Children, Schools and Family",St Christopher's Fellowship,22373,17-Apr-24,1864.26,0,171651,Placements Under 18,321100              Social Community Care Supplies & Services - Children,A,2024,1
847,"Children, Schools and Family",SSD LIMITED,SI-698,05-Apr-24,1860,310,171736, Children's Centres Support,190000              Facilities & Management Services,A,2024,1
848,"Children, Schools and Family",SSD LIMITED,SI-697,05-Apr-24,1860,310,171736, Children's Centres Support,190000              Facilities & Management Services,A,2024,1
849,Capital,SSD LIMITED,SI-687,08-Apr-24,2298,383,171736,Mitcham Area Regeneration,190000              Facilities & Management Services,A,2024,1
850,"Children, Schools and Family",REDACTED PERSONAL DATA,P1 24 UPFRONTPAY,05-Apr-24,1296,0,171840,EARLY YEARS NURSERY GRANTS,200000              Financial Services,R,2024,1
851,Community and Housing,REDACTED PERSONAL DATA,1149442,22-Apr-24,511.08,0,172070,Learning Disabilities Placemnt,DIRECT PAYMENTS,R,2024,1
852,Community and Housing,NORBURY PROPERTY SERV LDN LTD,SI-10033,10-Apr-24,18409,0,172104,Bed & Breakfast - accomm,321000              Social Community Care Supplies & Services - Adult,A,2024,1
853,Community and Housing,EALING COUNCIL,1145154,10-Apr-24,2985.92,0,172129,Mental Health Placements,OLA,A,2024,1
854,"Children, Schools and Family",EALING COUNCIL,17430785,25-Apr-24,43853,0,172129,Placements Under 18,OLA,A,2024,1
855,Community and Housing,CARRICKS BROOK,1145173,10-Apr-24,9036,0,172297,Learning Disabilities Placemnt,321017              Nursing & Residential Care Homes,A,2024,1
856,Community and Housing,BROADHAM CARE LTD,1145234,10-Apr-24,8014.84,0,172298,Learning Disabilities Placemnt,321017              Nursing & Residential Care Homes,A,2024,1
857,Community and Housing,BROADHAM CARE LTD,1145504,10-Apr-24,8287.36,0,172298,Learning Disabilities Placemnt,321017              Nursing & Residential Care Homes,A,2024,1
858,Unassigned,KENNEDYS,012400176151M890,09-Apr-24,3384.3,0,172486,Corporate Accountancy,280000              Legal Services,A,2024,1
859,Unassigned,KENNEDYS,2300859451MER194,11-Apr-24,693,0,172486,Corporate Accountancy,280000              Legal Services,A,2024,1
860,Corporate Services,KENNEDYS,012400243471LD86,17-Apr-24,913.2,152.2,172486,SLLP - Disbursements,280000              Legal Services,A,2024,1
861,Unassigned,KENNEDYS,400036391M890REF,18-Apr-24,1092,0,172486,Corporate Services,280000              Legal Services,A,2024,1
862,Unassigned,KENNEDYS,2400233131LON102,01-May-24,1252.8,208.8,172486,Corporate Services,280000              Legal Services,A,2024,1
863,Community and Housing,REDACTED PERSONAL DATA,1149238,22-Apr-24,1132.2,0,172912,Learning Disabilities Placemnt,DIRECT PAYMENTS,R,2024,1
864,Community and Housing,REDACTED PERSONAL DATA,1149267,22-Apr-24,1094.8,0,172914,Learning Disabilities Placemnt,DIRECT PAYMENTS,R,2024,1
865,Community and Housing,REDACTED PERSONAL DATA,1149464,22-Apr-24,899.32,0,172936,Phys/Sens Placements - East,DIRECT PAYMENTS,R,2024,1
866,Community and Housing,HAVERING COURT NURSING HOME,1145141,10-Apr-24,5304.08,0,173297,Older People Placements - East,321017              Nursing & Residential Care Homes,A,2024,1
867,Community and Housing,REDACTED PERSONAL DATA,1149441,22-Apr-24,1356.03,0,173308,Older People Placements - East,DIRECT PAYMENTS,R,2024,1
868,Community and Housing,REDACTED PERSONAL DATA,1149462,22-Apr-24,977.52,0,173308,Phys/Sens Placements - East,DIRECT PAYMENTS,R,2024,1
869,"Children, Schools and Family",REDACTED PERSONAL DATA,1148845,22-Apr-24,6420.44,0,173793,Child Disabilities - Placement,CSF-DIRECT PAYMENTS,R,2024,1
870,Community and Housing,REDACTED PERSONAL DATA,1149550,22-Apr-24,576.04,0,173807,Learning Disabilities Placemnt,DIRECT PAYMENTS,R,2024,1
871,Community and Housing,HARBOUR CARE (UK) LTD,1145439,10-Apr-24,6996.8,0,173947,Learning Disabilities Placemnt,321017              Nursing & Residential Care Homes,A,2024,1
872,Community and Housing,TOWNSWEB ARCHIVING LTD,ARC8900031,19-Apr-24,1189.7,198.28,174127,Senior Management - Libraries,270000              Information Communication Technology,A,2024,1
873,Community and Housing,REDACTED PERSONAL DATA,1149281,22-Apr-24,957.96,0,174449,Phys/Sens Placements - East,DIRECT PAYMENTS,R,2024,1
874,"Children, Schools and Family",REDACTED PERSONAL DATA,1148226,19-Apr-24,684.07,0,174483,Placements Under 18,321100              Social Community Care Supplies & Services - Children,R,2024,1
875,"Children, Schools and Family",REDACTED PERSONAL DATA,1151665,26-Apr-24,582.17,0,174483,Placements Under 18,321100              Social Community Care Supplies & Services - Children,R,2024,1
876,Community and Housing,PRECIOUS HOMES LTD,VER002648,11-Apr-24,11309.46,0,174641,Learning Disabilities Placemnt,321017              Nursing & Residential Care Homes,A,2024,1
877,Community and Housing,PRECIOUS HOMES LTD,VER002656,26-Apr-24,9850.18,0,174641,Learning Disabilities Placemnt,321017              Nursing & Residential Care Homes,A,2024,1
878,Community and Housing,SUPREME HOMES,30747,24-Apr-24,3280,0,174758,Mental Health Placements,321017              Nursing & Residential Care Homes,A,2024,1
879,Community and Housing,SUPREME HOMES,30724,24-Apr-24,3280,0,174758,Mental Health Placements,321017              Nursing & Residential Care Homes,A,2024,1
880,Community and Housing,SUTTON COURT CARE CENTRE,1145262,10-Apr-24,3723.24,0,174833,Older People Placements - East,321017              Nursing & Residential Care Homes,A,2024,1
881,Community and Housing,SUTTON COURT CARE CENTRE,1145333,10-Apr-24,3163.36,0,174833,Older People Placements - East,321017              Nursing & Residential Care Homes,A,2024,1
882,Community and Housing,SUTTON COURT CARE CENTRE,1145361,10-Apr-24,4049.6,0,174833,Phys/Sens Placements - East,321017              Nursing & Residential Care Homes,A,2024,1
883,Community and Housing,SUTTON COURT CARE CENTRE,1145526,10-Apr-24,4139.36,0,174833,Phys/Sens Placements - East,321017              Nursing & Residential Care Homes,A,2024,1
884,Community and Housing,REDACTED PERSONAL DATA,1149210,22-Apr-24,782,0,174975,Learning Disabilities Placemnt,DIRECT PAYMENTS,R,2024,1
885,"Children, Schools and Family",PROSPECT EDUC (TECH)TRUST LTD,PETTL1343,05-Apr-24,11638.74,0,175114,Non-Delegated Statements,170000              Education,A,2024,1
886,Corporate Services,COSMIC EUROPE LIMTED,UK7539,30-Apr-24,978,163,175169,Translation Service,TRANSLATIONS,A,2024,1
887,Corporate Services,COSMIC EUROPE LIMTED,UK7540,30-Apr-24,726,121,175169,Translation Service,TRANSLATIONS,A,2024,1
888,Corporate Services,COSMIC EUROPE LIMTED,UK7543,30-Apr-24,696,116,175169,Translation Service,TRANSLATIONS,A,2024,1
889,Corporate Services,COSMIC EUROPE LIMTED,UK7613,30-Apr-24,762,127,175169,Translation Service,TRANSLATIONS,A,2024,1
890,Corporate Services,COSMIC EUROPE LIMTED,UK7614,30-Apr-24,954,159,175169,Translation Service,TRANSLATIONS,A,2024,1
891,Corporate Services,COSMIC EUROPE LIMTED,UK7615,30-Apr-24,876,146,175169,Translation Service,TRANSLATIONS,A,2024,1
892,Corporate Services,COSMIC EUROPE LIMTED,UK7675,30-Apr-24,1092,182,175169,Translation Service,TRANSLATIONS,A,2024,1
893,Community and Housing,KISIMUL SCHOOL,1145161,10-Apr-24,14008.68,0,175545,Learning Disabilities Placemnt,321017              Nursing & Residential Care Homes,A,2024,1
894,Community and Housing,KISIMUL SCHOOL,1145404,10-Apr-24,17689.84,0,175545,Learning Disabilities Placemnt,321017              Nursing & Residential Care Homes,A,2024,1
895,Community and Housing,REDACTED PERSONAL DATA,1149569,22-Apr-24,2189.6,0,175782,Phys/Sens Placements - East,DIRECT PAYMENTS,R,2024,1
896,Community and Housing,REDACTED PERSONAL DATA,1149391,22-Apr-24,1600.6,0,175960,Learning Disabilities Placemnt,DIRECT PAYMENTS,R,2024,1
897,"Children, Schools and Family",LONDON BOROUGH OF WANDSWORTH,2101048739,26-Apr-24,2701.84,0,176557,Placements Under 18,OLA,A,2024,1
898,Community and Housing,REDACTED PERSONAL DATA,1149403,22-Apr-24,552.44,0,176619,Phys/Sens Placements - East,DIRECT PAYMENTS,R,2024,1
899,"Children, Schools and Family",THE PRE-SCHOOL GROUP LTD,P1 24 UPFRONTPAY,05-Apr-24,65945.09,0,176785,EARLY YEARS NURSERY GRANTS,200000              Financial Services,A,2024,1
900,Community and Housing,REDACTED PERSONAL DATA,1149506,22-Apr-24,1800.4,0,176868,Phys/Sens Placements - East,DIRECT PAYMENTS,R,2024,1
901,Corporate Services,EXPERT IN MIND,44470,11-Apr-24,1335.72,222.62,177342,SLLP - Disbursements,280000              Legal Services                                                                            Confirmed,A,2024,1
902,Environment and Regeneration,ENVIRO TECHNOLOGY SERVICES PLC,31409,30-Apr-24,33894,5649,177356,Wandsworth Air Quality,180000              Environmental Services,A,2024,1
903,Environment and Regeneration,ENVIRO TECHNOLOGY SERVICES PLC,31411,30-Apr-24,24186,4031,177356,Wandsworth Air Quality,180000              Environmental Services,A,2024,1
904,Environment and Regeneration,ENVIRO TECHNOLOGY SERVICES PLC,31410,30-Apr-24,32694,5449,177356,Wandsworth Air Quality,180000              Environmental Services,A,2024,1
905,Environment and Regeneration,ENVIRO TECHNOLOGY SERVICES PLC,31412,30-Apr-24,33894,5649,177356,Wandsworth Air Quality,180000              Environmental Services,A,2024,1
906,Environment and Regeneration,ENVIRO TECHNOLOGY SERVICES PLC,31413,30-Apr-24,33894,5649,177356,Wandsworth Air Quality,180000              Environmental Services,A,2024,1
907,"Children, Schools and Family",HYTYME B AND B,27489,04-Apr-24,2008.8,334.8,177425,Family Supp SafeGuard - Place,321000              Social Community Care Supplies & Services - Adult,A,2024,1
908,"Children, Schools and Family",HYTYME B AND B,27495,29-Apr-24,2269.2,378.2,177425,Family Assessmt & Intervention,321000              Social Community Care Supplies & Services - Adult,A,2024,1
909,"Children, Schools and Family",HYTYME B AND B,27451,29-Apr-24,2122.8,353.8,177425,Family Assessmt & Intervention,321000              Social Community Care Supplies & Services - Adult,A,2024,1
910,Community and Housing,HYTYME B AND B,27475,02-May-24,16981.68,2830.28,177425,Bed & Breakfast - accomm,321000              Social Community Care Supplies & Services - Adult,A,2024,1
911,"Children, Schools and Family",HYTYME B AND B,27406,30-Apr-24,2269.2,378.2,177425,Family Assessmt & Intervention,321000              Social Community Care Supplies & Services - Adult,A,2024,1
912,"Children, Schools and Family",HYTYME B AND B,27215,30-Apr-24,951.6,158.6,177425,Family Assessmt & Intervention,321000              Social Community Care Supplies & Services - Adult,A,2024,1
913,"Children, Schools and Family",HYTYME B AND B,27269,30-Apr-24,2269.2,378.2,177425,Family Assessmt & Intervention,321000              Social Community Care Supplies & Services - Adult,A,2024,1
914,"Children, Schools and Family",HYTYME B AND B,27311,30-Apr-24,2196,366,177425,Family Assessmt & Intervention,321000              Social Community Care Supplies & Services - Adult,A,2024,1
915,"Children, Schools and Family",HYTYME B AND B,27358,30-Apr-24,2269.2,378.2,177425,Family Assessmt & Intervention,321000              Social Community Care Supplies & Services - Adult,A,2024,1
916,Community and Housing,REDACTED PERSONAL DATA,1149286,22-Apr-24,873,0,177453,Phys/Sens Placements - East,DIRECT PAYMENTS,R,2024,1
917,Community and Housing,REDACTED PERSONAL DATA,1149274,22-Apr-24,724.72,0,177476,Learning Disabilities Placemnt,DIRECT PAYMENTS,R,2024,1
918,Community and Housing,REDACTED PERSONAL DATA,1149212,22-Apr-24,1444.8,0,177502,Phys/Sens Placements - East,DIRECT PAYMENTS,R,2024,1
919,"Children, Schools and Family",BUTTERFLIES CHILDCARE LIMITED,P1 24 UPFRONTPAY,05-Apr-24,29191.68,0,177504,EARLY YEARS NURSERY GRANTS,200000              Financial Services,A,2024,1
920,Environment and Regeneration,SUSTAINABLE MERTON,1773,17-Apr-24,2000,0,177594,HLF Canons,190000              Facilities & Management Services,A,2024,1
921,Corporate Services,SUSTAINABLE MERTON,1772,25-Apr-24,22014,0,177594,Cost of Living Fund,190000              Facilities & Management Services,A,2024,1
922,Corporate Services,HPI LIMITED,6160-002076058,29-Apr-24,632.47,105.41,177649,Local Taxation Bailiffs,200000              Financial Services,A,2024,1
923,Corporate Services,ST. MARK'S CHURCH WIMBLEDON,1381,22-Apr-24,780,0,177715,Non-Local Election Expenses?,190000              Facilities & Management Services,A,2024,1
924,Community and Housing,REDACTED PERSONAL DATA,1149293,22-Apr-24,703.8,0,177739,Phys/Sens Placements - East,DIRECT PAYMENTS,R,2024,1
925,Community and Housing,REDACTED PERSONAL DATA,1149305,22-Apr-24,821.12,0,177785,Phys/Sens Placements - East,DIRECT PAYMENTS,R,2024,1
926,Capital,WORKSHOP 305,NEIGHBOURHOOD22,16-Apr-24,2247.4,0,177941,Wimbledon Area Regeneration,321000              Social Community Care Supplies & Services - Adult,A,2024,1
927,Community and Housing,WORKSHOP 305,WJON176,18-Apr-24,856.08,0,177941,Learning Disabilities Placemnt,321000              Social Community Care Supplies & Services - Adult,A,2024,1
928,Community and Housing,WORKSHOP 305,SLAP176,18-Apr-24,570.6,0,177941,Learning Disabilities Placemnt,321000              Social Community Care Supplies & Services - Adult,A,2024,1
929,Community and Housing,WORKSHOP 305,RAG176,18-Apr-24,856.08,0,177941,Learning Disabilities Placemnt,321000              Social Community Care Supplies & Services - Adult,A,2024,1
930,Community and Housing,WORKSHOP 305,IALA176,18-Apr-24,570.72,0,177941,Learning Disabilities Placemnt,321000              Social Community Care Supplies & Services - Adult,A,2024,1
931,Community and Housing,WORKSHOP 305,AGAR176,18-Apr-24,570.72,0,177941,Learning Disabilities Placemnt,321000              Social Community Care Supplies & Services - Adult,A,2024,1
932,Community and Housing,WORKSHOP 305,RAG177,24-Apr-24,856.08,0,177941,Learning Disabilities Placemnt,321000              Social Community Care Supplies & Services - Adult,A,2024,1
933,Community and Housing,WORKSHOP 305,ASCO177,24-Apr-24,856.08,0,177941,Learning Disabilities Placemnt,321000              Social Community Care Supplies & Services - Adult,A,2024,1
934,Community and Housing,WORKSHOP 305,IALA177,24-Apr-24,570.72,0,177941,Learning Disabilities Placemnt,321000              Social Community Care Supplies & Services - Adult,A,2024,1
935,Community and Housing,WORKSHOP 305,SLAP177,26-Apr-24,570.6,0,177941,Learning Disabilities Placemnt,321000              Social Community Care Supplies & Services - Adult,A,2024,1
936,Community and Housing,WORKSHOP 305,WJON177,26-Apr-24,856.08,0,177941,Learning Disabilities Placemnt,321000              Social Community Care Supplies & Services - Adult,A,2024,1
937,Community and Housing,REDACTED PERSONAL DATA,1143517,08-Apr-24,8114.4,0,177967,Learning Disabilities Placemnt,DIRECT PAYMENTS,R,2024,1
938,Community and Housing,REDACTED PERSONAL DATA,1149573,22-Apr-24,901.6,0,177967,Learning Disabilities Placemnt,DIRECT PAYMENTS,R,2024,1
939,Community and Housing,REDACTED PERSONAL DATA,1149470,22-Apr-24,1094.8,0,177999,Learning Disabilities Placemnt,DIRECT PAYMENTS,R,2024,1
940,Community and Housing,REDACTED PERSONAL DATA,1149277,22-Apr-24,1212.28,0,178412,Learning Disabilities Placemnt,DIRECT PAYMENTS,R,2024,1
941,Community and Housing,REDACTED PERSONAL DATA,1149468,22-Apr-24,5439,0,178412,Learning Disabilities Placemnt,DIRECT PAYMENTS,R,2024,1
942,"Children, Schools and Family",Little Hearts Pre School,P1 24 UPFRONTPAY,05-Apr-24,30729.6,0,178454,EARLY YEARS NURSERY GRANTS,200000              Financial Services,A,2024,1
943,Community and Housing,BRAMBLEDOWN CARE HOME,1145317,10-Apr-24,8081.96,0,178465,Phys/Sens Placements - East,321017              Nursing & Residential Care Homes,A,2024,1
944,Environment and Regeneration,THOMSON REUTERS,6801608165,19-Apr-24,3150,0,178554,Development Control,260000              Human Resources,A,2024,1
945,Community and Housing,KEW HOUSE,1145400,10-Apr-24,5800,0,178621,Older People Placements - East,321017              Nursing & Residential Care Homes,A,2024,1
946,Community and Housing,KEW HOUSE,1145481,10-Apr-24,8321.16,0,178621,Older People Placements - East,321017              Nursing & Residential Care Homes,A,2024,1
947,Community and Housing,REDACTED PERSONAL DATA,1149481,22-Apr-24,5303,0,178802,Learning Disabilities Placemnt,DIRECT PAYMENTS,R,2024,1
948,Community and Housing,REDACTED PERSONAL DATA,1149410,22-Apr-24,2306.92,0,178874,Learning Disabilities Placemnt,DIRECT PAYMENTS,R,2024,1
949,"Children, Schools and Family",MODERN MONTESSORI INTL. LTD,P1 24 UPFRONTPAY,05-Apr-24,17539.2,0,178883,EARLY YEARS NURSERY GRANTS,200000              Financial Services,A,2024,1
950,Community and Housing,REDACTED PERSONAL DATA,1149605,22-Apr-24,1455.61,0,179049,Learning Disabilities Placemnt,DIRECT PAYMENTS,R,2024,1
951,"Children, Schools and Family",WILLOWS PRE-SCHOOL,P1 24 UPFRONTPAY,05-Apr-24,47203.2,0,179134,EARLY YEARS NURSERY GRANTS,170000              Education,A,2024,1
952,Community and Housing,REDACTED PERSONAL DATA,1149184,22-Apr-24,751,0,179142,Learning Disabilities Placemnt,DIRECT PAYMENTS,R,2024,1
953,Community and Housing,REDACTED PERSONAL DATA,1149437,22-Apr-24,2126.36,0,179332,Phys/Sens Placements - East,DIRECT PAYMENTS,R,2024,1
954,Community and Housing,REDACTED PERSONAL DATA,1149502,22-Apr-24,4941.4,0,179383,Learning Disabilities Placemnt,DIRECT PAYMENTS,R,2024,1
955,"Children, Schools and Family",PARENTPAY LTD,2093136,23-Apr-24,11332.58,1888.76,179685,School Meals,110000              Catering,A,2024,1
956,Community and Housing,ELYSIUM CARE PARTNERSHIPS LTD,1145349,10-Apr-24,9818.32,0,179734,Learning Disabilities Placemnt,321017              Nursing & Residential Care Homes,A,2024,1
957,Community and Housing,ELYSIUM CARE PARTNERSHIPS LTD,1145369,10-Apr-24,3756.48,0,179734,Learning Disabilities Placemnt,321017              Nursing & Residential Care Homes,A,2024,1
958,Community and Housing,ELYSIUM CARE PARTNERSHIPS LTD,1145489,10-Apr-24,10655.8,0,179734,Learning Disabilities Placemnt,321017              Nursing & Residential Care Homes,A,2024,1
959,Community and Housing,WESTHOPE LTD,1145322,10-Apr-24,6350.78,1058.46,179748,Learning Disabilities Placemnt,321017              Nursing & Residential Care Homes,A,2024,1
960,Community and Housing,SUNNINGDALE HOUSE CARE HOME,1145478,10-Apr-24,2575,0,179794,Learning Disabilities Placemnt,321017              Nursing & Residential Care Homes,A,2024,1
961,Community and Housing,SUNLIGHT HOUSE,1145263,10-Apr-24,7667.6,0,179813,Learning Disabilities Placemnt,321017              Nursing & Residential Care Homes,A,2024,1
962,Community and Housing,SUNLIGHT HOUSE,1145375,10-Apr-24,5140,0,179813,Learning Disabilities Placemnt,321017              Nursing & Residential Care Homes,A,2024,1
963,Community and Housing,SUNLIGHT HOUSE,1145537,10-Apr-24,8740,0,179813,Learning Disabilities Placemnt,321017              Nursing & Residential Care Homes,A,2024,1
964,"Children, Schools and Family",COLLIERS WOOD VILLAGE DAY NUR.,P1 24 UPFRONTPAY,05-Apr-24,20954.88,0,179896,EARLY YEARS NURSERY GRANTS,200000              Financial Services,A,2024,1
965,Community and Housing,BHAKTI SHYAMA CARE CENTRE,1145296,10-Apr-24,3557.92,0,179993,Older People Placements - East,321017              Nursing & Residential Care Homes,A,2024,1
966,Community and Housing,BHAKTI SHYAMA CARE CENTRE,1145561,10-Apr-24,2985.6,0,179993,Older People Placements - East,321017              Nursing & Residential Care Homes,A,2024,1
967,Community and Housing,BHAKTI SHYAMA CARE CENTRE,1145566,10-Apr-24,3800,0,179993,Older People Placements - East,321017              Nursing & Residential Care Homes,A,2024,1
968,"Children, Schools and Family",REAMCARE LTD,LHRPAM122302,09-Apr-24,189950.39,0,180045,Placements Under 18,321100              Social Community Care Supplies & Services - Children Residential,A,2024,1
969,"Children, Schools and Family",REAMCARE LTD,LHRPAM022402,09-Apr-24,21412.59,0,180045,Placements Under 18,321100              Social Community Care Supplies & Services - Children Residential,A,2024,1
970,"Children, Schools and Family",REAMCARE LTD,LHRPAM042401,11-Apr-24,21412.59,0,180045,Placements Under 18,321100              Social Community Care Supplies & Services - Children Residential,A,2024,1
971,Community and Housing,REDACTED PERSONAL DATA,1149583,22-Apr-24,957.68,0,180174,Older People Placements - East,DIRECT PAYMENTS,R,2024,1
972,Community and Housing,REDACTED PERSONAL DATA,1149335,22-Apr-24,625.6,0,180242,Phys/Sens Placements - East,DIRECT PAYMENTS,R,2024,1
973,Community and Housing,REDACTED PERSONAL DATA,1149507,22-Apr-24,1446.72,0,180282,Phys/Sens Placements - East,DIRECT PAYMENTS,R,2024,1
974,Community and Housing,REDACTED PERSONAL DATA,1149215,22-Apr-24,3209.28,0,180285,Older People Placements - East,DIRECT PAYMENTS,R,2024,1
975,Community and Housing,SEVACARE,89181,19-Apr-24,715.6,0,180307,Learning Disabilities Placemnt,321000              Social Community Care Supplies & Services - Adult,A,2024,1
976,Community and Housing,SEVACARE,90621,19-Apr-24,966.06,0,180307,Older People Placements - East,321000              Social Community Care Supplies & Services - Adult,A,2024,1
977,Community and Housing,SEVACARE,90617,19-Apr-24,715.6,0,180307,Learning Disabilities Placemnt,321000              Social Community Care Supplies & Services - Adult,A,2024,1
978,Community and Housing,SEVACARE,90620,19-Apr-24,1091.29,0,180307,Older People Placements - East,321000              Social Community Care Supplies & Services - Adult,A,2024,1
979,Community and Housing,SEVACARE,90616,19-Apr-24,3041.3,0,180307,Learning Disabilities Placemnt,321000              Social Community Care Supplies & Services - Adult,A,2024,1
980,Community and Housing,SEVACARE,90618,19-Apr-24,1104.71,0,180307,Older People Placements - East,321000              Social Community Care Supplies & Services - Adult,A,2024,1
981,Community and Housing,SEVACARE,90609,19-Apr-24,876.61,0,180307,Older People Placements - East,321000              Social Community Care Supplies & Services - Adult,A,2024,1
982,Community and Housing,SEVACARE,90610,19-Apr-24,644.04,0,180307,Older People Placements - East,321000              Social Community Care Supplies & Services - Adult,A,2024,1
983,Community and Housing,SEVACARE,90626,19-Apr-24,894.5,0,180307,Older People Placements - East,321000              Social Community Care Supplies & Services - Adult,A,2024,1
984,Community and Housing,SEVACARE,90632,19-Apr-24,2468.82,0,180307,Older People Placements - East,321000              Social Community Care Supplies & Services - Adult,A,2024,1
985,Community and Housing,SEVACARE,90636,19-Apr-24,1395.42,0,180307,Learning Disabilities Placemnt,321000              Social Community Care Supplies & Services - Adult,A,2024,1
986,Community and Housing,SEVACARE,90634,19-Apr-24,1144.96,0,180307,Learning Disabilities Placemnt,321000              Social Community Care Supplies & Services - Adult,A,2024,1
987,Community and Housing,SEVACARE,90640,19-Apr-24,518.81,0,180307,Older People Placements - East,321000              Social Community Care Supplies & Services - Adult,A,2024,1
988,Community and Housing,SEVACARE,90623,19-Apr-24,536.7,0,180307,Older People Placements - East,321000              Social Community Care Supplies & Services - Adult,A,2024,1
989,Community and Housing,SEVACARE,90613,19-Apr-24,930.28,0,180307,Phys/Sens Placements - East,321000              Social Community Care Supplies & Services - Adult,A,2024,1
990,Community and Housing,SEVACARE,90612,19-Apr-24,500.92,0,180307,Older People Placements - East,321000              Social Community Care Supplies & Services - Adult,A,2024,1
991,Community and Housing,SEVACARE,90631,19-Apr-24,518.81,0,180307,Older People Placements - East,321000              Social Community Care Supplies & Services - Adult,A,2024,1
992,Community and Housing,SEVACARE,90630,19-Apr-24,755.85,0,180307,Older People Placements - East,321000              Social Community Care Supplies & Services - Adult,A,2024,1
993,Community and Housing,SEVACARE,90628,19-Apr-24,1243.36,0,180307,Older People Placements - East,321000              Social Community Care Supplies & Services - Adult,A,2024,1
994,Community and Housing,SEVACARE,90625,19-Apr-24,1019.73,0,180307,Older People Placements - East,321000              Social Community Care Supplies & Services - Adult,A,2024,1
995,Community and Housing,SEVACARE,90624,19-Apr-24,1216.52,0,180307,Older People Placements - East,321000              Social Community Care Supplies & Services - Adult,A,2024,1
996,Community and Housing,SEVACARE,90639,19-Apr-24,644.04,0,180307,Learning Disabilities Placemnt,321000              Social Community Care Supplies & Services - Adult,A,2024,1
997,Community and Housing,SEVACARE,90637,19-Apr-24,1967.9,0,180307,Older People Placements - East,321000              Social Community Care Supplies & Services - Adult,A,2024,1
998,Community and Housing,SEVACARE,90638,19-Apr-24,644.04,0,180307,Older People Placements - East,321000              Social Community Care Supplies & Services - Adult,A,2024,1
999,Community and Housing,SEVACARE,90641,19-Apr-24,10018.4,0,180307,Older People Placements - East,321000              Social Community Care Supplies & Services - Adult,A,2024,1
1000,Community and Housing,SEVACARE,90635,19-Apr-24,590.37,0,180307,Phys/Sens Placements - East,321000              Social Community Care Supplies & Services - Adult,A,2024,1
1001,Community and Housing,NETWORK SOLUTIONS INC,LBM269,08-Apr-24,1794,299,180382,Libraries Service-Civic Centre,270000              Information Communication Technology,A,2024,1
1002,Community and Housing,REDACTED PERSONAL DATA,1149404,22-Apr-24,519.68,0,180395,Older People Placements - East,DIRECT PAYMENTS,R,2024,1
1003,Unassigned,UK Power Networks (Faults / Operations),92205050,22-Apr-24,1872,312,180431,Environment and Regeneration,190000              Facilities & Management Services,A,2024,1
1004,Environment and Regeneration,UK Power Networks (Faults / Operations),92205048,22-Apr-24,536.4,89.4,180431,Street Lighting,190000              Facilities & Management Services,A,2024,1
1005,Environment and Regeneration,UK Power Networks (Faults / Operations),92205975,29-Apr-24,1872,312,180431,Street Lighting,190000              Facilities & Management Services,A,2024,1
1006,"Children, Schools and Family",RESTORE PLC,1464418,18-Apr-24,941.4,156.9,180441,Head of CSC & Youth Inclusion,190000              Facilities & Management Services,A,2024,1
1007,Corporate Services,RESTORE PLC,1464768,22-Apr-24,816.8,136.13,180441,Legal Shared Service,190000              Facilities & Management Services,A,2024,1
1008,"Children, Schools and Family",RESTORE PLC,1464766,01-May-24,654.91,109.15,180441,Fostering Recruit/Assessment,190000              Facilities & Management Services,A,2024,1
1009,Community and Housing,REDACTED PERSONAL DATA,1149363,22-Apr-24,616.32,0,180478,Phys/Sens Placements - East,DIRECT PAYMENTS,R,2024,1
1010,"Children, Schools and Family",REDACTED PERSONAL DATA,1143254,05-Apr-24,548.09,0,180579,UASC LAC Under 18,321100              Social Community Care Supplies & Services - Children,R,2024,1
1011,"Children, Schools and Family",REDACTED PERSONAL DATA,1146197,12-Apr-24,548.09,0,180579,UASC LAC Under 18,321100              Social Community Care Supplies & Services - Children,R,2024,1
1012,"Children, Schools and Family",REDACTED PERSONAL DATA,1148266,19-Apr-24,548.09,0,180579,UASC LAC Under 18,321100              Social Community Care Supplies & Services - Children,R,2024,1
1013,"Children, Schools and Family",REDACTED PERSONAL DATA,1151705,26-Apr-24,648.09,0,180579,UASC LAC Under 18,321100              Social Community Care Supplies & Services - Children,R,2024,1
1014,Corporate Services,MERTON PRIORY PCC,H2791,29-Apr-24,660,0,180588,Non-Local Election Expenses?,190000              Facilities & Management Services,A,2024,1
1015,Environment and Regeneration,HMCTS,TRECBATCHES2024,10-Apr-24,15000,0,180649,Operational Running Costs,350000              Street & Traffic Management,A,2024,1
1016,Community and Housing,REDACTED PERSONAL DATA,1149207,22-Apr-24,938.4,0,180804,Learning Disabilities Placemnt,DIRECT PAYMENTS,R,2024,1
1017,"Children, Schools and Family",FIVE RIVERS CHILD CARE,109193,09-Apr-24,6421.43,0,180823,Placements Under 18,360000              Passenger Transport                                                                       Confirmed,A,2024,1
1018,"Children, Schools and Family",FIVE RIVERS CHILD CARE,111589,22-Apr-24,6421.43,0,180823,Placements Under 18,360000              Passenger Transport                                                                       Confirmed,A,2024,1
1019,"Children, Schools and Family",FIVE RIVERS CHILD CARE,111591,22-Apr-24,3960.91,0,180823,UASC LAC Under 18,360000              Passenger Transport                                                                       Confirmed,A,2024,1
1020,Community and Housing,REDACTED PERSONAL DATA,1149310,22-Apr-24,2258.16,0,180866,Phys/Sens Placements - East,DIRECT PAYMENTS,R,2024,1
1021,Community and Housing,REDACTED PERSONAL DATA,1149415,22-Apr-24,2187.44,0,180889,Older People Placements - East,DIRECT PAYMENTS,R,2024,1
1022,Community and Housing,SENAD ECCLESBOURNE LODGE,1145151,10-Apr-24,10644.8,0,180904,Learning Disabilities Placemnt,321017              Nursing & Residential Care Homes,A,2024,1
1023,Corporate Services,SPECIALIST COMPUTER CENT. PLC,OP/N563981,19-Apr-24,14031.36,2338.56,180940,IT Service Delivery,270000              Information Communication Technology,A,2024,1
1024,Community and Housing,REDACTED PERSONAL DATA,1149533,22-Apr-24,1170.96,0,180999,Older People Placements - East,DIRECT PAYMENTS,R,2024,1
1025,Environment and Regeneration,PREMIER MINICAB SER. UK LTD,1105,16-Apr-24,2610,435,181053,Passenger Transport,360000              Passenger Transport,A,2024,1
1026,Environment and Regeneration,PREMIER MINICAB SER. UK LTD,1111,23-Apr-24,2460,410,181053,Passenger Transport,360000              Passenger Transport,A,2024,1
1027,Environment and Regeneration,PREMIER MINICAB SER. UK LTD,485,19-Apr-24,4260,710,181053,Passenger Transport,360000              Passenger Transport,A,2024,1
1028,Environment and Regeneration,PREMIER MINICAB SER. UK LTD,511,19-Apr-24,3780,630,181053,Passenger Transport,360000              Passenger Transport,A,2024,1
1029,Environment and Regeneration,PREMIER MINICAB SER. UK LTD,492,19-Apr-24,3660,610,181053,Passenger Transport,360000              Passenger Transport,A,2024,1
1030,Environment and Regeneration,PREMIER MINICAB SER. UK LTD,648,29-Apr-24,3600,600,181053,Passenger Transport,360000              Passenger Transport,A,2024,1
1031,Environment and Regeneration,PREMIER MINICAB SER. UK LTD,970,25-Apr-24,2880,480,181053,Passenger Transport,360000              Passenger Transport,A,2024,1
1032,Environment and Regeneration,PREMIER MINICAB SER. UK LTD,1094,30-Apr-24,1800,300,181053,Passenger Transport,360000              Passenger Transport,A,2024,1
1033,Community and Housing,REDACTED PERSONAL DATA,1149257,22-Apr-24,2914.24,0,181129,Older People Placements - East,DIRECT PAYMENTS,R,2024,1
1034,Community and Housing,REDACTED PERSONAL DATA,1149188,22-Apr-24,1720.4,0,181418,Older People Placements - East,DIRECT PAYMENTS,R,2024,1
1035,"Children, Schools and Family",REDACTED PERSONAL DATA,18/2024 DANIELLA,18-Apr-24,1154.92,0,181587,Placements Over 18,321000              Social Community Care Supplies & Services - Adult,R,2024,1
1036,"Children, Schools and Family",Moor House School and College,INV12540,01-May-24,12090.67,0,181592,Non-Delegated Statements,170000              Education,A,2024,1
1037,"Children, Schools and Family",Moor House School and College,INV12541,01-May-24,13134.67,0,181592,Non-Delegated Statements,170000              Education,A,2024,1
1038,"Children, Schools and Family",Moor House School and College,INV12539,01-May-24,26355.67,0,181592,SEN Residential (DSG),170000              Education,A,2024,1
1039,"Children, Schools and Family",REDACTED PERSONAL DATA,1143730,08-Apr-24,2499.25,0,181763,Fostering Recruit/Assessment,321100              Social Community Care Supplies & Services - Children,R,2024,1
1040,"Children, Schools and Family",KIKI'S CHILDREN'S CLINIC,16797,22-Apr-24,537.5,0,181849,Non-Delegated Statements,310000              Healthcare                                                                                Confirmed,A,2024,1
1041,"Children, Schools and Family",KIKI'S CHILDREN'S CLINIC,16800,22-Apr-24,610,0,181849,Non-Delegated Statements,310000              Healthcare                                                                                Confirmed,A,2024,1
1042,"Children, Schools and Family",Dicky Birds Nurseries Ltd - Pelham Road,P1 24 UPFRONTPAY,05-Apr-24,10881.02,0,181874,EARLY YEARS NURSERY GRANTS,200000              Financial Services,A,2024,1
1043,"Children, Schools and Family",LOVE LANE DAY NURSERY,P1 24 UPFRONTPAY,05-Apr-24,18604.8,0,181933,EARLY YEARS NURSERY GRANTS,200000              Financial Services,A,2024,1
1044,Community and Housing,REDACTED PERSONAL DATA,1149561,22-Apr-24,532.72,0,182083,Learning Disabilities Placemnt,DIRECT PAYMENTS,R,2024,1
1045,Corporate Services,ERNST AND YOUNG LLP,GB01G000528048,05-Apr-24,96000,16000,182340,Corporate Accountancy,200000              Financial Services,A,2024,1
1046,Environment and Regeneration,BIRKIN CLEANING SERVICES LTD,34155,11-Apr-24,698.4,116.4,182414,Durnsford industrial estate,130000              Cleaning & Janitorial,A,2024,1
1047,Community and Housing,BIRKIN CLEANING SERVICES LTD,34157,12-Apr-24,3525.84,587.64,182414,Wimbledon Library,130000              Cleaning & Janitorial,A,2024,1
1048,Corporate Services,BIRKIN CLEANING SERVICES LTD,34156,12-Apr-24,8688.29,1448.05,182414,Corporate Contracts - FM,130000              Cleaning & Janitorial,A,2024,1
1049,Community and Housing,BIRKIN CLEANING SERVICES LTD,34158,12-Apr-24,1066.75,177.79,182414,Wimbledon Library,130000              Cleaning & Janitorial,A,2024,1
1050,Community and Housing,BIRKIN CLEANING SERVICES LTD,34161,12-Apr-24,1049.77,174.96,182414,Raynes Park Library,130000              Cleaning & Janitorial,A,2024,1
1051,Community and Housing,BIRKIN CLEANING SERVICES LTD,34162,12-Apr-24,617.09,102.85,182414,West Barnes Lib,130000              Cleaning & Janitorial,A,2024,1
1052,Community and Housing,BIRKIN CLEANING SERVICES LTD,34159,12-Apr-24,1750.62,291.77,182414,Mitcham Library,130000              Cleaning & Janitorial,A,2024,1
1053,Community and Housing,BIRKIN CLEANING SERVICES LTD,34160,12-Apr-24,2120.48,353.41,182414,Pollards Hill Library,130000              Cleaning & Janitorial,A,2024,1
1054,"Children, Schools and Family",BIRKIN CLEANING SERVICES LTD,34169,12-Apr-24,1473.44,245.57,182414,Acacia IGC Building Management,130000              Cleaning & Janitorial,A,2024,1
1055,Community and Housing,BIRKIN CLEANING SERVICES LTD,34173,12-Apr-24,1451.57,241.93,182414,Donald Hope Library,130000              Cleaning & Janitorial,A,2024,1
1056,"Children, Schools and Family",BIRKIN CLEANING SERVICES LTD,34172,12-Apr-24,1438.18,239.7,182414,Brightwell,130000              Cleaning & Janitorial,A,2024,1
1057,Environment and Regeneration,BIRKIN CLEANING SERVICES LTD,34175,12-Apr-24,902.47,150.41,182414,Transport-Contract Hire,130000              Cleaning & Janitorial,A,2024,1
1058,Community and Housing,BIRKIN CLEANING SERVICES LTD,34166,12-Apr-24,770.33,128.39,182414,Eastway Day Centre,130000              Cleaning & Janitorial,A,2024,1
1059,"Children, Schools and Family",BIRKIN CLEANING SERVICES LTD,34170,12-Apr-24,754.75,125.79,182414,Adventure Playground Project,130000              Cleaning & Janitorial,A,2024,1
1060,"Children, Schools and Family",BIRKIN CLEANING SERVICES LTD,34163,12-Apr-24,754.63,125.77,182414,Merton Youth Centres.,130000              Cleaning & Janitorial,A,2024,1
1061,"Children, Schools and Family",BIRKIN CLEANING SERVICES LTD,34164,12-Apr-24,750.68,125.11,182414,Merton Youth Centres.,130000              Cleaning & Janitorial,A,2024,1
1062,Community and Housing,BIRKIN CLEANING SERVICES LTD,34167,12-Apr-24,1842.22,307.04,182414,Highpath (DayCentre) Leyton Rd,130000              Cleaning & Janitorial,A,2024,1
1063,Community and Housing,BIRKIN CLEANING SERVICES LTD,34165,12-Apr-24,2143.6,357.27,182414,All Saints Day Centre,130000              Cleaning & Janitorial,A,2024,1
1064,"Children, Schools and Family",BIRKIN CLEANING SERVICES LTD,34171,12-Apr-24,2465.74,410.96,182414,Steers Mead BuildingManagement,130000              Cleaning & Janitorial,A,2024,1
1065,Community and Housing,BIRKIN CLEANING SERVICES LTD,34168,12-Apr-24,2167.12,361.19,182414,JMC  Day Centre,130000              Cleaning & Janitorial,A,2024,1
1066,"Children, Schools and Family",REDACTED PERSONAL DATA,1151461,26-Apr-24,1173,0,182494,Child Disabilities - Placement,DIRECT PAYMENTS,R,2024,1
1067,"Children, Schools and Family",REDACTED PERSONAL DATA,1143260,05-Apr-24,514.26,0,182558,UASC LAC Under 18,321100              Social Community Care Supplies & Services - Children,R,2024,1
1068,"Children, Schools and Family",REDACTED PERSONAL DATA,1151712,26-Apr-24,614.26,0,182558,UASC LAC Under 18,321100              Social Community Care Supplies & Services - Children,R,2024,1
1069,"Children, Schools and Family",REDACTED PERSONAL DATA,1143238,05-Apr-24,548.09,0,182648,UASC LAC Under 18,321100              Social Community Care Supplies & Services - Children,R,2024,1
1070,"Children, Schools and Family",REDACTED PERSONAL DATA,1146181,17-Apr-24,548.09,0,182648,UASC LAC Under 18,321100              Social Community Care Supplies & Services - Children,R,2024,1
1071,"Children, Schools and Family",REDACTED PERSONAL DATA,1146230,17-Apr-24,2129.66,0,182648,UASC Leavers Staying Put 18+,321100              Social Community Care Supplies & Services - Children,R,2024,1
1072,"Children, Schools and Family",REDACTED PERSONAL DATA,1148249,19-Apr-24,548.09,0,182648,UASC LAC Under 18,321100              Social Community Care Supplies & Services - Children,R,2024,1
1073,"Children, Schools and Family",REDACTED PERSONAL DATA,1151688,26-Apr-24,548.09,0,182648,UASC LAC Under 18,321100              Social Community Care Supplies & Services - Children,R,2024,1
1074,"Children, Schools and Family",KINGSWOOD DAYCARE NURSERY LTD,P1 24 UPFRONTPAY,05-Apr-24,65214.72,0,182740,EARLY YEARS NURSERY GRANTS,200000              Financial Services,A,2024,1
1075,Community and Housing,REDACTED PERSONAL DATA,1149594,22-Apr-24,6347.8,0,182894,Learning Disabilities Placemnt,DIRECT PAYMENTS,R,2024,1
1076,Corporate Services,PELLINGS LLP,SI9038641,09-Apr-24,1200,200,182945,SLLP - Disbursements,280000              Legal Services                                                                            Confirmed,A,2024,1
1077,Corporate Services,PELLINGS LLP,SI9038679,15-Apr-24,1200,200,182945,SLLP - Disbursements,280000              Legal Services                                                                            Confirmed,A,2024,1
1078,Corporate Services,PELLINGS LLP,SI9038865,18-Apr-24,1200,200,182945,SLLP - Disbursements,280000              Legal Services                                                                            Confirmed,A,2024,1
1079,Corporate Services,PELLINGS LLP,SI9038864,18-Apr-24,1200,200,182945,SLLP - Disbursements,280000              Legal Services                                                                            Confirmed,A,2024,1
1080,Corporate Services,PELLINGS LLP,SI9038762,17-Apr-24,600,100,182945,SLLP - Disbursements,280000              Legal Services                                                                            Confirmed,A,2024,1
1081,Corporate Services,PELLINGS LLP,SI9038873,29-Apr-24,1200,200,182945,SLLP - Disbursements,280000              Legal Services                                                                            Confirmed,A,2024,1
1082,Corporate Services,PELLINGS LLP,SI9038765,17-Apr-24,1200,200,182945,SLLP - Disbursements,280000              Legal Services                                                                            Confirmed,A,2024,1
1083,Community and Housing,REDACTED PERSONAL DATA,1149315,22-Apr-24,5878.52,0,183167,Older People Placements - East,DIRECT PAYMENTS,R,2024,1
1084,Community and Housing,ST ANTONYS CARE HOME,1144868,10-Apr-24,2550,0,183206,Older People Placements - East,321017              Nursing & Residential Care Homes,A,2024,1
1085,Community and Housing,ST ANTONYS CARE HOME,1145286,10-Apr-24,3840,0,183206,Older People Placements - East,321017              Nursing & Residential Care Homes,A,2024,1
1086,Community and Housing,ST ANTONYS CARE HOME,1145324,10-Apr-24,4200,0,183206,Mental Health Placements,321017              Nursing & Residential Care Homes,A,2024,1
1087,Community and Housing,ST ANTONYS CARE HOME,1145412,10-Apr-24,4400,0,183206,Older People Placements - East,321017              Nursing & Residential Care Homes,A,2024,1
1088,Community and Housing,ST ANTONYS CARE HOME,1145522,10-Apr-24,4200,0,183206,Older People Placements - East,321017              Nursing & Residential Care Homes,A,2024,1
1089,Community and Housing,ST ANTONYS CARE HOME,1145541,10-Apr-24,4000,0,183206,Older People Placements - East,321017              Nursing & Residential Care Homes,A,2024,1
1090,Community and Housing,ST ANTONYS CARE HOME,1148362,19-Apr-24,9450,0,183206,Older People Placements - East,321017              Nursing & Residential Care Homes,A,2024,1
1091,Community and Housing,PARKSIDE NURSING HOME,1145567,10-Apr-24,4080,0,183209,Older People Placements - East,321017              Nursing & Residential Care Homes,A,2024,1
1092,"Children, Schools and Family",REDACTED PERSONAL DATA,1151502,26-Apr-24,1407.6,0,183239, Childrens Short Breaks,CSF-DIRECT PAYMENTS,R,2024,1
1093,"Children, Schools and Family",REDACTED PERSONAL DATA,1148828,22-Apr-24,1407.6,0,183241, Childrens Short Breaks,CSF-DIRECT PAYMENTS,R,2024,1
1094,Unassigned,HARRIS ACADEMY MORDEN,SCHOOLS 2425/1 A,08-Apr-24,38284.19,0,183257,Schools,170000              Education,A,2024,1
1095,"Children, Schools and Family",Horizon Education (South London) Limited,SI-C0000000641,09-Apr-24,14762.67,0,183299,Non-Delegated Statements,170000              Education,A,2024,1
1096,"Children, Schools and Family",Horizon Education (South London) Limited,SI-C0000000648,09-Apr-24,21724.3,0,183299,Non-Delegated Statements,170000              Education,A,2024,1
1097,"Children, Schools and Family",Horizon Education (South London) Limited,SI-C0000000655,09-Apr-24,32053.97,0,183299,Non-Delegated Statements,170000              Education,A,2024,1
1098,"Children, Schools and Family",Horizon Education (South London) Limited,SI-C0000000640,09-Apr-24,20493.85,0,183299,Non-Delegated Statements,170000              Education,A,2024,1
1099,"Children, Schools and Family",Horizon Education (South London) Limited,SI-C0000000647,09-Apr-24,22286.42,0,183299,Non-Delegated Statements,170000              Education,A,2024,1
1100,"Children, Schools and Family",Horizon Education (South London) Limited,SI-C0000000654,09-Apr-24,24837.28,0,183299,Non-Delegated Statements,170000              Education,A,2024,1
1101,"Children, Schools and Family",Horizon Education (South London) Limited,SI-C0000000639,09-Apr-24,24016.72,0,183299,Non-Delegated Statements,170000              Education,A,2024,1
1102,"Children, Schools and Family",Horizon Education (South London) Limited,SI-C0000000646,09-Apr-24,32053.97,0,183299,Non-Delegated Statements,170000              Education,A,2024,1
1103,"Children, Schools and Family",Horizon Education (South London) Limited,SI-C0000000653,09-Apr-24,23116.86,0,183299,Non-Delegated Statements,170000              Education,A,2024,1
1104,"Children, Schools and Family",Horizon Education (South London) Limited,SI-C0000000660,09-Apr-24,20486.05,0,183299,Non-Delegated Statements,170000              Education,A,2024,1
1105,"Children, Schools and Family",Horizon Education (South London) Limited,SI-C0000000645,09-Apr-24,22175.01,0,183299,Non-Delegated Statements,170000              Education,A,2024,1
1106,"Children, Schools and Family",Horizon Education (South London) Limited,SI-C0000000652,09-Apr-24,22121.97,0,183299,Non-Delegated Statements,170000              Education,A,2024,1
1107,"Children, Schools and Family",Horizon Education (South London) Limited,SI-C0000000659,09-Apr-24,29783.52,0,183299,Non-Delegated Statements,170000              Education,A,2024,1
1108,"Children, Schools and Family",Horizon Education (South London) Limited,SI-C0000000644,09-Apr-24,19683.56,0,183299,Non-Delegated Statements,170000              Education,A,2024,1
1109,"Children, Schools and Family",Horizon Education (South London) Limited,SI-C0000000658,09-Apr-24,20597.2,0,183299,Non-Delegated Statements,170000              Education,A,2024,1
1110,"Children, Schools and Family",Horizon Education (South London) Limited,SI-C0000000643,09-Apr-24,21008.91,0,183299,Non-Delegated Statements,170000              Education,A,2024,1
1111,"Children, Schools and Family",Horizon Education (South London) Limited,SI-C0000000650,09-Apr-24,28262.65,0,183299,Non-Delegated Statements,170000              Education,A,2024,1
1112,"Children, Schools and Family",Horizon Education (South London) Limited,SI-C0000000657,09-Apr-24,23071.88,0,183299,Non-Delegated Statements,170000              Education,A,2024,1
1113,"Children, Schools and Family",Horizon Education (South London) Limited,SI-C0000000642,09-Apr-24,21740.16,0,183299,Non-Delegated Statements,170000              Education,A,2024,1
1114,"Children, Schools and Family",Horizon Education (South London) Limited,SI-C0000000656,09-Apr-24,22286.42,0,183299,Non-Delegated Statements,170000              Education,A,2024,1
1115,"Children, Schools and Family",Horizon Education (South London) Limited,SI-C0000000651,10-Apr-24,24322.35,0,183299,Non-Delegated Statements,170000              Education,A,2024,1
1116,"Children, Schools and Family",Horizon Education (South London) Limited,SI-C0000000649,10-Apr-24,22619.35,0,183299,Non-Delegated Statements,170000              Education,A,2024,1
1117,Community and Housing,BARKERS CHEMIST,DQCB/00000088,22-Apr-24,921.65,8.75,183398,PH - Sexual Health,310000              Healthcare,A,2024,1
1118,Community and Housing,REDACTED PERSONAL DATA,1149321,22-Apr-24,1371.72,0,183460,Learning Disabilities Placemnt,DIRECT PAYMENTS,R,2024,1
1119,Community and Housing,REDACTED PERSONAL DATA,1149366,22-Apr-24,1622.64,0,183464,Older People Placements - East,DIRECT PAYMENTS,R,2024,1
1120,"Children, Schools and Family",WIMBLEDON DAY NURSERY 2,P1 24 UPFRONTPAY,05-Apr-24,5765.76,0,183490,EARLY YEARS NURSERY GRANTS,200000              Financial Services,A,2024,1
1121,Community and Housing,CREST MANOR LTD,CM0853,15-Apr-24,2216.5,0,183548,Bed & Breakfast - accomm,250000              Housing Management,A,2024,1
1122,Community and Housing,REDACTED PERSONAL DATA,2272,29-Apr-24,700,0,183599,Adult Safeguarding,321000              Social Community Care Supplies & Services - Adult                                         Confirmed,R,2024,1
1123,Community and Housing,DICKSONS ESTATE AGENTS,RWL 39 STANLEY,26-Apr-24,2400,0,183623,Homelessness Prevention,200000              Financial Services,A,2024,1
1124,Environment and Regeneration,SCOTTISH POWER,109247988,09-Apr-24,1259.71,59.99,183660,Street Lighting,370000              Utilities,A,2024,1
1125,"Children, Schools and Family",RENTOKIL INITIAL UK LTD,35040406,12-Apr-24,622.05,103.68,183672, Children's Centres Support,130000              Cleaning & Janitorial,A,2024,1
1126,Environment and Regeneration,RENTOKIL INITIAL UK LTD,60445531,29-Apr-24,526.72,87.79,183672,EDS2,130000              Cleaning & Janitorial,A,2024,1
1127,Community and Housing,REDACTED PERSONAL DATA,1149283,22-Apr-24,664.72,0,183690,Older People Placements - East,DIRECT PAYMENTS,R,2024,1
1128,Community and Housing,HOUNSLOW AND RICHM'D COMM H'CARE,82980548,08-Apr-24,16617.5,0,183949,PH - Prevention,310000              Healthcare,A,2024,1
1129,Community and Housing,HOUNSLOW AND RICHM'D COMM H'CARE,82981211,08-Apr-24,16617.5,0,183949,PH - Prevention,310000              Healthcare,A,2024,1
1130,"Children, Schools and Family",LEXTOX,319462,17-Apr-24,683.16,113.86,184053,Family Supp SafeGuard - Place,280000              Legal Services,A,2024,1
1131,Corporate Services,LEXTOX,313157,25-Apr-24,609.1,101.52,184053,SLLP - Disbursements,280000              Legal Services,A,2024,1
1132,Community and Housing,REDACTED PERSONAL DATA,1149417,22-Apr-24,3093.44,0,184175,Older People Placements - East,DIRECT PAYMENTS,R,2024,1
1133,Community and Housing,REDACTED PERSONAL DATA,1149394,22-Apr-24,508.32,0,184315,Older People Placements - East,DIRECT PAYMENTS,R,2024,1
1134,Community and Housing,CROWNWISE LTD,1145211,10-Apr-24,5907,0,184360,Mental Health Placements,321000              Social Community Care Supplies & Services - Adult,A,2024,1
1135,"Children, Schools and Family",REDACTED PERSONAL DATA,1143287,05-Apr-24,582.17,0,184386,Placements Under 18,321100              Social Community Care Supplies & Services - Children,R,2024,1
1136,"Children, Schools and Family",REDACTED PERSONAL DATA,1146219,12-Apr-24,563.29,0,184386,Placements Under 18,321100              Social Community Care Supplies & Services - Children,R,2024,1
1137,"Children, Schools and Family",REDACTED PERSONAL DATA,1146231,12-Apr-24,582.17,0,184386,Placements Under 18,321100              Social Community Care Supplies & Services - Children,R,2024,1
1138,"Children, Schools and Family",REDACTED PERSONAL DATA,1148300,19-Apr-24,582.17,0,184386,Placements Under 18,321100              Social Community Care Supplies & Services - Children,R,2024,1
1139,"Children, Schools and Family",REDACTED PERSONAL DATA,1151740,26-Apr-24,582.17,0,184386,Placements Under 18,321100              Social Community Care Supplies & Services - Children,R,2024,1
1140,Community and Housing,REDACTED PERSONAL DATA,1149443,22-Apr-24,4343.95,0,184580,Older People Placements - East,DIRECT PAYMENTS,R,2024,1
1141,Unassigned,PENSION TOP-UP FUND (LBM),CAP COST1413,12-Apr-24,68367.18,0,184583,Super Fund - New Pension Regs,PENSIONS,A,2024,1
1142,Unassigned,PENSION TOP-UP FUND (LBM),CAP COST14,12-Apr-24,93984.44,0,184583,Super Fund - New Pension Regs,PENSIONS,A,2024,1
1143,Unassigned,PENSION TOP-UP FUND (LBM),CAP COST13,18-Apr-24,18254.99,0,184583,Super Fund - New Pension Regs,PENSIONS,A,2024,1
1144,Community and Housing,REDACTED PERSONAL DATA,1149412,22-Apr-24,867.48,0,184608,Older People Placements - East,DIRECT PAYMENTS,R,2024,1
1145,"Children, Schools and Family",FUNKY OWLS NURSERY,P1 24 UPFRONTPAY,05-Apr-24,36374.4,0,184637,EARLY YEARS NURSERY GRANTS,200000              Financial Services,A,2024,1
1146,"Children, Schools and Family",Bright Horizons Family Solutions Ltd,P1 24 UPFRONTPAY,16-Apr-24,31215.36,0,184692,EARLY YEARS NURSERY GRANTS,170000              Education,A,2024,1
1147,Corporate Services,SEARCHFLOW LTD,INV9455860,30-Apr-24,795.34,124.06,184757,SLLP - Disbursements,190000              Facilities & Management Services,A,2024,1
1148,Community and Housing,CROHAM PLACE,1145299,10-Apr-24,9400,0,184807,Mental Health Placements,321017              Nursing & Residential Care Homes,A,2024,1
1149,Community and Housing,CROHAM PLACE,1145300,10-Apr-24,9400,0,184807,Learning Disabilities Placemnt,321017              Nursing & Residential Care Homes,A,2024,1
1150,Community and Housing,CROHAM PLACE,1145332,10-Apr-24,9400,0,184807,Mental Health Placements,321017              Nursing & Residential Care Homes,A,2024,1
1151,Community and Housing,REDACTED PERSONAL DATA,1149571,22-Apr-24,977.04,0,184819,Older People Placements - East,DIRECT PAYMENTS,R,2024,1
1152,"Children, Schools and Family",HIGHER LEVEL CARE (HLC) LTD,15240,17-Apr-24,2357.1,0,184822,Placements Over 18,321100              Social Community Care Supplies & Services - Children Residential,A,2024,1
1153,Community and Housing,QUARTZ PROPERTIES,LBMAC12,11-Apr-24,1160,0,184919,Housing Strategy,321000              Social Community Care Supplies & Services - Adult,A,2024,1
1154,Community and Housing,QUARTZ PROPERTIES,LBMAC13,11-Apr-24,1240,0,184919,Housing Strategy,321000              Social Community Care Supplies & Services - Adult,A,2024,1
1155,"Children, Schools and Family",QUARTZ PROPERTIES,LBMSS51A,23-Apr-24,1395,0,184919,Family Assessmt & Intervention,321000              Social Community Care Supplies & Services - Adult,A,2024,1
1156,Community and Housing,REDACTED PERSONAL DATA,1149459,22-Apr-24,703.8,0,184950,Phys/Sens Placements - East,DIRECT PAYMENTS,R,2024,1
1157,Corporate Services,CIPFA BUSINESS LIMITED,3171638,25-Apr-24,8965.2,1494.2,184963,AD Resources,200000              Financial Services,A,2024,1
1158,Corporate Services,CIPFA BUSINESS LIMITED,3171424,30-Apr-24,7235,0,184963,AD Resources,200000              Financial Services,A,2024,1
1159,Community and Housing,HOLDSWORTHS,986306,12-Apr-24,515.8,6.94,185001,Eastway Day Centre,110000              Catering,A,2024,1
1160,Corporate Services,BROWNE JACOBSON,1058642,09-Apr-24,23709.12,3951.52,185063,SLLP - Disbursements,280000              Legal Services,A,2024,1
1161,"Children, Schools and Family",FUTURE FOUNDATIONS LTD,FFSW04925,09-Apr-24,3937,0,185138,Placements Under 18,321100              Social Community Care Supplies & Services - Children,A,2024,1
1162,Community and Housing,REDACTED PERSONAL DATA,1149426,22-Apr-24,1459.72,0,185250,Older People Placements - East,DIRECT PAYMENTS,R,2024,1
1163,Community and Housing,ORCHARD HILL COLLEGE,DI3020102337,05-Apr-24,960,0,185253,Learning Disabilities Placemnt,170000              Education,A,2024,1
1164,Community and Housing,ORCHARD HILL COLLEGE,DI3020101934,05-Apr-24,720,0,185253,Learning Disabilities Placemnt,170000              Education,A,2024,1
1165,"Children, Schools and Family",ORCHARD HILL COLLEGE,DI3010102567,24-Apr-24,18089.06,0,185253,Non-Maintained Post 16 SEN,170000              Education,A,2024,1
1166,"Children, Schools and Family",ORCHARD HILL COLLEGE,DI3010102561,24-Apr-24,14171.63,0,185253,Non-Maintained Post 16 SEN,170000              Education,A,2024,1
1167,"Children, Schools and Family",ORCHARD HILL COLLEGE,DI3010102555,24-Apr-24,17042.72,0,185253,Non-Maintained Post 16 SEN,170000              Education,A,2024,1
1168,"Children, Schools and Family",ORCHARD HILL COLLEGE,DI3010102563,24-Apr-24,12545.91,0,185253,Non-Maintained Post 16 SEN,170000              Education,A,2024,1
1169,"Children, Schools and Family",ORCHARD HILL COLLEGE,DI3060102565,24-Apr-24,12817.91,0,185253,Non-Maintained Post 16 SEN,170000              Education,A,2024,1
1170,"Children, Schools and Family",ORCHARD HILL COLLEGE,DI3020102558,24-Apr-24,12715.32,0,185253,Non-Maintained Post 16 SEN,170000              Education,A,2024,1
1171,"Children, Schools and Family",ORCHARD HILL COLLEGE,DI3010102566,24-Apr-24,14132.53,0,185253,Non-Maintained Post 16 SEN,170000              Education,A,2024,1
1172,"Children, Schools and Family",ORCHARD HILL COLLEGE,DI3060102569,24-Apr-24,12251.28,0,185253,Non-Maintained Post 16 SEN,170000              Education,A,2024,1
1173,"Children, Schools and Family",ORCHARD HILL COLLEGE,DI3020102570,24-Apr-24,16378.23,0,185253,Non-Maintained Post 16 SEN,170000              Education,A,2024,1
1174,"Children, Schools and Family",ORCHARD HILL COLLEGE,DI3020102568,24-Apr-24,11745.72,0,185253,Non-Maintained Post 16 SEN,170000              Education,A,2024,1
1175,"Children, Schools and Family",ORCHARD HILL COLLEGE,DI3020102553,24-Apr-24,13056.65,0,185253,Non-Maintained Post 16 SEN,170000              Education,A,2024,1
1176,"Children, Schools and Family",ORCHARD HILL COLLEGE,DI3020102556,24-Apr-24,11972.62,0,185253,Non-Maintained Post 16 SEN,170000              Education,A,2024,1
